"Body","BodyName","InvoiceDate","ClearanceDate","UniqueReference","SupplierName","SupplierRefNo","Amount","DepartmentExpenseArea","ExpenseType","ExpenseCode","ExtendedDescription","AccountHolder","MerchantCategory"
"http://statistics.data.gov.uk/id/local-authority/43UM","WOKING BOROUGH COUNCIL","01/08/2022","01/08/2022","GPC/00020074","BOOKERECOMM","PROCUREMENT CARD","2.99","INDEPENDENT LIVING SERVICES - MEALS SERVICE -THE VYNE","PROVISIONS","G410","GROCERIES FOR THE VYNE","REBECCA STEVENS","CATERERS"
"http://statistics.data.gov.uk/id/local-authority/43UM","WOKING BOROUGH COUNCIL","01/08/2022","01/08/2022","GPC/00020074","BOOKERECOMM","PROCUREMENT CARD","42.43","INDEPENDENT LIVING SERVICES - MEALS SERVICE -THE VYNE","PROVISIONS","G410","GROCERIES FOR THE VYNE","REBECCA STEVENS","CATERERS"
"http://statistics.data.gov.uk/id/local-authority/43UM","WOKING BOROUGH COUNCIL","01/08/2022","01/08/2022","GPC/00020075","WWW.BANNERUK.COM","PROCUREMENT CARD","26.04","ASSET MANAGEMENT - CIVIC OFFICES","STATIONERY","G620","C5 WINDOWED ENVELOPES FOR SUNDRY DEBTORS","MOLLY DOYLE","STATIONERY/OFFICE SUPPLIES"
"http://statistics.data.gov.uk/id/local-authority/43UM","WOKING BOROUGH COUNCIL","01/08/2022","01/08/2022","GPC/00020076","W M MORRISON STORE","PROCUREMENT CARD","6.00","FINANCIAL SERVICES - BROCKHILL SOCIAL FUND","MISCELLANEOUS EXPENSES","X827","ICE CREAM FOR BROCKHILL","OVIDIU MITROFAN","GROCERY STORES"
"http://statistics.data.gov.uk/id/local-authority/43UM","WOKING BOROUGH COUNCIL","01/08/2022","01/08/2022","GPC/00020077","SCHOOL UNIFORM DIRECT - W","PROCUREMENT CARD","53.04","HOUSING SERVICES - AFGHAN REFUGEE","CLOTHING","Q586","SCHOOL UNIFORM FOR AFGHAN RESETTLEMENT FAMILY","FATIMA GHAZAL TABREZ","UNIFORMS AND COMMERCIAL CLOTHING"
"http://statistics.data.gov.uk/id/local-authority/43UM","WOKING BOROUGH COUNCIL","01/08/2022","01/08/2022","GPC/00020078","TITAN WOKING","PROCUREMENT CARD","-28.38","HOUSING SERVICES - LETS RENT SCHEME","CONNECT BOND CLAIMS","H713","REFUND FROM STORAGE CO FOR TT OF PETWORTH COURT","CLARE HADLEY","BUSINESS SERVICES - DEFAULT"
"http://statistics.data.gov.uk/id/local-authority/43UM","WOKING BOROUGH COUNCIL","01/08/2022","01/08/2022","GPC/00020079","TRAVIS PERKINS TRADING","PROCUREMENT CARD","14.18","ASSET MANAGEMENT - FACILITIES MANAGEMENT","FACILITIES MANAGEMENT REPAIRS","D908","CEMENT FOR VAN STOCK","MR C NORTON","LUMBER/BUILD SUPPLY STORES"
"http://statistics.data.gov.uk/id/local-authority/43UM","WOKING BOROUGH COUNCIL","01/08/2022","01/08/2022","GPC/00020080","THETRAINLINE.COM","PROCUREMENT CARD","54.48","NEIGHBOURHOOD SERVICES - NEIGHBOURHOOD SERV GENERAL EXP","TRAVEL EXPENSES-OFFICERS","F600","TRAIN TO MILTON KEYNES - BANNATYNE MEETING","EMMA BOURNE","PASSENGER RAILWAYS"
"http://statistics.data.gov.uk/id/local-authority/43UM","WOKING BOROUGH COUNCIL","01/08/2022","01/08/2022","GPC/00020081","BOOKERECOMM","PROCUREMENT CARD","27.27","INDEPENDENT LIVING SERVICES - MEALS SERVICE - ST MARYS","PROVISIONS","G410","GROCERIES FOR ST MARY'S","REBECCA STEVENS","CATERERS"
"http://statistics.data.gov.uk/id/local-authority/43UM","WOKING BOROUGH COUNCIL","01/08/2022","01/08/2022","GPC/00020082","ASDA  STORES 4775","PROCUREMENT CARD","600.00","CORPORATE STRATEGY - HOUSEHOLD SUPPORT FUND","HSF FOOD CHILDREN","G155","HOUSEHOLD FUND VOUCHERS","JANET COURTNEY","GROCERY STORES"
"http://statistics.data.gov.uk/id/local-authority/43UM","WOKING BOROUGH COUNCIL","01/08/2022","01/08/2022","GPC/00020083","DOLPHIN COMPUTER ACCESS","PROCUREMENT CARD","416.67","CORPORATE MANAGEMENT GROUP - STAFF TRAINING/GENERAL COSTS","TRAINING - CORPORATE","A910","TRANSACTIONS FOR DOLPHIN GBP500 PLUS GBP100 VAT","CLARE GANE","MISC GEN MERCHANDISE - DEF"
"http://statistics.data.gov.uk/id/local-authority/43UM","WOKING BOROUGH COUNCIL","01/08/2022","01/08/2022","GPC/00020085","BOOKERECOMM","PROCUREMENT CARD","12.59","INDEPENDENT LIVING SERVICES - MEALS SERVICE - HALE END COURT","PROVISIONS","G410","GROCERIES FOR KITCHENS","REBECCA STEVENS","CATERERS"
"http://statistics.data.gov.uk/id/local-authority/43UM","WOKING BOROUGH COUNCIL","01/08/2022","01/08/2022","GPC/00020085","BOOKERECOMM","PROCUREMENT CARD","12.59","INDEPENDENT LIVING SERVICES - MEALS SERVICE -THE VYNE","PROVISIONS","G410","GROCERIES FOR KITCHENS","REBECCA STEVENS","CATERERS"
"http://statistics.data.gov.uk/id/local-authority/43UM","WOKING BOROUGH COUNCIL","01/08/2022","01/08/2022","GPC/00020085","BOOKERECOMM","PROCUREMENT CARD","37.05","INDEPENDENT LIVING SERVICES - MEALS SERVICE - BROCKHILL","PROVISIONS","G410","GROCERIES FOR KITCHENS","REBECCA STEVENS","CATERERS"
"http://statistics.data.gov.uk/id/local-authority/43UM","WOKING BOROUGH COUNCIL","01/08/2022","01/08/2022","GPC/00020085","BOOKERECOMM","PROCUREMENT CARD","69.70","INDEPENDENT LIVING SERVICES - MEALS SERVICE - BROCKHILL","PROVISIONS","G410","GROCERIES FOR KITCHENS","REBECCA STEVENS","CATERERS"
"http://statistics.data.gov.uk/id/local-authority/43UM","WOKING BOROUGH COUNCIL","01/08/2022","01/08/2022","GPC/00020086","RELIABLE SKIP","PROCUREMENT CARD","216.33","INDEPENDENT LIVING SERVICES - INDEPENDENT LIV SERV GEN EXPEN","FREDA EBEL BEQUEST","H352","SKIP FOR ROCKERY","MRS M CHILCOTT","GEN CONTRACTORS RESIDENTIAL/COMMERCIAL"
"http://statistics.data.gov.uk/id/local-authority/43UM","WOKING BOROUGH COUNCIL","01/08/2022","01/08/2022","GPC/00020087","BOOKERECOMM","PROCUREMENT CARD","10.49","INDEPENDENT LIVING SERVICES - MEALS SERVICE - HALE END COURT","PROVISIONS","G410","GROCERIES FOR KITCHENS","REBECCA STEVENS","CATERERS"
"http://statistics.data.gov.uk/id/local-authority/43UM","WOKING BOROUGH COUNCIL","01/08/2022","01/08/2022","GPC/00020087","BOOKERECOMM","PROCUREMENT CARD","53.96","INDEPENDENT LIVING SERVICES - MEALS ON WHEELS","PROVISIONS","G410","GROCERIES FOR KITCHENS","REBECCA STEVENS","CATERERS"
"http://statistics.data.gov.uk/id/local-authority/43UM","WOKING BOROUGH COUNCIL","01/08/2022","01/08/2022","GPC/00020088","W M MORRISON STORE","PROCUREMENT CARD","4.25","INDEPENDENT LIVING SERVICES - BROCKHILL EXTRA CARE","STEP DOWN","H300","STEP DOWN ITEMS","OVIDIU MITROFAN","GROCERY STORES"
"http://statistics.data.gov.uk/id/local-authority/43UM","WOKING BOROUGH COUNCIL","01/08/2022","01/08/2022","GPC/00020089","SCREWFIX DIR LTD","PROCUREMENT CARD","51.11","CORPORATE STRATEGY - COVID -19 PANDEMIC","MAIN CONTRACTOR","Q200","PAVILION GUTTERING","MR C NORTON","LUMBER/BUILD SUPPLY STORES"
"http://statistics.data.gov.uk/id/local-authority/43UM","WOKING BOROUGH COUNCIL","01/08/2022","01/08/2022","GPC/00020090","BOOKERECOMM","PROCUREMENT CARD","17.99","INDEPENDENT LIVING SERVICES - MEALS ON WHEELS","PROVISIONS","G410","GROCERIES FOR MOW","REBECCA STEVENS","CATERERS"
"http://statistics.data.gov.uk/id/local-authority/43UM","WOKING BOROUGH COUNCIL","01/08/2022","01/08/2022","GPC/00020091","WICKES WOKING","PROCUREMENT CARD","9.00","ASSET MANAGEMENT - FACILITIES MANAGEMENT","FACILITIES MANAGEMENT REPAIRS","D908","DISHWASHER CONNECTION FOR EXPORT HOUSE","MR C NORTON","HOME SUPPLY WAREHOUSE STORES"
"http://statistics.data.gov.uk/id/local-authority/43UM","WOKING BOROUGH COUNCIL","02/08/2022","02/08/2022","GPC/00020073","AMZNMKTPLACE","PROCUREMENT CARD","3.32","INDEPENDENT LIVING SERVICES - FAMILY CENTRES","STATIONERY","G620","SEND PICNIC - CABLE TIES","KESARA CHEENA","MISC SPECIALITY RETAIL"
"http://statistics.data.gov.uk/id/local-authority/43UM","WOKING BOROUGH COUNCIL","02/08/2022","02/08/2022","GPC/00020084","AMZNMKTPLACE","PROCUREMENT CARD","17.71","INDEPENDENT LIVING SERVICES - FAMILY CENTRES","STATIONERY","G620","INK CARTRIDGE PRINT OUT MARKETING ","KESARA CHEENA","MISC SPECIALITY RETAIL"
"http://statistics.data.gov.uk/id/local-authority/43UM","WOKING BOROUGH COUNCIL","02/08/2022","02/08/2022","GPC/00020092","WWW.SCREWFIX.COM","PROCUREMENT CARD","200.73","HOUSING SERVICES - HOME IMPS & BEN AGENCY","HANDYPERSON MATERIALS","G201","HANDYPERSON MATERAILS","IAN DEANE","LUMBER/BUILD SUPPLY STORES"
"http://statistics.data.gov.uk/id/local-authority/43UM","WOKING BOROUGH COUNCIL","02/08/2022","02/08/2022","GPC/00020093","TESCO PFS 4046","PROCUREMENT CARD","102.14","HOUSING SERVICES - HOME IMPS & BEN AGENCY","TRAVEL EXPENSES-OFFICERS","F600","FUEL FOR HP VAN","ROBERT ELDRIDGE","SERVICE STATIONS"
"http://statistics.data.gov.uk/id/local-authority/43UM","WOKING BOROUGH COUNCIL","02/08/2022","02/08/2022","GPC/00020094","AMZNMKTPLACE","PROCUREMENT CARD","29.99","INDEPENDENT LIVING SERVICES - FAMILY CENTRES","STATIONERY","G620","PUKKA PADS","NASREEN FAROOQ","MISC SPECIALITY RETAIL"
"http://statistics.data.gov.uk/id/local-authority/43UM","WOKING BOROUGH COUNCIL","02/08/2022","02/08/2022","GPC/00020095","SCREWFIX DIR LTD","PROCUREMENT CARD","4.98","CORPORATE STRATEGY - COVID -19 PANDEMIC","MAIN CONTRACTOR","Q200","PAVILION GUTTERING SEALANT","MR C NORTON","LUMBER/BUILD SUPPLY STORES"
"http://statistics.data.gov.uk/id/local-authority/43UM","WOKING BOROUGH COUNCIL","02/08/2022","02/08/2022","GPC/00020096","YOUNG MINDS","PROCUREMENT CARD","309.95","INDEPENDENT LIVING SERVICES - FAMILY SUPPORT PROGRAMME","FAMILY ENABLING (FSP PROJECT)","H137","RESILIENCE CARDS REQUESTED BY HG","NASREEN FAROOQ","CHARITABLE/SOC SERVICE ORGS"
"http://statistics.data.gov.uk/id/local-authority/43UM","WOKING BOROUGH COUNCIL","02/08/2022","02/08/2022","GPC/00020097","LONDIS SHEERWATER","PROCUREMENT CARD","4.00","INDEPENDENT LIVING SERVICES - REMOVAL COSTS SHEERWATER REGEB","MAIN CONTRACTOR","Q200","DUCT TAPE ","SHANAZ ASHRAF","GROCERY STORES"
"http://statistics.data.gov.uk/id/local-authority/43UM","WOKING BOROUGH COUNCIL","02/08/2022","02/08/2022","GPC/00020098","HALX - WOKING","PROCUREMENT CARD","100.00","CORPORATE STRATEGY - WOMENS SUPPORT CENTRE SURREY","TRAVEL EXPENSES-CLIENTS","F640","PETTY CASH ","DONNA DRUMMOND","FINANCIAL INST/AUTO CASH"
"http://statistics.data.gov.uk/id/local-authority/43UM","WOKING BOROUGH COUNCIL","02/08/2022","02/08/2022","GPC/00020099","AMZNMKTPLACE","PROCUREMENT CARD","8.32","INDEPENDENT LIVING SERVICES - MOORCROFT","STATIONERY","G620","STATIONERY","RICHARD BUCKENHAM","MISC SPECIALITY RETAIL"
"http://statistics.data.gov.uk/id/local-authority/43UM","WOKING BOROUGH COUNCIL","02/08/2022","02/08/2022","GPC/00020100","SCREWFIX DIR LTD","PROCUREMENT CARD","20.82","HOUSING SERVICES - HOME IMPS & BEN AGENCY","HANDYPERSON MATERIALS","G201","HANDYPERSON MATERIALS","IAN DEANE","LUMBER/BUILD SUPPLY STORES"
"http://statistics.data.gov.uk/id/local-authority/43UM","WOKING BOROUGH COUNCIL","02/08/2022","02/08/2022","GPC/00020101","ASDA STORES 4823","PROCUREMENT CARD","6.00","INDEPENDENT LIVING SERVICES - FAMILY CENTRES","PROVISIONS","G410","TISSUES","NASREEN FAROOQ","GROCERY STORES"
"http://statistics.data.gov.uk/id/local-authority/43UM","WOKING BOROUGH COUNCIL","02/08/2022","02/08/2022","GPC/00020102","TESCO STORES","PROCUREMENT CARD","2.00","CORPORATE STRATEGY - WOMENS SUPPORT CENTRE SURREY","GROUP EXPENSES","H488","TESCO GROUP EXPENSES","DONNA DRUMMOND","GROCERY STORES"
"http://statistics.data.gov.uk/id/local-authority/43UM","WOKING BOROUGH COUNCIL","02/08/2022","02/08/2022","GPC/00020103","AMZNMKTPLACE","PROCUREMENT CARD","12.48","INDEPENDENT LIVING SERVICES - COMMUNITY ALARMS-GF","EQUIPMENT","G100","DOCUMENT HOLDER FOR MEMBER OF ADMIN STAFF","GAIL SMITH","MISC SPECIALITY RETAIL"
"http://statistics.data.gov.uk/id/local-authority/43UM","WOKING BOROUGH COUNCIL","02/08/2022","02/08/2022","GPC/00020104","WWW.BANNERUK.COM","PROCUREMENT CARD","40.98","ASSET MANAGEMENT - CIVIC OFFICES","STATIONERY","G620","A1 FLIPCHART PAPER","MOLLY DOYLE","STATIONERY/OFFICE SUPPLIES"
"http://statistics.data.gov.uk/id/local-authority/43UM","WOKING BOROUGH COUNCIL","02/08/2022","02/08/2022","GPC/00020105","C BREWER & SONS","PROCUREMENT CARD","160.25","ASSET MANAGEMENT - PUBLIC CONVENIENCES","FACILITIES MANAGEMENT CONTRACT","D909","PAINT ETC FOR WHEATSHEAF PUBLIC WCS","MR D JONES","LUMBER/BUILD SUPPLY STORES"
"http://statistics.data.gov.uk/id/local-authority/43UM","WOKING BOROUGH COUNCIL","02/08/2022","02/08/2022","GPC/00020106","ASDA STORES 4823","PROCUREMENT CARD","28.50","INDEPENDENT LIVING SERVICES - FAMILY CENTRES","EQUIPMENT","G100","SYTHWOOD GARDEN RESOURCES","CLAIRE O'KELLY","GROCERY STORES"
"http://statistics.data.gov.uk/id/local-authority/43UM","WOKING BOROUGH COUNCIL","02/08/2022","02/08/2022","GPC/00020107","WWW.BANNERUK.COM","PROCUREMENT CARD","55.53","CORPORATE STRATEGY - LEGAL","STATIONERY","G620","HOLE PUNCH FOR LEGAL","MOLLY DOYLE","STATIONERY/OFFICE SUPPLIES"
"http://statistics.data.gov.uk/id/local-authority/43UM","WOKING BOROUGH COUNCIL","02/08/2022","02/08/2022","GPC/00020112","TVLICENSING.CO.UK","PROCUREMENT CARD","132.50","INDEPENDENT LIVING SERVICES - ST MARY'S DAY CENTRE","LICENCES","H460","ST MARYS TV LICENCE","MR JONNY MOLES","MGMT/CONSULT/PUBLIC REL SER"
"http://statistics.data.gov.uk/id/local-authority/43UM","WOKING BOROUGH COUNCIL","02/08/2022","02/08/2022","GPC/00020124","ROBERT DYAS WOKING","PROCUREMENT CARD","16.66","HOUSING SERVICES - HOME IMPS & BEN AGENCY","HANDYPERSON MATERIALS","G201","RECHARGEABLE BATTERIES","MYCROFT HUNTER","HARDWARE STORES"
"http://statistics.data.gov.uk/id/local-authority/43UM","WOKING BOROUGH COUNCIL","02/08/2022","02/08/2022","GPC/00020146","RS COMPONENTS","PROCUREMENT CARD","49.74","HOUSING SERVICES - HOME IMPS & BEN AGENCY","HANDYPERSON MATERIALS","G201","HANDYPERSON MATERIALS","IAN DEANE","ELECTRICAL PARTS/EQUIPMENT"
"http://statistics.data.gov.uk/id/local-authority/43UM","WOKING BOROUGH COUNCIL","28/01/2022","03/08/2022","0000474195/001","THAMESWEY HOUSING LIMITED","40790400","3289.58","INDEPENDENT LIVING SERVICES - SW REGEN HOME LOSS PAYMENTS","MAIN CONTRACTOR","Q200","MAIN CONTRACTOR","INDEPENDENT LIVING SERVICES","FINANCIAL SERVICES"
"http://statistics.data.gov.uk/id/local-authority/43UM","WOKING BOROUGH COUNCIL","25/02/2022","03/08/2022","0000475039/001","MITEL NETWORKS LTD","01363200","2662.80","INFORMATION TECHNOLOGY - COMMUNICATIONS","DATA MAINTENANCE","G838","DATA MAINTENANCE","INFORMATION TECHNOLOGY","INFORMATION COMMUNICATION TECHNOLOGY"
"http://statistics.data.gov.uk/id/local-authority/43UM","WOKING BOROUGH COUNCIL","25/02/2022","03/08/2022","0000475039/002","MITEL NETWORKS LTD","01363200","6624.00","INFORMATION TECHNOLOGY - COMMUNICATIONS","DATA MAINTENANCE","G838","DATA MAINTENANCE","INFORMATION TECHNOLOGY","INFORMATION COMMUNICATION TECHNOLOGY"
"http://statistics.data.gov.uk/id/local-authority/43UM","WOKING BOROUGH COUNCIL","25/02/2022","03/08/2022","0000475039/003","MITEL NETWORKS LTD","01363200","2017.20","INFORMATION TECHNOLOGY - COMMUNICATIONS","DATA MAINTENANCE","G838","DATA MAINTENANCE","INFORMATION TECHNOLOGY","INFORMATION COMMUNICATION TECHNOLOGY"
"http://statistics.data.gov.uk/id/local-authority/43UM","WOKING BOROUGH COUNCIL","07/04/2022","03/08/2022","0000476638/001","THAMESWEY ENERGY LTD","40156000","520.57","HOUSING SERVICES - LANDLORDS EXPENSES","TEL ELECTRICITY","D480","TEL ELECTRICITY","HOUSING SERVICES","UTILITIES"
"http://statistics.data.gov.uk/id/local-authority/43UM","WOKING BOROUGH COUNCIL","21/04/2022","03/08/2022","0000477074/001","RUTLAND (WOKING) LIMITED","40401900","2750.00","HOUSING SERVICES - MONUMENT WAY DEVELOPMENT","MAIN CONTRACTOR","Q200","MAIN CONTRACTOR","HOUSING SERVICES","FINANCIAL SERVICES"
"http://statistics.data.gov.uk/id/local-authority/43UM","WOKING BOROUGH COUNCIL","25/04/2022","03/08/2022","0000477089/001","WPS UNITED KINGDOM LTD","40942300","640.00","ASSET MANAGEMENT - CAR PARK MANAGEMENT SYSTEM","PURCHASE OF EQUIPMENT","Q510","PURCHASE OF EQUIPMENT","ASSET MANAGEMENT","STREET & TRAFFIC MANAGEMENT"
"http://statistics.data.gov.uk/id/local-authority/43UM","WOKING BOROUGH COUNCIL","01/06/2022","03/08/2022","0000478065/001","APETITO LTD","00186100","2873.34","INDEPENDENT LIVING SERVICES - MEALS ON WHEELS","VEHICLE LEASING COSTS","F400","VEHICLE LEASING COSTS","INDEPENDENT LIVING SERVICES","CATERING"
"http://statistics.data.gov.uk/id/local-authority/43UM","WOKING BOROUGH COUNCIL","30/05/2022","03/08/2022","0000478714/001","CHURCHILL CONTRACT SERVICES LTD","40917700","72.60","INDEPENDENT LIVING SERVICES - BROCKHILL EXTRA CARE","FACILITIES MANAGEMENT CONTRACT","D909","FACILITIES MANAGEMENT CONTRACT","INDEPENDENT LIVING SERVICES","BUILDING CONSTRUCTION MATERIALS"
"http://statistics.data.gov.uk/id/local-authority/43UM","WOKING BOROUGH COUNCIL","30/05/2022","03/08/2022","0000478714/002","CHURCHILL CONTRACT SERVICES LTD","40917700","142.78","ASSET MANAGEMENT - UNIT 14B MON WAY EAST","FACILITIES MANAGEMENT CONTRACT","D909","FACILITIES MANAGEMENT CONTRACT","ASSET MANAGEMENT","BUILDING CONSTRUCTION MATERIALS"
"http://statistics.data.gov.uk/id/local-authority/43UM","WOKING BOROUGH COUNCIL","30/05/2022","03/08/2022","0000478714/003","CHURCHILL CONTRACT SERVICES LTD","40917700","136.73","NEIGHBOURHOOD SERVICES - ARTS DEVELOPMENT","EQUIPMENT REPAIR & MAINTENANCE","G120","EQUIPMENT REPAIR & MAINTENANCE","NEIGHBOURHOOD SERVICES","BUILDING CONSTRUCTION MATERIALS"
"http://statistics.data.gov.uk/id/local-authority/43UM","WOKING BOROUGH COUNCIL","30/05/2022","03/08/2022","0000478714/004","CHURCHILL CONTRACT SERVICES LTD","40917700","209.33","NEIGHBOURHOOD SERVICES - ARTS DEVELOPMENT","EQUIPMENT REPAIR & MAINTENANCE","G120","EQUIPMENT REPAIR & MAINTENANCE","NEIGHBOURHOOD SERVICES","BUILDING CONSTRUCTION MATERIALS"
"http://statistics.data.gov.uk/id/local-authority/43UM","WOKING BOROUGH COUNCIL","30/05/2022","03/08/2022","0000478714/005","CHURCHILL CONTRACT SERVICES LTD","40917700","94.38","INDEPENDENT LIVING SERVICES - BROCKHILL EXTRA CARE","FACILITIES MANAGEMENT CONTRACT","D909","FACILITIES MANAGEMENT CONTRACT","INDEPENDENT LIVING SERVICES","BUILDING CONSTRUCTION MATERIALS"
"http://statistics.data.gov.uk/id/local-authority/43UM","WOKING BOROUGH COUNCIL","30/05/2022","03/08/2022","0000478714/006","CHURCHILL CONTRACT SERVICES LTD","40917700","79.00","HOUSING SERVICES - FM CONTRACT REC HENRY PLAZA","PAYMENT TO CONTRACTOR","T700","PAYMENT TO CONTRACTOR","HOUSING SERVICES","BUILDING CONSTRUCTION MATERIALS"
"http://statistics.data.gov.uk/id/local-authority/43UM","WOKING BOROUGH COUNCIL","30/05/2022","03/08/2022","0000478714/007","CHURCHILL CONTRACT SERVICES LTD","40917700","3667.95","HOUSING SERVICES - FM CONTRACT REC HENRY PLAZA","PAYMENT TO CONTRACTOR","T700","PAYMENT TO CONTRACTOR","HOUSING SERVICES","BUILDING CONSTRUCTION MATERIALS"
"http://statistics.data.gov.uk/id/local-authority/43UM","WOKING BOROUGH COUNCIL","30/05/2022","03/08/2022","0000478714/008","CHURCHILL CONTRACT SERVICES LTD","40917700","174.65","ASSET MANAGEMENT - 20 HIGH ST. WOKING","FACILITIES MANAGEMENT CONTRACT","D909","FACILITIES MANAGEMENT CONTRACT","ASSET MANAGEMENT","BUILDING CONSTRUCTION MATERIALS"
"http://statistics.data.gov.uk/id/local-authority/43UM","WOKING BOROUGH COUNCIL","30/05/2022","03/08/2022","0000478714/009","CHURCHILL CONTRACT SERVICES LTD","40917700","1728.00","CORPORATE STRATEGY - HALE END COURT","BROCKHILL DAY CARE","Y810","BROCKHILL DAY CARE","CORPORATE STRATEGY","BUILDING CONSTRUCTION MATERIALS"
"http://statistics.data.gov.uk/id/local-authority/43UM","WOKING BOROUGH COUNCIL","20/06/2022","03/08/2022","0000479033/001","KELTIC LTD","01666900","17.85","NEIGHBOURHOOD SERVICES - CAR PARKS ADMIN&OPERATIONAL EX","CLOTHING/UNIFORMS","G510","CLOTHING/UNIFORMS","NEIGHBOURHOOD SERVICES","CLOTHING"
"http://statistics.data.gov.uk/id/local-authority/43UM","WOKING BOROUGH COUNCIL","20/06/2022","03/08/2022","0000479033/002","KELTIC LTD","01666900","23.80","NEIGHBOURHOOD SERVICES - CAR PARKS ADMIN&OPERATIONAL EX","CLOTHING/UNIFORMS","G510","CLOTHING/UNIFORMS","NEIGHBOURHOOD SERVICES","CLOTHING"
"http://statistics.data.gov.uk/id/local-authority/43UM","WOKING BOROUGH COUNCIL","20/06/2022","03/08/2022","0000479033/003","KELTIC LTD","01666900","11.90","NEIGHBOURHOOD SERVICES - CAR PARKS ADMIN&OPERATIONAL EX","CLOTHING/UNIFORMS","G510","CLOTHING/UNIFORMS","NEIGHBOURHOOD SERVICES","CLOTHING"
"http://statistics.data.gov.uk/id/local-authority/43UM","WOKING BOROUGH COUNCIL","20/06/2022","03/08/2022","0000479033/004","KELTIC LTD","01666900","11.90","NEIGHBOURHOOD SERVICES - CAR PARKS ADMIN&OPERATIONAL EX","CLOTHING/UNIFORMS","G510","CLOTHING/UNIFORMS","NEIGHBOURHOOD SERVICES","CLOTHING"
"http://statistics.data.gov.uk/id/local-authority/43UM","WOKING BOROUGH COUNCIL","20/06/2022","03/08/2022","0000479033/005","KELTIC LTD","01666900","43.45","NEIGHBOURHOOD SERVICES - CAR PARKS ADMIN&OPERATIONAL EX","CLOTHING/UNIFORMS","G510","CLOTHING/UNIFORMS","NEIGHBOURHOOD SERVICES","CLOTHING"
"http://statistics.data.gov.uk/id/local-authority/43UM","WOKING BOROUGH COUNCIL","20/06/2022","03/08/2022","0000479033/006","KELTIC LTD","01666900","17.90","NEIGHBOURHOOD SERVICES - CAR PARKS ADMIN&OPERATIONAL EX","CLOTHING/UNIFORMS","G510","CLOTHING/UNIFORMS","NEIGHBOURHOOD SERVICES","CLOTHING"
"http://statistics.data.gov.uk/id/local-authority/43UM","WOKING BOROUGH COUNCIL","20/06/2022","03/08/2022","0000479033/007","KELTIC LTD","01666900","17.90","NEIGHBOURHOOD SERVICES - CAR PARKS ADMIN&OPERATIONAL EX","CLOTHING/UNIFORMS","G510","CLOTHING/UNIFORMS","NEIGHBOURHOOD SERVICES","CLOTHING"
"http://statistics.data.gov.uk/id/local-authority/43UM","WOKING BOROUGH COUNCIL","20/06/2022","03/08/2022","0000479033/008","KELTIC LTD","01666900","29.95","NEIGHBOURHOOD SERVICES - CAR PARKS ADMIN&OPERATIONAL EX","CLOTHING/UNIFORMS","G510","CLOTHING/UNIFORMS","NEIGHBOURHOOD SERVICES","CLOTHING"
"http://statistics.data.gov.uk/id/local-authority/43UM","WOKING BOROUGH COUNCIL","20/06/2022","03/08/2022","0000479033/009","KELTIC LTD","01666900","29.95","NEIGHBOURHOOD SERVICES - CAR PARKS ADMIN&OPERATIONAL EX","CLOTHING/UNIFORMS","G510","CLOTHING/UNIFORMS","NEIGHBOURHOOD SERVICES","CLOTHING"
"http://statistics.data.gov.uk/id/local-authority/43UM","WOKING BOROUGH COUNCIL","20/06/2022","03/08/2022","0000479033/010","KELTIC LTD","01666900","53.70","NEIGHBOURHOOD SERVICES - CAR PARKS ADMIN&OPERATIONAL EX","CLOTHING/UNIFORMS","G510","CLOTHING/UNIFORMS","NEIGHBOURHOOD SERVICES","CLOTHING"
"http://statistics.data.gov.uk/id/local-authority/43UM","WOKING BOROUGH COUNCIL","20/06/2022","03/08/2022","0000479033/011","KELTIC LTD","01666900","23.70","NEIGHBOURHOOD SERVICES - CAR PARKS ADMIN&OPERATIONAL EX","CLOTHING/UNIFORMS","G510","CLOTHING/UNIFORMS","NEIGHBOURHOOD SERVICES","CLOTHING"
"http://statistics.data.gov.uk/id/local-authority/43UM","WOKING BOROUGH COUNCIL","20/06/2022","03/08/2022","0000479033/012","KELTIC LTD","01666900","23.70","NEIGHBOURHOOD SERVICES - CAR PARKS ADMIN&OPERATIONAL EX","CLOTHING/UNIFORMS","G510","CLOTHING/UNIFORMS","NEIGHBOURHOOD SERVICES","CLOTHING"
"http://statistics.data.gov.uk/id/local-authority/43UM","WOKING BOROUGH COUNCIL","20/06/2022","03/08/2022","0000479033/013","KELTIC LTD","01666900","36.95","NEIGHBOURHOOD SERVICES - CAR PARKS ADMIN&OPERATIONAL EX","CLOTHING/UNIFORMS","G510","CLOTHING/UNIFORMS","NEIGHBOURHOOD SERVICES","CLOTHING"
"http://statistics.data.gov.uk/id/local-authority/43UM","WOKING BOROUGH COUNCIL","20/06/2022","03/08/2022","0000479033/014","KELTIC LTD","01666900","36.95","NEIGHBOURHOOD SERVICES - CAR PARKS ADMIN&OPERATIONAL EX","CLOTHING/UNIFORMS","G510","CLOTHING/UNIFORMS","NEIGHBOURHOOD SERVICES","CLOTHING"
"http://statistics.data.gov.uk/id/local-authority/43UM","WOKING BOROUGH COUNCIL","20/06/2022","03/08/2022","0000479033/015","KELTIC LTD","01666900","36.95","NEIGHBOURHOOD SERVICES - CAR PARKS ADMIN&OPERATIONAL EX","CLOTHING/UNIFORMS","G510","CLOTHING/UNIFORMS","NEIGHBOURHOOD SERVICES","CLOTHING"
"http://statistics.data.gov.uk/id/local-authority/43UM","WOKING BOROUGH COUNCIL","20/06/2022","03/08/2022","0000479033/016","KELTIC LTD","01666900","65.90","NEIGHBOURHOOD SERVICES - CAR PARKS ADMIN&OPERATIONAL EX","CLOTHING/UNIFORMS","G510","CLOTHING/UNIFORMS","NEIGHBOURHOOD SERVICES","CLOTHING"
"http://statistics.data.gov.uk/id/local-authority/43UM","WOKING BOROUGH COUNCIL","20/06/2022","03/08/2022","0000479033/017","KELTIC LTD","01666900","65.90","NEIGHBOURHOOD SERVICES - CAR PARKS ADMIN&OPERATIONAL EX","CLOTHING/UNIFORMS","G510","CLOTHING/UNIFORMS","NEIGHBOURHOOD SERVICES","CLOTHING"
"http://statistics.data.gov.uk/id/local-authority/43UM","WOKING BOROUGH COUNCIL","20/06/2022","03/08/2022","0000479033/018","KELTIC LTD","01666900","32.95","NEIGHBOURHOOD SERVICES - CAR PARKS ADMIN&OPERATIONAL EX","CLOTHING/UNIFORMS","G510","CLOTHING/UNIFORMS","NEIGHBOURHOOD SERVICES","CLOTHING"
"http://statistics.data.gov.uk/id/local-authority/43UM","WOKING BOROUGH COUNCIL","20/06/2022","03/08/2022","0000479033/019","KELTIC LTD","01666900","9.95","NEIGHBOURHOOD SERVICES - CAR PARKS ADMIN&OPERATIONAL EX","CLOTHING/UNIFORMS","G510","CLOTHING/UNIFORMS","NEIGHBOURHOOD SERVICES","CLOTHING"
"http://statistics.data.gov.uk/id/local-authority/43UM","WOKING BOROUGH COUNCIL","28/04/2022","03/08/2022","0000479155/001","COLYER REPROPOINT","40603200","1515.00","CORPORATE STRATEGY - CORPORATE STRATEGY GENERAL EXP","PRINTING EXTERNAL","G600","PRINTING EXTERNAL","CORPORATE STRATEGY","STATIONERY"
"http://statistics.data.gov.uk/id/local-authority/43UM","WOKING BOROUGH COUNCIL","21/06/2022","03/08/2022","0000479239/001","COMFORT BUILDING SERVICES LIMITED","40791600","8248.07","ASSET MANAGEMENT - AMP WORKPARK MECH ELEC UPGRADE","MAIN CONTRACTOR","Q200","MAIN CONTRACTOR","ASSET MANAGEMENT","FINANCIAL SERVICES"
"http://statistics.data.gov.uk/id/local-authority/43UM","WOKING BOROUGH COUNCIL","01/06/2022","03/08/2022","0000479255/001","AIR SOCIAL","40813800","610.00","CORPORATE STRATEGY - TOWN CENTRE FORUM","MARKETING","H406","MARKETING","CORPORATE STRATEGY","FINANCIAL SERVICES"
"http://statistics.data.gov.uk/id/local-authority/43UM","WOKING BOROUGH COUNCIL","01/06/2022","03/08/2022","0000479255/002","AIR SOCIAL","40813800","300.00","CORPORATE STRATEGY - TOWN CENTRE FORUM","MARKETING","H406","MARKETING","CORPORATE STRATEGY","FINANCIAL SERVICES"
"http://statistics.data.gov.uk/id/local-authority/43UM","WOKING BOROUGH COUNCIL","01/06/2022","03/08/2022","0000479255/003","AIR SOCIAL","40813800","50.00","CORPORATE STRATEGY - TOWN CENTRE FORUM","MARKETING","H406","MARKETING","CORPORATE STRATEGY","FINANCIAL SERVICES"
"http://statistics.data.gov.uk/id/local-authority/43UM","WOKING BOROUGH COUNCIL","28/06/2022","03/08/2022","0000479261/001","CASTLE WATER LIMITED","40650200","111.11","HOUSING SERVICES - DISABLED FACILITIES GRANTS","WATER","D700","WATER","HOUSING SERVICES","UTILITIES"
"http://statistics.data.gov.uk/id/local-authority/43UM","WOKING BOROUGH COUNCIL","27/06/2022","03/08/2022","0000479262/001","CASTLE WATER LIMITED","40650200","159.06","HOUSING SERVICES - DISABLED FACILITIES GRANTS","WATER","D700","WATER","HOUSING SERVICES","UTILITIES"
"http://statistics.data.gov.uk/id/local-authority/43UM","WOKING BOROUGH COUNCIL","30/06/2022","03/08/2022","0000479342/001","LUTHFUL KARIM","40662700","20.00","CORPORATE STRATEGY - WAVS","INTERPRETATION & TRANSLATION","H636","INTERPRETATION & TRANSLATION","CORPORATE STRATEGY","CONSULTANCY"
"http://statistics.data.gov.uk/id/local-authority/43UM","WOKING BOROUGH COUNCIL","30/06/2022","03/08/2022","0000479466/001","HEADLINE DESIGN & PRINT","00016900","37.50","INDEPENDENT LIVING SERVICES - THE VYNE","PRINTING EXTERNAL","G600","PRINTING EXTERNAL","INDEPENDENT LIVING SERVICES","FINANCIAL SERVICES"
"http://statistics.data.gov.uk/id/local-authority/43UM","WOKING BOROUGH COUNCIL","04/07/2022","03/08/2022","0000479470/001","HARLEQUIN BUILDING CONTRACTORS LTD","40859800","1040.00","PLANNING SERVICES - CIL - BYFLEET","MAIN CONTRACTOR","Q200","MAIN CONTRACTOR","PLANNING SERVICES","WORKS (CONSTRUCTION REPAIR MAINTENANCE)"
"http://statistics.data.gov.uk/id/local-authority/43UM","WOKING BOROUGH COUNCIL","28/06/2022","03/08/2022","0000479507/001","COFFEE 2U COMPANY LTD T/A THE ECO COFFEE","40906400","176.50","INDEPENDENT LIVING SERVICES - PARKVIEW","PROVISIONS","G410","PROVISIONS","INDEPENDENT LIVING SERVICES","FACILITIES & MANAGEMENT SERVICES"
"http://statistics.data.gov.uk/id/local-authority/43UM","WOKING BOROUGH COUNCIL","28/06/2022","03/08/2022","0000479513/001","COFFEE 2U COMPANY LTD T/A THE ECO COFFEE","40906400","143.00","INDEPENDENT LIVING SERVICES - MEALS SERVICE -THE VYNE","PROVISIONS","G410","PROVISIONS","INDEPENDENT LIVING SERVICES","FACILITIES & MANAGEMENT SERVICES"
"http://statistics.data.gov.uk/id/local-authority/43UM","WOKING BOROUGH COUNCIL","30/06/2022","03/08/2022","0000479541/001","FELDEN LIMITED T/A COMPLETE WEED CONTROL","40647100","350.00","ASSET MANAGEMENT - CAMPHILL TIP","GROUNDS MAINT-CONTRACTORS","D200","GROUNDS MAINT-CONTRACTORS","ASSET MANAGEMENT","HORTICULTURAL (INCLUDES AGRICULTURE)"
"http://statistics.data.gov.uk/id/local-authority/43UM","WOKING BOROUGH COUNCIL","01/07/2022","03/08/2022","0000479548/001","QIUFU HURLEY","40912900","20.00","CORPORATE STRATEGY - WAVS","INTERPRETATION & TRANSLATION","H636","INTERPRETATION & TRANSLATION","CORPORATE STRATEGY","FINANCIAL SERVICES"
"http://statistics.data.gov.uk/id/local-authority/43UM","WOKING BOROUGH COUNCIL","27/05/2022","03/08/2022","0000479558/001","AIR SOCIAL","40813800","960.00","CORPORATE STRATEGY - TOWN CENTRE FORUM","MARKETING","H406","MARKETING","CORPORATE STRATEGY","FINANCIAL SERVICES"
"http://statistics.data.gov.uk/id/local-authority/43UM","WOKING BOROUGH COUNCIL","25/06/2022","03/08/2022","0000479569/001","VIRGIN MEDIA BUSINESS","00367000","5661.25","ASSET MANAGEMENT - C.C.T.V.","CCTV TRANSMISSION MAINTENANCE","D342","CCTV TRANSMISSION MAINTENANCE","ASSET MANAGEMENT","UTILITIES"
"http://statistics.data.gov.uk/id/local-authority/43UM","WOKING BOROUGH COUNCIL","06/07/2022","03/08/2022","0000479680/001","THAMESWEY ENERGY LTD","40156000","1222.15","HOUSING SERVICES - LANDLORDS EXPENSES","TEL ELECTRICITY","D480","TEL ELECTRICITY","HOUSING SERVICES","UTILITIES"
"http://statistics.data.gov.uk/id/local-authority/43UM","WOKING BOROUGH COUNCIL","29/03/2022","03/08/2022","0000479743/001","WPS UNITED KINGDOM LTD","40942300","11742.40","NEIGHBOURHOOD SERVICES - CAR PARKS ADMIN&OPERATIONAL EX","TICKET MACHINE ANNUAL CONTRACT","D830","TICKET MACHINE ANNUAL CONTRACT","NEIGHBOURHOOD SERVICES","STREET & TRAFFIC MANAGEMENT"
"http://statistics.data.gov.uk/id/local-authority/43UM","WOKING BOROUGH COUNCIL","10/07/2022","03/08/2022","0000479764/001","CASTLE WATER LIMITED","40650200","23.26","ASSET MANAGEMENT - 29 DARTMOUTH AVE (XHRA)","DRAIN/WATER SERVICES","D715","DRAIN/WATER SERVICES","ASSET MANAGEMENT","UTILITIES"
"http://statistics.data.gov.uk/id/local-authority/43UM","WOKING BOROUGH COUNCIL","12/07/2022","03/08/2022","0000479770/001","WIGHTMAN & PARRISH LTD","40474600","57.48","INDEPENDENT LIVING SERVICES - ST MARY'S DAY CENTRE","CLEANING MATERIALS","D920","CLEANING MATERIALS","INDEPENDENT LIVING SERVICES","CLEANING & JANITORIAL"
"http://statistics.data.gov.uk/id/local-authority/43UM","WOKING BOROUGH COUNCIL","12/07/2022","03/08/2022","0000479770/002","WIGHTMAN & PARRISH LTD","40474600","43.23","INDEPENDENT LIVING SERVICES - ST MARY'S DAY CENTRE","CLEANING MATERIALS","D920","CLEANING MATERIALS","INDEPENDENT LIVING SERVICES","CLEANING & JANITORIAL"
"http://statistics.data.gov.uk/id/local-authority/43UM","WOKING BOROUGH COUNCIL","06/07/2022","03/08/2022","0000479777/001","AFFINITY WATER","01095900","885.16","ASSET MANAGEMENT - 29 DARTMOUTH AVE (XHRA)","WATER","D700","WATER","ASSET MANAGEMENT","UTILITIES"
"http://statistics.data.gov.uk/id/local-authority/43UM","WOKING BOROUGH COUNCIL","04/07/2022","03/08/2022","0000479865/001","CASTLE WATER LIMITED","40650200","169.10","INDEPENDENT LIVING SERVICES - ALPHA RD COMMUNITY HALL","WATER","D700","WATER","INDEPENDENT LIVING SERVICES","UTILITIES"
"http://statistics.data.gov.uk/id/local-authority/43UM","WOKING BOROUGH COUNCIL","13/07/2022","03/08/2022","0000479870/001","TRIMBIO LTD","40863300","1590.00","ASSET MANAGEMENT - FACILITIES MANAGEMENT","FACILITIES MANAGEMENT REPAIRS","D908","FACILITIES MANAGEMENT REPAIRS","ASSET MANAGEMENT","ARTS & LEISURE SERVICES"
"http://statistics.data.gov.uk/id/local-authority/43UM","WOKING BOROUGH COUNCIL","08/07/2022","03/08/2022","0000479872/001","EDF ENERGY CUSTOMERS PLC","01451600","0.79","HOUSING SERVICES - LANDLORDS EXPENSES","ELECTRICITY","D400","ELECTRICITY","HOUSING SERVICES","UTILITIES"
"http://statistics.data.gov.uk/id/local-authority/43UM","WOKING BOROUGH COUNCIL","11/07/2022","03/08/2022","0000479896/001","EDF ENERGY CUSTOMERS PLC","01451600","8.85","HOUSING SERVICES - LANDLORDS EXPENSES","GAS","D420","GAS","HOUSING SERVICES","UTILITIES"
"http://statistics.data.gov.uk/id/local-authority/43UM","WOKING BOROUGH COUNCIL","10/07/2022","03/08/2022","0000479897/001","E.ON ENERGY SOLUTIONS LIMITED","40941500","54.29","HOUSING SERVICES - LANDLORDS EXPENSES","GAS","D420","GAS","HOUSING SERVICES","UTILITIES"
"http://statistics.data.gov.uk/id/local-authority/43UM","WOKING BOROUGH COUNCIL","01/04/2022","03/08/2022","0000479904/001","AFFINITY WATER","01095900","3917.51","HOUSING SERVICES - LANDLORDS EXPENSES","WATER","D700","WATER","HOUSING SERVICES","UTILITIES"
"http://statistics.data.gov.uk/id/local-authority/43UM","WOKING BOROUGH COUNCIL","01/04/2022","03/08/2022","0000479905/001","AFFINITY WATER","01095900","2211.04","HOUSING SERVICES - LANDLORDS EXPENSES","WATER","D700","WATER","HOUSING SERVICES","UTILITIES"
"http://statistics.data.gov.uk/id/local-authority/43UM","WOKING BOROUGH COUNCIL","05/07/2022","03/08/2022","0000479919/001","SAVILLS (UK) LTD","01581900","50247.32","ASSET MANAGEMENT - WOLSEY PLACE","VOID COST","D124","VOID COST","ASSET MANAGEMENT","FACILITIES & MANAGEMENT SERVICES"
"http://statistics.data.gov.uk/id/local-authority/43UM","WOKING BOROUGH COUNCIL","12/07/2022","03/08/2022","0000479931/001","ISTA ENERGY SOLUTIONS LTD","40976000","56.07","HOUSING SERVICES - LANDLORDS EXPENSES","GAS","D420","GAS","HOUSING SERVICES","UTILITIES"
"http://statistics.data.gov.uk/id/local-authority/43UM","WOKING BOROUGH COUNCIL","08/07/2022","03/08/2022","0000479935/001","E.ON ENERGY SOLUTIONS LIMITED","40941500","102.83","HOUSING SERVICES - LANDLORDS EXPENSES","ELECTRICITY","D400","ELECTRICITY","HOUSING SERVICES","UTILITIES"
"http://statistics.data.gov.uk/id/local-authority/43UM","WOKING BOROUGH COUNCIL","08/07/2022","03/08/2022","0000479935/002","E.ON ENERGY SOLUTIONS LIMITED","40941500","44.50","HOUSING SERVICES - LANDLORDS EXPENSES","GAS","D420","GAS","HOUSING SERVICES","UTILITIES"
"http://statistics.data.gov.uk/id/local-authority/43UM","WOKING BOROUGH COUNCIL","09/07/2022","03/08/2022","0000479938/001","E.ON ENERGY SOLUTIONS LIMITED","40941500","86.22","HOUSING SERVICES - LANDLORDS EXPENSES","ELECTRICITY","D400","ELECTRICITY","HOUSING SERVICES","UTILITIES"
"http://statistics.data.gov.uk/id/local-authority/43UM","WOKING BOROUGH COUNCIL","09/07/2022","03/08/2022","0000479938/002","E.ON ENERGY SOLUTIONS LIMITED","40941500","9.24","HOUSING SERVICES - LANDLORDS EXPENSES","GAS","D420","GAS","HOUSING SERVICES","UTILITIES"
"http://statistics.data.gov.uk/id/local-authority/43UM","WOKING BOROUGH COUNCIL","18/07/2022","03/08/2022","0000479947/001","MS ZOE FLINT","41024600","77.25","CORPORATE STRATEGY - WOMENS SUPPORT CENTRE SURREY","VOLUNTEER EXPENSES","H313","VOLUNTEER EXPENSES","CORPORATE STRATEGY","SOCIAL COMMUNITY CARE SUP & SERV (ADULT)"
"http://statistics.data.gov.uk/id/local-authority/43UM","WOKING BOROUGH COUNCIL","12/07/2022","03/08/2022","0000479950/001","LAILA BRICE","40857000","20.00","CORPORATE STRATEGY - WAVS","INTERPRETATION & TRANSLATION","H636","INTERPRETATION & TRANSLATION","CORPORATE STRATEGY","HUMAN RESOURCES"
"http://statistics.data.gov.uk/id/local-authority/43UM","WOKING BOROUGH COUNCIL","18/07/2022","03/08/2022","0000479953/001","LUCY DUGGAN","40854200","40.00","INDEPENDENT LIVING SERVICES - SHEERWATER SOCIAL SUPPORT","OTHER CONSULTANTS","Q430","OTHER CONSULTANTS","INDEPENDENT LIVING SERVICES","ARTS & LEISURE SERVICES"
"http://statistics.data.gov.uk/id/local-authority/43UM","WOKING BOROUGH COUNCIL","18/07/2022","03/08/2022","0000479956/001","TINDLE NEWSPAPERS SURREY & HAMPSHIRE","40249900","100.00","CORPORATE STRATEGY - TOWN CENTRE FORUM","MARKETING","H406","MARKETING","CORPORATE STRATEGY","FACILITIES & MANAGEMENT SERVICES"
"http://statistics.data.gov.uk/id/local-authority/43UM","WOKING BOROUGH COUNCIL","18/07/2022","03/08/2022","0000479958/001","CORNERSTONE BARRISTERS","40966400","500.00","CORPORATE STRATEGY - DEMOCRATIC REPRESENTATION","MEMBERS TRAINING","H284","MEMBERS TRAINING","CORPORATE STRATEGY","LEGAL SERVICES"
"http://statistics.data.gov.uk/id/local-authority/43UM","WOKING BOROUGH COUNCIL","18/07/2022","03/08/2022","0000479959/001","CORNERSTONE BARRISTERS","40966400","1000.00","CORPORATE STRATEGY - DEMOCRATIC REPRESENTATION","MEMBERS TRAINING","H284","MEMBERS TRAINING","CORPORATE STRATEGY","LEGAL SERVICES"
"http://statistics.data.gov.uk/id/local-authority/43UM","WOKING BOROUGH COUNCIL","13/07/2022","03/08/2022","0000479969/001","CITIZENS ADVICE WOKING","00013200","50125.00","CORPORATE STRATEGY - GRANTS TO ORGANISATION","GRANTS","H100","GRANTS","CORPORATE STRATEGY","FINANCIAL SERVICES"
"http://statistics.data.gov.uk/id/local-authority/43UM","WOKING BOROUGH COUNCIL","16/07/2022","03/08/2022","0000480005/001","CHEESMAN BROTHERS LTD","01050500","13.25","INDEPENDENT LIVING SERVICES - MEALS SERVICE - ST MARYS","PROVISIONS","G410","PROVISIONS","INDEPENDENT LIVING SERVICES","CATERING"
"http://statistics.data.gov.uk/id/local-authority/43UM","WOKING BOROUGH COUNCIL","16/07/2022","03/08/2022","0000480005/002","CHEESMAN BROTHERS LTD","01050500","19.01","INDEPENDENT LIVING SERVICES - MEALS SERVICE -THE VYNE","PROVISIONS","G410","PROVISIONS","INDEPENDENT LIVING SERVICES","CATERING"
"http://statistics.data.gov.uk/id/local-authority/43UM","WOKING BOROUGH COUNCIL","16/07/2022","03/08/2022","0000480005/003","CHEESMAN BROTHERS LTD","01050500","64.92","INDEPENDENT LIVING SERVICES - MEALS SERVICE - BROCKHILL","PROVISIONS","G410","PROVISIONS","INDEPENDENT LIVING SERVICES","CATERING"
"http://statistics.data.gov.uk/id/local-authority/43UM","WOKING BOROUGH COUNCIL","16/07/2022","03/08/2022","0000480005/004","CHEESMAN BROTHERS LTD","01050500","18.99","INDEPENDENT LIVING SERVICES - MEALS SERVICE - HALE END COURT","PROVISIONS","G410","PROVISIONS","INDEPENDENT LIVING SERVICES","CATERING"
"http://statistics.data.gov.uk/id/local-authority/43UM","WOKING BOROUGH COUNCIL","16/07/2022","03/08/2022","0000480005/005","CHEESMAN BROTHERS LTD","01050500","64.43","INDEPENDENT LIVING SERVICES - MEALS SERVICE -THE VYNE","PROVISIONS","G410","PROVISIONS","INDEPENDENT LIVING SERVICES","CATERING"
"http://statistics.data.gov.uk/id/local-authority/43UM","WOKING BOROUGH COUNCIL","12/07/2022","03/08/2022","0000480017/001","MARIA CHAMBERS","40672100","20.00","CORPORATE STRATEGY - WAVS","INTERPRETATION & TRANSLATION","H636","INTERPRETATION & TRANSLATION","CORPORATE STRATEGY","CONSULTANCY"
"http://statistics.data.gov.uk/id/local-authority/43UM","WOKING BOROUGH COUNCIL","18/07/2022","03/08/2022","0000480030/001","GIBBS & DANDY","40335300","69.35","HOUSING SERVICES - HOME IMPS & BEN AGENCY","HANDYPERSON MATERIALS","G201","HANDYPERSON MATERIALS","HOUSING SERVICES","BUILDING CONSTRUCTION MATERIALS"
"http://statistics.data.gov.uk/id/local-authority/43UM","WOKING BOROUGH COUNCIL","18/07/2022","03/08/2022","0000480031/001","GIBBS & DANDY","40335300","75.84","HOUSING SERVICES - HOME IMPS & BEN AGENCY","HANDYPERSON MATERIALS","G201","HANDYPERSON MATERIALS","HOUSING SERVICES","BUILDING CONSTRUCTION MATERIALS"
"http://statistics.data.gov.uk/id/local-authority/43UM","WOKING BOROUGH COUNCIL","19/07/2022","03/08/2022","0000480046/001","BENTLEY MOBILITY SERVICES LTD","40462300","315.00","HOUSING SERVICES - DISABLED FACILITIES GRANTS","MANDATORY GRANTS","Q712","MANDATORY GRANTS","HOUSING SERVICES","WORKS (CONSTRUCTION REPAIR MAINTENANCE)"
"http://statistics.data.gov.uk/id/local-authority/43UM","WOKING BOROUGH COUNCIL","19/07/2022","03/08/2022","0000480048/001","GIBBS & DANDY","40335300","2.87","HOUSING SERVICES - HOME IMPS & BEN AGENCY","HANDYPERSON MATERIALS","G201","HANDYPERSON MATERIALS","HOUSING SERVICES","BUILDING CONSTRUCTION MATERIALS"
"http://statistics.data.gov.uk/id/local-authority/43UM","WOKING BOROUGH COUNCIL","19/07/2022","03/08/2022","0000480049/001","BENTLEY MOBILITY SERVICES LTD","40462300","315.00","HOUSING SERVICES - DISABLED FACILITIES GRANTS","MANDATORY GRANTS","Q712","MANDATORY GRANTS","HOUSING SERVICES","WORKS (CONSTRUCTION REPAIR MAINTENANCE)"
"http://statistics.data.gov.uk/id/local-authority/43UM","WOKING BOROUGH COUNCIL","27/05/2022","03/08/2022","0000480059/001","AIR SOCIAL","40813800","-960.00","CORPORATE STRATEGY - TOWN CENTRE FORUM","MARKETING","H406","MARKETING","CORPORATE STRATEGY","FINANCIAL SERVICES"
"http://statistics.data.gov.uk/id/local-authority/43UM","WOKING BOROUGH COUNCIL","13/07/2022","03/08/2022","0000480060/001","E.ON ENERGY SOLUTIONS LIMITED","40941500","88.21","HOUSING SERVICES - LANDLORDS EXPENSES","ELECTRICITY","D400","ELECTRICITY","HOUSING SERVICES","UTILITIES"
"http://statistics.data.gov.uk/id/local-authority/43UM","WOKING BOROUGH COUNCIL","13/07/2022","03/08/2022","0000480060/002","E.ON ENERGY SOLUTIONS LIMITED","40941500","11.30","HOUSING SERVICES - LANDLORDS EXPENSES","GAS","D420","GAS","HOUSING SERVICES","UTILITIES"
"http://statistics.data.gov.uk/id/local-authority/43UM","WOKING BOROUGH COUNCIL","09/06/2022","03/08/2022","0000480062/001","CMS TRAINING LTD","40408400","710.00","CORPORATE MANAGEMENT GROUP - STAFF TRAINING/GENERAL COSTS","TRAINING - CORPORATE","A910","TRAINING - CORPORATE","CORPORATE MANAGEMENT GROUP","HUMAN RESOURCES"
"http://statistics.data.gov.uk/id/local-authority/43UM","WOKING BOROUGH COUNCIL","20/07/2022","03/08/2022","0000480063/001","CMS TRAINING LTD","40408400","710.00","CORPORATE MANAGEMENT GROUP - STAFF TRAINING/GENERAL COSTS","TRAINING - CORPORATE","A910","TRAINING - CORPORATE","CORPORATE MANAGEMENT GROUP","HUMAN RESOURCES"
"http://statistics.data.gov.uk/id/local-authority/43UM","WOKING BOROUGH COUNCIL","20/07/2022","03/08/2022","0000480092/001","FRAZERS SURVEYORS LTD","00076400","250.00","HOUSING SERVICES - SALE COUNCIL HOUSES","OTHER CONSULTANTS","Q430","OTHER CONSULTANTS","HOUSING SERVICES","HOUSING MANAGEMENT"
"http://statistics.data.gov.uk/id/local-authority/43UM","WOKING BOROUGH COUNCIL","21/07/2022","03/08/2022","0000480095/001","WIGHTMAN & PARRISH LTD","40474600","41.04","INDEPENDENT LIVING SERVICES - ST MARY'S DAY CENTRE","CLEANING MATERIALS","D920","CLEANING MATERIALS","INDEPENDENT LIVING SERVICES","CLEANING & JANITORIAL"
"http://statistics.data.gov.uk/id/local-authority/43UM","WOKING BOROUGH COUNCIL","21/07/2022","03/08/2022","0000480095/002","WIGHTMAN & PARRISH LTD","40474600","76.64","INDEPENDENT LIVING SERVICES - ST MARY'S DAY CENTRE","CLEANING MATERIALS","D920","CLEANING MATERIALS","INDEPENDENT LIVING SERVICES","CLEANING & JANITORIAL"
"http://statistics.data.gov.uk/id/local-authority/43UM","WOKING BOROUGH COUNCIL","21/07/2022","03/08/2022","0000480095/003","WIGHTMAN & PARRISH LTD","40474600","28.82","INDEPENDENT LIVING SERVICES - ST MARY'S DAY CENTRE","CLEANING MATERIALS","D920","CLEANING MATERIALS","INDEPENDENT LIVING SERVICES","CLEANING & JANITORIAL"
"http://statistics.data.gov.uk/id/local-authority/43UM","WOKING BOROUGH COUNCIL","21/07/2022","03/08/2022","0000480095/004","WIGHTMAN & PARRISH LTD","40474600","6.00","INDEPENDENT LIVING SERVICES - ST MARY'S DAY CENTRE","CLEANING MATERIALS","D920","CLEANING MATERIALS","INDEPENDENT LIVING SERVICES","CLEANING & JANITORIAL"
"http://statistics.data.gov.uk/id/local-authority/43UM","WOKING BOROUGH COUNCIL","21/07/2022","03/08/2022","0000480095/005","WIGHTMAN & PARRISH LTD","40474600","8.00","INDEPENDENT LIVING SERVICES - ST MARY'S DAY CENTRE","CLEANING MATERIALS","D920","CLEANING MATERIALS","INDEPENDENT LIVING SERVICES","CLEANING & JANITORIAL"
"http://statistics.data.gov.uk/id/local-authority/43UM","WOKING BOROUGH COUNCIL","15/07/2022","03/08/2022","0000480097/001","SCCI ALPHATRACK LTD","40103400","-77.00","HOUSING SERVICES - RESPONSIVE REPARS HRA","HRA REPAIRS CONTRACTOR","D112","HRA REPAIRS CONTRACTOR","HOUSING SERVICES","WORKS (CONSTRUCTION REPAIR MAINTENANCE)"
"http://statistics.data.gov.uk/id/local-authority/43UM","WOKING BOROUGH COUNCIL","20/07/2022","03/08/2022","0000480100/001","GIBBS & DANDY","40335300","2.30","HOUSING SERVICES - HOME IMPS & BEN AGENCY","HANDYPERSON MATERIALS","G201","HANDYPERSON MATERIALS","HOUSING SERVICES","BUILDING CONSTRUCTION MATERIALS"
"http://statistics.data.gov.uk/id/local-authority/43UM","WOKING BOROUGH COUNCIL","21/07/2022","03/08/2022","0000480101/001","TINDLE NEWSPAPERS SURREY & HAMPSHIRE","40249900","100.00","CORPORATE STRATEGY - TOWN CENTRE FORUM","MARKETING","H406","MARKETING","CORPORATE STRATEGY","FACILITIES & MANAGEMENT SERVICES"
"http://statistics.data.gov.uk/id/local-authority/43UM","WOKING BOROUGH COUNCIL","13/07/2022","03/08/2022","0000480109/001","CASTLE WATER LIMITED","40650200","40.90","INDEPENDENT LIVING SERVICES - ALPHA RD COMMUNITY HALL","WATER","D700","WATER","INDEPENDENT LIVING SERVICES","UTILITIES"
"http://statistics.data.gov.uk/id/local-authority/43UM","WOKING BOROUGH COUNCIL","20/07/2022","03/08/2022","0000480113/001","BENTLEY MOBILITY SERVICES LTD","40462300","4500.00","HOUSING SERVICES - DISABLED FACILITIES GRANTS","MANDATORY GRANTS","Q712","MANDATORY GRANTS","HOUSING SERVICES","WORKS (CONSTRUCTION REPAIR MAINTENANCE)"
"http://statistics.data.gov.uk/id/local-authority/43UM","WOKING BOROUGH COUNCIL","21/07/2022","03/08/2022","0000480129/001","NRT GROUPNRT BUILDING SERVICES GROUP LIM","41040600","87952.11","HOUSING SERVICES - STATUTORU HRA","HRA STATUTORY","D116","HRA STATUTORY","HOUSING SERVICES","WORKS (CONSTRUCTION REPAIR MAINTENANCE)"
"http://statistics.data.gov.uk/id/local-authority/43UM","WOKING BOROUGH COUNCIL","21/07/2022","03/08/2022","0000480133/001","GIBBS & DANDY","40335300","379.90","HOUSING SERVICES - HOME IMPS & BEN AGENCY","HANDYPERSON MATERIALS","G201","HANDYPERSON MATERIALS","HOUSING SERVICES","BUILDING CONSTRUCTION MATERIALS"
"http://statistics.data.gov.uk/id/local-authority/43UM","WOKING BOROUGH COUNCIL","21/07/2022","03/08/2022","0000480134/001","GIBBS & DANDY","40335300","29.45","HOUSING SERVICES - HOME IMPS & BEN AGENCY","HANDYPERSON MATERIALS","G201","HANDYPERSON MATERIALS","HOUSING SERVICES","BUILDING CONSTRUCTION MATERIALS"
"http://statistics.data.gov.uk/id/local-authority/43UM","WOKING BOROUGH COUNCIL","22/07/2022","03/08/2022","0000480136/001","INSTITUTE OF REVENUES RATING & VALUATION","00034200","41.67","CORPORATE MANAGEMENT GROUP - STAFF TRAINING/GENERAL COSTS","TRAINING - POST ENTRY","A903","TRAINING - POST ENTRY","CORPORATE MANAGEMENT GROUP","HUMAN RESOURCES"
"http://statistics.data.gov.uk/id/local-authority/43UM","WOKING BOROUGH COUNCIL","16/07/2022","03/08/2022","0000480137/001","AFFINITY WATER","01095900","171.92","ASSET MANAGEMENT - HIF WTC F1 4-5 GUILDFORD RD OP","OTHER CONSULTANTS","Q430","OTHER CONSULTANTS","ASSET MANAGEMENT","UTILITIES"
"http://statistics.data.gov.uk/id/local-authority/43UM","WOKING BOROUGH COUNCIL","19/07/2022","03/08/2022","0000480138/001","SSE PLC","40619300","40.07","HOUSING SERVICES - LANDLORDS EXPENSES","ELECTRICITY","D400","ELECTRICITY","HOUSING SERVICES","UTILITIES"
"http://statistics.data.gov.uk/id/local-authority/43UM","WOKING BOROUGH COUNCIL","21/07/2022","03/08/2022","0000480140/001","SSE PLC","40619300","254.22","HOUSING SERVICES - LANDLORDS EXPENSES","ELECTRICITY","D400","ELECTRICITY","HOUSING SERVICES","UTILITIES"
"http://statistics.data.gov.uk/id/local-authority/43UM","WOKING BOROUGH COUNCIL","22/07/2022","03/08/2022","0000480142/001","SOUTH EAST EMPLOYERS","00263400","750.00","CORPORATE STRATEGY - DEMOCRATIC REPRESENTATION","MEMBERS TRAINING","H284","MEMBERS TRAINING","CORPORATE STRATEGY","HUMAN RESOURCES"
"http://statistics.data.gov.uk/id/local-authority/43UM","WOKING BOROUGH COUNCIL","19/07/2022","03/08/2022","0000480146/001","MIRIAM DA COSTA MACHADO","40680600","40.00","CORPORATE STRATEGY - WAVS","INTERPRETATION & TRANSLATION","H636","INTERPRETATION & TRANSLATION","CORPORATE STRATEGY","CONSULTANCY"
"http://statistics.data.gov.uk/id/local-authority/43UM","WOKING BOROUGH COUNCIL","22/07/2022","03/08/2022","0000480147/001","CHEESMAN BROTHERS LTD","01050500","38.10","INDEPENDENT LIVING SERVICES - MEALS SERVICE -THE VYNE","PROVISIONS","G410","PROVISIONS","INDEPENDENT LIVING SERVICES","CATERING"
"http://statistics.data.gov.uk/id/local-authority/43UM","WOKING BOROUGH COUNCIL","22/07/2022","03/08/2022","0000480147/002","CHEESMAN BROTHERS LTD","01050500","16.55","INDEPENDENT LIVING SERVICES - MEALS SERVICE - ST MARYS","PROVISIONS","G410","PROVISIONS","INDEPENDENT LIVING SERVICES","CATERING"
"http://statistics.data.gov.uk/id/local-authority/43UM","WOKING BOROUGH COUNCIL","22/07/2022","03/08/2022","0000480147/003","CHEESMAN BROTHERS LTD","01050500","18.65","INDEPENDENT LIVING SERVICES - MEALS SERVICE - HALE END COURT","PROVISIONS","G410","PROVISIONS","INDEPENDENT LIVING SERVICES","CATERING"
"http://statistics.data.gov.uk/id/local-authority/43UM","WOKING BOROUGH COUNCIL","22/07/2022","03/08/2022","0000480147/004","CHEESMAN BROTHERS LTD","01050500","14.91","INDEPENDENT LIVING SERVICES - MEALS SERVICE - BROCKHILL","PROVISIONS","G410","PROVISIONS","INDEPENDENT LIVING SERVICES","CATERING"
"http://statistics.data.gov.uk/id/local-authority/43UM","WOKING BOROUGH COUNCIL","22/07/2022","03/08/2022","0000480147/005","CHEESMAN BROTHERS LTD","01050500","17.67","INDEPENDENT LIVING SERVICES - MEALS SERVICE - BROCKHILL","PROVISIONS","G410","PROVISIONS","INDEPENDENT LIVING SERVICES","CATERING"
"http://statistics.data.gov.uk/id/local-authority/43UM","WOKING BOROUGH COUNCIL","22/07/2022","03/08/2022","0000480147/006","CHEESMAN BROTHERS LTD","01050500","10.62","INDEPENDENT LIVING SERVICES - MEALS SERVICE -THE VYNE","PROVISIONS","G410","PROVISIONS","INDEPENDENT LIVING SERVICES","CATERING"
"http://statistics.data.gov.uk/id/local-authority/43UM","WOKING BOROUGH COUNCIL","22/07/2022","03/08/2022","0000480147/007","CHEESMAN BROTHERS LTD","01050500","34.96","INDEPENDENT LIVING SERVICES - MEALS SERVICE - BROCKHILL","PROVISIONS","G410","PROVISIONS","INDEPENDENT LIVING SERVICES","CATERING"
"http://statistics.data.gov.uk/id/local-authority/43UM","WOKING BOROUGH COUNCIL","20/07/2022","03/08/2022","0000480160/001","R & A PLUMBING & HEATING","40457200","6130.00","HOUSING SERVICES - DISABLED FACILITIES GRANTS","MANDATORY GRANTS","Q712","MANDATORY GRANTS","HOUSING SERVICES","FINANCIAL SERVICES"
"http://statistics.data.gov.uk/id/local-authority/43UM","WOKING BOROUGH COUNCIL","22/07/2022","03/08/2022","0000480166/001","SSE PLC","40619300","369.40","HOUSING SERVICES - LANDLORDS EXPENSES","ELECTRICITY","D400","ELECTRICITY","HOUSING SERVICES","UTILITIES"
"http://statistics.data.gov.uk/id/local-authority/43UM","WOKING BOROUGH COUNCIL","21/07/2022","03/08/2022","0000480167/001","OYEZ PROFESSIONAL SERVICES LTD","40927700","233.51","CORPORATE STRATEGY - LEGAL","AD HOC WORK","H781","AD HOC WORK","CORPORATE STRATEGY","FINANCIAL SERVICES"
"http://statistics.data.gov.uk/id/local-authority/43UM","WOKING BOROUGH COUNCIL","22/07/2022","03/08/2022","0000480168/001","MOLE VALLEY DISTRICT COUNCIL","00547600","1072.00","NEIGHBOURHOOD SERVICES - REGULATION AND ENFORCEMENT","SECURITY OUTOFHRS CALL HANDLIN","H607","SECURITY OUTOFHRS CALL HANDLIN","NEIGHBOURHOOD SERVICES","INFORMATION COMMUNICATION TECHNOLOGY"
"http://statistics.data.gov.uk/id/local-authority/43UM","WOKING BOROUGH COUNCIL","20/07/2022","03/08/2022","0000480170/001","JILL TONKS","40817100","500.00","CORPORATE MANAGEMENT GROUP - STAFF TRAINING/GENERAL COSTS","TRAINING - CORPORATE","A910","TRAINING - CORPORATE","CORPORATE MANAGEMENT GROUP","FINANCIAL SERVICES"
"http://statistics.data.gov.uk/id/local-authority/43UM","WOKING BOROUGH COUNCIL","22/07/2022","03/08/2022","0000480173/001","GARY LEA","40308200","360.00","ASSET MANAGEMENT - WOKING OLD PALACE MAIN","GROUNDS MAINT-CONTRACTORS","D200","GROUNDS MAINT-CONTRACTORS","ASSET MANAGEMENT","FINANCIAL SERVICES"
"http://statistics.data.gov.uk/id/local-authority/43UM","WOKING BOROUGH COUNCIL","22/07/2022","03/08/2022","0000480175/001","GIBBS & DANDY","40335300","22.63","HOUSING SERVICES - HOME IMPS & BEN AGENCY","HANDYPERSON MATERIALS","G201","HANDYPERSON MATERIALS","HOUSING SERVICES","BUILDING CONSTRUCTION MATERIALS"
"http://statistics.data.gov.uk/id/local-authority/43UM","WOKING BOROUGH COUNCIL","21/07/2022","03/08/2022","0000480181/001","WPS UNITED KINGDOM LTD","40942300","-5113.65","NEIGHBOURHOOD SERVICES - CAR PARKS ADMIN&OPERATIONAL EX","TICKET MACHINE ANNUAL CONTRACT","D830","TICKET MACHINE ANNUAL CONTRACT","NEIGHBOURHOOD SERVICES","STREET & TRAFFIC MANAGEMENT"
"http://statistics.data.gov.uk/id/local-authority/43UM","WOKING BOROUGH COUNCIL","21/07/2022","03/08/2022","0000480184/001","CITIZENS ADVICE WOKING","00013200","49000.00","CORPORATE STRATEGY - HOUSEHOLD SUPPORT FUND","HSF FOOD CHILDREN","G155","HSF FOOD CHILDREN","CORPORATE STRATEGY","FINANCIAL SERVICES"
"http://statistics.data.gov.uk/id/local-authority/43UM","WOKING BOROUGH COUNCIL","22/07/2022","03/08/2022","0000480185/001","FARNBOROUGH CONTRACTING SERVICES","40501900","315.00","CORPORATE STRATEGY - LEISURE MANAGEMENT CONTRACT","R&M BUILDINGS - CONTRACTORS","D100","R&M BUILDINGS - CONTRACTORS","CORPORATE STRATEGY","WORKS (CONSTRUCTION REPAIR MAINTENANCE)"
"http://statistics.data.gov.uk/id/local-authority/43UM","WOKING BOROUGH COUNCIL","21/07/2022","03/08/2022","0000480186/001","SSE PLC","40619300","46.58","HOUSING SERVICES - LANDLORDS EXPENSES","ELECTRICITY","D400","ELECTRICITY","HOUSING SERVICES","UTILITIES"
"http://statistics.data.gov.uk/id/local-authority/43UM","WOKING BOROUGH COUNCIL","20/07/2022","03/08/2022","0000480187/001","SSE PLC","40619300","7.65","HOUSING SERVICES - LANDLORDS EXPENSES","ELECTRICITY","D400","ELECTRICITY","HOUSING SERVICES","UTILITIES"
"http://statistics.data.gov.uk/id/local-authority/43UM","WOKING BOROUGH COUNCIL","21/07/2022","03/08/2022","0000480188/001","SSE PLC","40619300","43.62","HOUSING SERVICES - LANDLORDS EXPENSES","ELECTRICITY","D400","ELECTRICITY","HOUSING SERVICES","UTILITIES"
"http://statistics.data.gov.uk/id/local-authority/43UM","WOKING BOROUGH COUNCIL","21/07/2022","03/08/2022","0000480189/001","SSE PLC","40619300","27.14","HOUSING SERVICES - LANDLORDS EXPENSES","GAS","D420","GAS","HOUSING SERVICES","UTILITIES"
"http://statistics.data.gov.uk/id/local-authority/43UM","WOKING BOROUGH COUNCIL","21/07/2022","03/08/2022","0000480190/001","SSE PLC","40619300","40.07","HOUSING SERVICES - LANDLORDS EXPENSES","ELECTRICITY","D400","ELECTRICITY","HOUSING SERVICES","UTILITIES"
"http://statistics.data.gov.uk/id/local-authority/43UM","WOKING BOROUGH COUNCIL","19/07/2022","03/08/2022","0000480192/001","MOUNTJOY LIMITED","01920300","835.09","INDEPENDENT LIVING SERVICES - COMMUNITY MEALS RELOCATION","MAIN CONTRACTOR","Q200","MAIN CONTRACTOR","INDEPENDENT LIVING SERVICES","WORKS (CONSTRUCTION REPAIR MAINTENANCE)"
"http://statistics.data.gov.uk/id/local-authority/43UM","WOKING BOROUGH COUNCIL","21/07/2022","03/08/2022","0000480193/001","EDF ENERGY CUSTOMERS PLC","01451600","12.42","HOUSING SERVICES - LANDLORDS EXPENSES","GAS","D420","GAS","HOUSING SERVICES","UTILITIES"
"http://statistics.data.gov.uk/id/local-authority/43UM","WOKING BOROUGH COUNCIL","29/06/2022","03/08/2022","0000480197/001","VENN GROUP LIMITED","40383900","484.20","REVENUES AND BENEFITS - BENEFIT SERVICES","TEMPORARY STAFF","A110","TEMPORARY STAFF","REVENUES AND BENEFITS","HUMAN RESOURCES"
"http://statistics.data.gov.uk/id/local-authority/43UM","WOKING BOROUGH COUNCIL","25/07/2022","03/08/2022","0000480199/001","CHASE INVENTORY SERVICES LIMITED","40239800","115.00","HOUSING SERVICES - TENANCY SUPPORT SCHEME","PROPERTY INSPECTIONS","H772","PROPERTY INSPECTIONS","HOUSING SERVICES","CONSULTANCY"
"http://statistics.data.gov.uk/id/local-authority/43UM","WOKING BOROUGH COUNCIL","25/07/2022","03/08/2022","0000480208/001","PROJECT 114 LTD","40370300","8440.00","HOUSING SERVICES - HOUSING OPTIONS","BED & BREAKFAST EXPENDITURE","H786","BED & BREAKFAST EXPENDITURE","HOUSING SERVICES","HOUSING MANAGEMENT"
"http://statistics.data.gov.uk/id/local-authority/43UM","WOKING BOROUGH COUNCIL","25/07/2022","03/08/2022","0000480210/001","PROJECT 114 LTD","40370300","700.00","HOUSING SERVICES - HOUSING OPTIONS","BED & BREAKFAST EXPENDITURE","H786","BED & BREAKFAST EXPENDITURE","HOUSING SERVICES","HOUSING MANAGEMENT"
"http://statistics.data.gov.uk/id/local-authority/43UM","WOKING BOROUGH COUNCIL","22/07/2022","03/08/2022","0000480213/001","SERCO LIMITED","01380600","12925.88","NEIGHBOURHOOD SERVICES - ENVIRONMENTAL MAINTENANCE CONT","EMC SERVICE CHARGE","T716","EMC SERVICE CHARGE","NEIGHBOURHOOD SERVICES","CLEANING & JANITORIAL"
"http://statistics.data.gov.uk/id/local-authority/43UM","WOKING BOROUGH COUNCIL","25/07/2022","03/08/2022","0000480214/001","ALLSOP & FRANCIS LTD","00963800","77.96","HOUSING SERVICES - RESPONSIVE REPARS HRA","HRA REPAIRS CONTRACTOR","D112","HRA REPAIRS CONTRACTOR","HOUSING SERVICES","DOMESTIC GOODS"
"http://statistics.data.gov.uk/id/local-authority/43UM","WOKING BOROUGH COUNCIL","22/07/2022","03/08/2022","0000480216/001","SERCO LIMITED","01380600","820.93","NEIGHBOURHOOD SERVICES - PARKS-GENERAL","GROUNDS MAINT-CONTRACTORS","D200","GROUNDS MAINT-CONTRACTORS","NEIGHBOURHOOD SERVICES","CLEANING & JANITORIAL"
"http://statistics.data.gov.uk/id/local-authority/43UM","WOKING BOROUGH COUNCIL","22/07/2022","03/08/2022","0000480216/002","SERCO LIMITED","01380600","89.24","NEIGHBOURHOOD SERVICES - PARKS-GENERAL","PLAY EQUIPMENT","G167","PLAY EQUIPMENT","NEIGHBOURHOOD SERVICES","CLEANING & JANITORIAL"
"http://statistics.data.gov.uk/id/local-authority/43UM","WOKING BOROUGH COUNCIL","22/07/2022","03/08/2022","0000480216/003","SERCO LIMITED","01380600","581.71","NEIGHBOURHOOD SERVICES - STREET FURNITURE","GROUNDS MAINT-CONTRACTORS","D200","GROUNDS MAINT-CONTRACTORS","NEIGHBOURHOOD SERVICES","CLEANING & JANITORIAL"
"http://statistics.data.gov.uk/id/local-authority/43UM","WOKING BOROUGH COUNCIL","22/07/2022","03/08/2022","0000480219/001","SERCO LIMITED","01380600","357.50","NEIGHBOURHOOD SERVICES - STREET FURNITURE","GROUNDS MAINT-CONTRACTORS","D200","GROUNDS MAINT-CONTRACTORS","NEIGHBOURHOOD SERVICES","CLEANING & JANITORIAL"
"http://statistics.data.gov.uk/id/local-authority/43UM","WOKING BOROUGH COUNCIL","22/07/2022","03/08/2022","0000480220/001","SERCO LIMITED","01380600","5175.00","NEIGHBOURHOOD SERVICES - STREET FURNITURE","GROUNDS MAINT-CONTRACTORS","D200","GROUNDS MAINT-CONTRACTORS","NEIGHBOURHOOD SERVICES","CLEANING & JANITORIAL"
"http://statistics.data.gov.uk/id/local-authority/43UM","WOKING BOROUGH COUNCIL","25/07/2022","03/08/2022","0000480227/001","WERONIKA KLAPTOCZ","40669000","24.70","CORPORATE STRATEGY - WAVS","INTERPRETATION & TRANSLATION","H636","INTERPRETATION & TRANSLATION","CORPORATE STRATEGY","CONSULTANCY"
"http://statistics.data.gov.uk/id/local-authority/43UM","WOKING BOROUGH COUNCIL","25/07/2022","03/08/2022","0000480230/001","WOKING SHOPMOBILITY","00591100","2812.50","CORPORATE STRATEGY - GRANTS TO ORGANISATION","GRANTS","H100","GRANTS","CORPORATE STRATEGY","FINANCIAL SERVICES"
"http://statistics.data.gov.uk/id/local-authority/43UM","WOKING BOROUGH COUNCIL","25/07/2022","03/08/2022","0000480231/001","HANAN ALKADHI","40596100","20.00","CORPORATE STRATEGY - WAVS","INTERPRETATION & TRANSLATION","H636","INTERPRETATION & TRANSLATION","CORPORATE STRATEGY","CONSULTANCY"
"http://statistics.data.gov.uk/id/local-authority/43UM","WOKING BOROUGH COUNCIL","22/07/2022","03/08/2022","0000480235/001","WOKING TALKING NEWSPAPER","41030600","62.23","CORPORATE STRATEGY - GRANTS TO ORGANISATION","GRANTS","H100","GRANTS","CORPORATE STRATEGY","LEGAL SERVICES"
"http://statistics.data.gov.uk/id/local-authority/43UM","WOKING BOROUGH COUNCIL","19/07/2022","03/08/2022","0000480236/001","SCOTTISHPOWER","01563000","23.41","HOUSING SERVICES - LANDLORDS EXPENSES","ELECTRICITY","D400","ELECTRICITY","HOUSING SERVICES","UTILITIES"
"http://statistics.data.gov.uk/id/local-authority/43UM","WOKING BOROUGH COUNCIL","19/07/2022","03/08/2022","0000480236/002","SCOTTISHPOWER","01563000","19.71","HOUSING SERVICES - LANDLORDS EXPENSES","GAS","D420","GAS","HOUSING SERVICES","UTILITIES"
"http://statistics.data.gov.uk/id/local-authority/43UM","WOKING BOROUGH COUNCIL","15/07/2022","03/08/2022","0000480238/001","MARIA DANUTA JURENKO","40665500","90.40","CORPORATE STRATEGY - WAVS","INTERPRETATION & TRANSLATION","H636","INTERPRETATION & TRANSLATION","CORPORATE STRATEGY","CONSULTANCY"
"http://statistics.data.gov.uk/id/local-authority/43UM","WOKING BOROUGH COUNCIL","11/07/2022","03/08/2022","0000480239/001","JULIET-ANN BATISTA","40690700","20.00","CORPORATE STRATEGY - WAVS","INTERPRETATION & TRANSLATION","H636","INTERPRETATION & TRANSLATION","CORPORATE STRATEGY","CONSULTANCY"
"http://statistics.data.gov.uk/id/local-authority/43UM","WOKING BOROUGH COUNCIL","23/05/2022","03/08/2022","0000480240/001","MARSTON BOOK SERVICES LTD","00497200","317.95","CORPORATE STRATEGY - LEGAL","BOOKS MAPS PLANS","G650","BOOKS MAPS PLANS","CORPORATE STRATEGY","LEGAL SERVICES"
"http://statistics.data.gov.uk/id/local-authority/43UM","WOKING BOROUGH COUNCIL","25/07/2022","03/08/2022","0000480242/001","HARRY LAMB","01000800","320.00","CORPORATE STRATEGY - PUBLIC RELATIONS","PUBLICATIONS","G606","PUBLICATIONS","CORPORATE STRATEGY","FACILITIES & MANAGEMENT SERVICES"
"http://statistics.data.gov.uk/id/local-authority/43UM","WOKING BOROUGH COUNCIL","26/07/2022","03/08/2022","0000480247/001","ANTHONY GURR PHOTOGRAPHY","40859700","250.00","CORPORATE STRATEGY - TOWN CENTRE FORUM","MARKETING","H406","MARKETING","CORPORATE STRATEGY","ARTS & LEISURE SERVICES"
"http://statistics.data.gov.uk/id/local-authority/43UM","WOKING BOROUGH COUNCIL","18/07/2022","03/08/2022","0000480248/001","SCCI ALPHATRACK LTD","40103400","85.00","HOUSING SERVICES - RESPONSIVE REPARS HRA","HRA REPAIRS CONTRACTOR","D112","HRA REPAIRS CONTRACTOR","HOUSING SERVICES","WORKS (CONSTRUCTION REPAIR MAINTENANCE)"
"http://statistics.data.gov.uk/id/local-authority/43UM","WOKING BOROUGH COUNCIL","23/07/2022","03/08/2022","0000480249/001","BOLLSCAR BUILDERS LTD","41003800","3686.20","HOUSING SERVICES - RESPONSIVE REPARS HRA","HRA REPAIRS CONTRACTOR","D112","HRA REPAIRS CONTRACTOR","HOUSING SERVICES","CLEANING & JANITORIAL"
"http://statistics.data.gov.uk/id/local-authority/43UM","WOKING BOROUGH COUNCIL","26/07/2022","03/08/2022","0000480250/001","BUILDIMAGE LTD","40630900","858.99","HOUSING SERVICES - RESPONSIVE REPARS HRA","HRA REPAIRS CONTRACTOR","D112","HRA REPAIRS CONTRACTOR","HOUSING SERVICES","FURNITURE & SOFT FURNISHINGS"
"http://statistics.data.gov.uk/id/local-authority/43UM","WOKING BOROUGH COUNCIL","22/07/2022","03/08/2022","0000480251/001","BOLLSCAR BUILDERS LTD","41003800","4355.76","HOUSING SERVICES - RESPONSIVE REPARS HRA","HRA REPAIRS CONTRACTOR","D112","HRA REPAIRS CONTRACTOR","HOUSING SERVICES","CLEANING & JANITORIAL"
"http://statistics.data.gov.uk/id/local-authority/43UM","WOKING BOROUGH COUNCIL","26/07/2022","03/08/2022","0000480252/001","BUILDIMAGE LTD","40630900","12786.35","HOUSING SERVICES - RESPONSIVE REPARS HRA","HRA REPAIRS CONTRACTOR","D112","HRA REPAIRS CONTRACTOR","HOUSING SERVICES","FURNITURE & SOFT FURNISHINGS"
"http://statistics.data.gov.uk/id/local-authority/43UM","WOKING BOROUGH COUNCIL","26/07/2022","03/08/2022","0000480253/001","BUILDIMAGE LTD","40630900","17090.43","HOUSING SERVICES - RESPONSIVE REPARS HRA","HRA REPAIRS CONTRACTOR","D112","HRA REPAIRS CONTRACTOR","HOUSING SERVICES","FURNITURE & SOFT FURNISHINGS"
"http://statistics.data.gov.uk/id/local-authority/43UM","WOKING BOROUGH COUNCIL","26/07/2022","03/08/2022","0000480254/001","BUILDIMAGE LTD","40630900","5466.06","HOUSING SERVICES - RESPONSIVE REPARS HRA","HRA REPAIRS CONTRACTOR","D112","HRA REPAIRS CONTRACTOR","HOUSING SERVICES","FURNITURE & SOFT FURNISHINGS"
"http://statistics.data.gov.uk/id/local-authority/43UM","WOKING BOROUGH COUNCIL","26/07/2022","03/08/2022","0000480255/001","BUILDIMAGE LTD","40630900","7841.01","HOUSING SERVICES - RESPONSIVE REPARS HRA","HRA REPAIRS CONTRACTOR","D112","HRA REPAIRS CONTRACTOR","HOUSING SERVICES","FURNITURE & SOFT FURNISHINGS"
"http://statistics.data.gov.uk/id/local-authority/43UM","WOKING BOROUGH COUNCIL","26/07/2022","03/08/2022","0000480256/001","BUILDIMAGE LTD","40630900","4613.25","HOUSING SERVICES - RESPONSIVE REPARS HRA","HRA REPAIRS CONTRACTOR","D112","HRA REPAIRS CONTRACTOR","HOUSING SERVICES","FURNITURE & SOFT FURNISHINGS"
"http://statistics.data.gov.uk/id/local-authority/43UM","WOKING BOROUGH COUNCIL","26/07/2022","03/08/2022","0000480257/001","BUILDIMAGE LTD","40630900","8293.66","HOUSING SERVICES - RESPONSIVE REPARS HRA","HRA REPAIRS CONTRACTOR","D112","HRA REPAIRS CONTRACTOR","HOUSING SERVICES","FURNITURE & SOFT FURNISHINGS"
"http://statistics.data.gov.uk/id/local-authority/43UM","WOKING BOROUGH COUNCIL","26/07/2022","03/08/2022","0000480258/001","BUILDIMAGE LTD","40630900","1710.21","HOUSING SERVICES - TEMPORARY ACCOMMODATION","SCHED 1A RESPONSIVE REPAIRS","D165","SCHED 1A RESPONSIVE REPAIRS","HOUSING SERVICES","FURNITURE & SOFT FURNISHINGS"
"http://statistics.data.gov.uk/id/local-authority/43UM","WOKING BOROUGH COUNCIL","26/07/2022","03/08/2022","0000480259/001","BUILDIMAGE LTD","40630900","3144.94","HOUSING SERVICES - TEMPORARY ACCOMMODATION","SCHED 1A RESPONSIVE REPAIRS","D165","SCHED 1A RESPONSIVE REPAIRS","HOUSING SERVICES","FURNITURE & SOFT FURNISHINGS"
"http://statistics.data.gov.uk/id/local-authority/43UM","WOKING BOROUGH COUNCIL","26/07/2022","03/08/2022","0000480260/001","TBB DESIGN","40845600","215.00","CORPORATE STRATEGY - PEACE GARDEN COMMERMORATIVE SER","PRINTING EXTERNAL","G600","PRINTING EXTERNAL","CORPORATE STRATEGY","LEGAL SERVICES"
"http://statistics.data.gov.uk/id/local-authority/43UM","WOKING BOROUGH COUNCIL","22/07/2022","03/08/2022","0000480262/001","HEADLINE DESIGN & PRINT","00016900","9.30","CORPORATE STRATEGY - TOWN CENTRE FORUM","MARKETING","H406","MARKETING","CORPORATE STRATEGY","FINANCIAL SERVICES"
"http://statistics.data.gov.uk/id/local-authority/43UM","WOKING BOROUGH COUNCIL","25/07/2022","03/08/2022","0000480263/001","GIBBS & DANDY","40335300","161.60","HOUSING SERVICES - HOME IMPS & BEN AGENCY","HANDYPERSON MATERIALS","G201","HANDYPERSON MATERIALS","HOUSING SERVICES","BUILDING CONSTRUCTION MATERIALS"
"http://statistics.data.gov.uk/id/local-authority/43UM","WOKING BOROUGH COUNCIL","22/07/2022","03/08/2022","0000480264/001","MOLE VALLEY DISTRICT COUNCIL","00547600","305.59","CORPORATE STRATEGY - CUSTOMER SERVICES","ANSWERING SERVICE","G853","ANSWERING SERVICE","CORPORATE STRATEGY","INFORMATION COMMUNICATION TECHNOLOGY"
"http://statistics.data.gov.uk/id/local-authority/43UM","WOKING BOROUGH COUNCIL","26/07/2022","03/08/2022","0000480265/001","GIBBS & DANDY","40335300","214.69","HOUSING SERVICES - HOME IMPS & BEN AGENCY","HANDYPERSON MATERIALS","G201","HANDYPERSON MATERIALS","HOUSING SERVICES","BUILDING CONSTRUCTION MATERIALS"
"http://statistics.data.gov.uk/id/local-authority/43UM","WOKING BOROUGH COUNCIL","25/07/2022","03/08/2022","0000480269/001","SCCI ALPHATRACK LTD","40103400","386.00","HOUSING SERVICES - RESPONSIVE REPARS HRA","HRA REPAIRS CONTRACTOR","D112","HRA REPAIRS CONTRACTOR","HOUSING SERVICES","WORKS (CONSTRUCTION REPAIR MAINTENANCE)"
"http://statistics.data.gov.uk/id/local-authority/43UM","WOKING BOROUGH COUNCIL","25/07/2022","03/08/2022","0000480271/001","CASTLE WATER LIMITED","40650200","53.65","ASSET MANAGEMENT - TOWN CENTRE LEISURE","WATER","D700","WATER","ASSET MANAGEMENT","UTILITIES"
"http://statistics.data.gov.uk/id/local-authority/43UM","WOKING BOROUGH COUNCIL","26/07/2022","03/08/2022","0000480273/001","PEREGA LIMITED","40861600","475.00","ASSET MANAGEMENT - PROPERTY SERVICES","CONSULTANTS","H670","CONSULTANTS","ASSET MANAGEMENT","STREET & TRAFFIC MANAGEMENT"
"http://statistics.data.gov.uk/id/local-authority/43UM","WOKING BOROUGH COUNCIL","26/07/2022","03/08/2022","0000480274/001","OFFICE SPECIALTIES LTD","40911900","3.90","ASSET MANAGEMENT - CIVIC OFFICES","CONSUMABLES","G630","CONSUMABLES","ASSET MANAGEMENT","STATIONERY"
"http://statistics.data.gov.uk/id/local-authority/43UM","WOKING BOROUGH COUNCIL","18/07/2022","03/08/2022","0000480276/001","MARTIN CONWAY","01025900","455.00","HOUSING SERVICES - HOUSING OPTIONS","BED & BREAKFAST EXPENDITURE","H786","BED & BREAKFAST EXPENDITURE","HOUSING SERVICES","HOUSING MANAGEMENT"
"http://statistics.data.gov.uk/id/local-authority/43UM","WOKING BOROUGH COUNCIL","18/07/2022","03/08/2022","0000480277/001","MARTIN CONWAY","01025900","385.00","HOUSING SERVICES - HOUSING OPTIONS","BED & BREAKFAST EXPENDITURE","H786","BED & BREAKFAST EXPENDITURE","HOUSING SERVICES","HOUSING MANAGEMENT"
"http://statistics.data.gov.uk/id/local-authority/43UM","WOKING BOROUGH COUNCIL","18/07/2022","03/08/2022","0000480278/001","MARTIN CONWAY","01025900","385.00","HOUSING SERVICES - HOUSING OPTIONS","BED & BREAKFAST EXPENDITURE","H786","BED & BREAKFAST EXPENDITURE","HOUSING SERVICES","HOUSING MANAGEMENT"
"http://statistics.data.gov.uk/id/local-authority/43UM","WOKING BOROUGH COUNCIL","18/07/2022","03/08/2022","0000480279/001","MARTIN CONWAY","01025900","385.00","HOUSING SERVICES - HOUSING OPTIONS","BED & BREAKFAST EXPENDITURE","H786","BED & BREAKFAST EXPENDITURE","HOUSING SERVICES","HOUSING MANAGEMENT"
"http://statistics.data.gov.uk/id/local-authority/43UM","WOKING BOROUGH COUNCIL","18/07/2022","03/08/2022","0000480280/001","MARTIN CONWAY","01025900","455.00","HOUSING SERVICES - HOUSING OPTIONS","BED & BREAKFAST EXPENDITURE","H786","BED & BREAKFAST EXPENDITURE","HOUSING SERVICES","HOUSING MANAGEMENT"
"http://statistics.data.gov.uk/id/local-authority/43UM","WOKING BOROUGH COUNCIL","18/07/2022","03/08/2022","0000480281/001","MARTIN CONWAY","01025900","60.00","HOUSING SERVICES - HOUSING OPTIONS","BED & BREAKFAST EXPENDITURE","H786","BED & BREAKFAST EXPENDITURE","HOUSING SERVICES","HOUSING MANAGEMENT"
"http://statistics.data.gov.uk/id/local-authority/43UM","WOKING BOROUGH COUNCIL","18/07/2022","03/08/2022","0000480282/001","MARTIN CONWAY","01025900","330.00","HOUSING SERVICES - HOUSING OPTIONS","BED & BREAKFAST EXPENDITURE","H786","BED & BREAKFAST EXPENDITURE","HOUSING SERVICES","HOUSING MANAGEMENT"
"http://statistics.data.gov.uk/id/local-authority/43UM","WOKING BOROUGH COUNCIL","25/07/2022","03/08/2022","0000480283/001","CHASE INVENTORY SERVICES LIMITED","40239800","115.00","HOUSING SERVICES - TENANCY SUPPORT SCHEME","PROPERTY INSPECTIONS","H772","PROPERTY INSPECTIONS","HOUSING SERVICES","CONSULTANCY"
"http://statistics.data.gov.uk/id/local-authority/43UM","WOKING BOROUGH COUNCIL","25/07/2022","03/08/2022","0000480284/001","CHASE INVENTORY SERVICES LIMITED","40239800","85.00","HOUSING SERVICES - TENANCY SUPPORT SCHEME","PROPERTY INSPECTIONS","H772","PROPERTY INSPECTIONS","HOUSING SERVICES","CONSULTANCY"
"http://statistics.data.gov.uk/id/local-authority/43UM","WOKING BOROUGH COUNCIL","22/07/2022","03/08/2022","0000480287/001","REAL ESTATE SERVICES","41041500","400.00","ASSET MANAGEMENT - PROPERTY SERVICES","CONSULTANTS","H670","CONSULTANTS","ASSET MANAGEMENT","FACILITIES & MANAGEMENT SERVICES"
"http://statistics.data.gov.uk/id/local-authority/43UM","WOKING BOROUGH COUNCIL","26/07/2022","03/08/2022","0000480289/001","LALEH MUSTAFA","40671400","20.00","CORPORATE STRATEGY - WAVS","INTERPRETATION & TRANSLATION","H636","INTERPRETATION & TRANSLATION","CORPORATE STRATEGY","CONSULTANCY"
"http://statistics.data.gov.uk/id/local-authority/43UM","WOKING BOROUGH COUNCIL","26/07/2022","03/08/2022","0000480290/001","MARIA CHAMBERS","40672100","47.53","CORPORATE STRATEGY - WAVS","INTERPRETATION & TRANSLATION","H636","INTERPRETATION & TRANSLATION","CORPORATE STRATEGY","CONSULTANCY"
"http://statistics.data.gov.uk/id/local-authority/43UM","WOKING BOROUGH COUNCIL","25/07/2022","03/08/2022","0000480291/001","MR MUHAMMAD SAEED BAIG","40939300","1049.85","HOUSING SERVICES - LETS RENT SCHEME","CONNECT BOND CLAIMS","H713","CONNECT BOND CLAIMS","HOUSING SERVICES","FINANCIAL SERVICES"
"http://statistics.data.gov.uk/id/local-authority/43UM","WOKING BOROUGH COUNCIL","27/07/2022","03/08/2022","0000480295/001","ARTON MONOSEAL LTD","40470800","175.00","HOUSING SERVICES - DISABLED FACILITIES GRANTS","MANDATORY GRANTS","Q712","MANDATORY GRANTS","HOUSING SERVICES","WORKS (CONSTRUCTION REPAIR MAINTENANCE)"
"http://statistics.data.gov.uk/id/local-authority/43UM","WOKING BOROUGH COUNCIL","27/07/2022","03/08/2022","0000480295/002","ARTON MONOSEAL LTD","40470800","175.00","HOUSING SERVICES - DISABLED FACILITIES GRANTS","MANDATORY GRANTS","Q712","MANDATORY GRANTS","HOUSING SERVICES","WORKS (CONSTRUCTION REPAIR MAINTENANCE)"
"http://statistics.data.gov.uk/id/local-authority/43UM","WOKING BOROUGH COUNCIL","27/07/2022","03/08/2022","0000480295/003","ARTON MONOSEAL LTD","40470800","175.00","HOUSING SERVICES - DISABLED FACILITIES GRANTS","MANDATORY GRANTS","Q712","MANDATORY GRANTS","HOUSING SERVICES","WORKS (CONSTRUCTION REPAIR MAINTENANCE)"
"http://statistics.data.gov.uk/id/local-authority/43UM","WOKING BOROUGH COUNCIL","30/06/2022","03/08/2022","0000480300/001","WPS UNITED KINGDOM LTD","40942300","7346.40","ASSET MANAGEMENT - CAR PARK MANAGEMENT SYSTEM","PURCHASE OF EQUIPMENT","Q510","PURCHASE OF EQUIPMENT","ASSET MANAGEMENT","STREET & TRAFFIC MANAGEMENT"
"http://statistics.data.gov.uk/id/local-authority/43UM","WOKING BOROUGH COUNCIL","27/07/2022","03/08/2022","0000480302/001","CHASE INVENTORY SERVICES LIMITED","40239800","85.00","HOUSING SERVICES - TENANCY SUPPORT SCHEME","PROPERTY INSPECTIONS","H772","PROPERTY INSPECTIONS","HOUSING SERVICES","CONSULTANCY"
"http://statistics.data.gov.uk/id/local-authority/43UM","WOKING BOROUGH COUNCIL","26/07/2022","03/08/2022","0000480303/001","REDWOOD TREE SERVICES LTD","40914100","1500.00","NEIGHBOURHOOD SERVICES - STREET FURNITURE","GROUNDS MAINT-CONTRACTORS","D200","GROUNDS MAINT-CONTRACTORS","NEIGHBOURHOOD SERVICES","ENVIRONMENTAL SERVICES"
"http://statistics.data.gov.uk/id/local-authority/43UM","WOKING BOROUGH COUNCIL","09/03/2022","03/08/2022","0000480305/001","RSM DOMESTIC APPLIANCES","00582300","353.34","HOUSING SERVICES - HOUSING OPTIONS","FURNITURE - NEW","G300","FURNITURE - NEW","HOUSING SERVICES","DOMESTIC GOODS"
"http://statistics.data.gov.uk/id/local-authority/43UM","WOKING BOROUGH COUNCIL","27/07/2022","03/08/2022","0000480307/001","PGH PEST CONTROL AND PREVENTION","40855200","3816.00","ASSET MANAGEMENT - ANCHOR PUBLIC HOUSE","R&M BUILDINGS - CONTRACTORS","D100","R&M BUILDINGS - CONTRACTORS","ASSET MANAGEMENT","ENVIRONMENTAL SERVICES"
"http://statistics.data.gov.uk/id/local-authority/43UM","WOKING BOROUGH COUNCIL","27/07/2022","03/08/2022","0000480308/001","DOMINO BUILDING SERVICES LTD","40996200","2805.00","ASSET MANAGEMENT - LAND AT BYFLEET","GROUNDS MAINT-CONTRACTORS","D200","GROUNDS MAINT-CONTRACTORS","ASSET MANAGEMENT","FACILITIES & MANAGEMENT SERVICES"
"http://statistics.data.gov.uk/id/local-authority/43UM","WOKING BOROUGH COUNCIL","25/07/2022","03/08/2022","0000480309/001","BENTLEY MOBILITY SERVICES LTD","40462300","4455.00","HOUSING SERVICES - DISABLED FACILITIES GRANTS","MANDATORY GRANTS","Q712","MANDATORY GRANTS","HOUSING SERVICES","WORKS (CONSTRUCTION REPAIR MAINTENANCE)"
"http://statistics.data.gov.uk/id/local-authority/43UM","WOKING BOROUGH COUNCIL","27/07/2022","03/08/2022","0000480310/001","MOTIVATION BY MUSIC","40821100","360.00","NEIGHBOURHOOD SERVICES - ARTS DEVELOPMENT","GRANTS","H100","GRANTS","NEIGHBOURHOOD SERVICES","FINANCIAL SERVICES"
"http://statistics.data.gov.uk/id/local-authority/43UM","WOKING BOROUGH COUNCIL","27/07/2022","03/08/2022","0000480316/001","OYSTER PARTNERSHIP","40443300","2022.00","ASSET MANAGEMENT - BUILDING SERVICES","TEMPORARY STAFF","A110","TEMPORARY STAFF","ASSET MANAGEMENT","HUMAN RESOURCES"
"http://statistics.data.gov.uk/id/local-authority/43UM","WOKING BOROUGH COUNCIL","26/07/2022","03/08/2022","0000480318/001","THAMESWEY ENERGY LIMITED","01142300","50020.69","HOUSING SERVICES - ENERGY","TEL ENERGY SERVICE CHARGE","D180","TEL ENERGY SERVICE CHARGE","HOUSING SERVICES","UTILITIES"
"http://statistics.data.gov.uk/id/local-authority/43UM","WOKING BOROUGH COUNCIL","26/07/2022","03/08/2022","0000480318/002","THAMESWEY ENERGY LIMITED","01142300","25389.29","CORPORATE STRATEGY - LEISURE MANAGEMENT CONTRACT","TEL ENERGY SERVICE CHARGE","D180","TEL ENERGY SERVICE CHARGE","CORPORATE STRATEGY","UTILITIES"
"http://statistics.data.gov.uk/id/local-authority/43UM","WOKING BOROUGH COUNCIL","26/07/2022","03/08/2022","0000480318/003","THAMESWEY ENERGY LIMITED","01142300","378.95","NEIGHBOURHOOD SERVICES - PARKS-GENERAL","TEL ENERGY SERVICE CHARGE","D180","TEL ENERGY SERVICE CHARGE","NEIGHBOURHOOD SERVICES","UTILITIES"
"http://statistics.data.gov.uk/id/local-authority/43UM","WOKING BOROUGH COUNCIL","26/07/2022","03/08/2022","0000480319/001","THAMESWEY ENERGY LIMITED","01142300","9175.13","CORPORATE STRATEGY - LEISURE MANAGEMENT CONTRACT","TEL ENERGY SERVICE CHARGE","D180","TEL ENERGY SERVICE CHARGE","CORPORATE STRATEGY","UTILITIES"
"http://statistics.data.gov.uk/id/local-authority/43UM","WOKING BOROUGH COUNCIL","26/07/2022","03/08/2022","0000480319/002","THAMESWEY ENERGY LIMITED","01142300","10659.21","CORPORATE STRATEGY - LEISURE MANAGEMENT CONTRACT","TEL ENERGY SERVICE CHARGE","D180","TEL ENERGY SERVICE CHARGE","CORPORATE STRATEGY","UTILITIES"
"http://statistics.data.gov.uk/id/local-authority/43UM","WOKING BOROUGH COUNCIL","26/07/2022","03/08/2022","0000480319/003","THAMESWEY ENERGY LIMITED","01142300","1236.24","ASSET MANAGEMENT - CIVIC OFFICES","TEL ENERGY SERVICE CHARGE","D180","TEL ENERGY SERVICE CHARGE","ASSET MANAGEMENT","UTILITIES"
"http://statistics.data.gov.uk/id/local-authority/43UM","WOKING BOROUGH COUNCIL","26/07/2022","03/08/2022","0000480319/004","THAMESWEY ENERGY LIMITED","01142300","3436.43","HOUSING SERVICES - ENERGY","TEL ENERGY SERVICE CHARGE","D180","TEL ENERGY SERVICE CHARGE","HOUSING SERVICES","UTILITIES"
"http://statistics.data.gov.uk/id/local-authority/43UM","WOKING BOROUGH COUNCIL","26/07/2022","03/08/2022","0000480319/005","THAMESWEY ENERGY LIMITED","01142300","3852.71","CORPORATE STRATEGY - LEISURE MANAGEMENT CONTRACT","TEL ENERGY SERVICE CHARGE","D180","TEL ENERGY SERVICE CHARGE","CORPORATE STRATEGY","UTILITIES"
"http://statistics.data.gov.uk/id/local-authority/43UM","WOKING BOROUGH COUNCIL","26/07/2022","03/08/2022","0000480319/006","THAMESWEY ENERGY LIMITED","01142300","4083.08","HOUSING SERVICES - ENERGY","TEL ENERGY SERVICE CHARGE","D180","TEL ENERGY SERVICE CHARGE","HOUSING SERVICES","UTILITIES"
"http://statistics.data.gov.uk/id/local-authority/43UM","WOKING BOROUGH COUNCIL","26/07/2022","03/08/2022","0000480319/007","THAMESWEY ENERGY LIMITED","01142300","3005.28","INDEPENDENT LIVING SERVICES - MEALS SERVICE - BROCKHILL","TEL ENERGY SERVICE CHARGE","D180","TEL ENERGY SERVICE CHARGE","INDEPENDENT LIVING SERVICES","UTILITIES"
"http://statistics.data.gov.uk/id/local-authority/43UM","WOKING BOROUGH COUNCIL","26/07/2022","03/08/2022","0000480319/008","THAMESWEY ENERGY LIMITED","01142300","3196.55","HOUSING SERVICES - ENERGY","TEL ENERGY SERVICE CHARGE","D180","TEL ENERGY SERVICE CHARGE","HOUSING SERVICES","UTILITIES"
"http://statistics.data.gov.uk/id/local-authority/43UM","WOKING BOROUGH COUNCIL","05/08/2022","03/08/2022","0000480322/001","BOOM! CREDIT UNION","40344200","1216.00","CORPORATE STRATEGY - SURREY SAVE CREDIT UNION","PAYMENTS OVER","S340","PAYMENTS OVER","CORPORATE STRATEGY","FINANCIAL SERVICES"
"http://statistics.data.gov.uk/id/local-authority/43UM","WOKING BOROUGH COUNCIL","23/07/2022","03/08/2022","0000480332/001","COVE BRASS","41041700","100.00","NEIGHBOURHOOD SERVICES - ARTS DEVELOPMENT","ECDEV ENTERPRISE M3","H413","ECDEV ENTERPRISE M3","NEIGHBOURHOOD SERVICES","ARTS & LEISURE SERVICES"
"http://statistics.data.gov.uk/id/local-authority/43UM","WOKING BOROUGH COUNCIL","27/07/2022","03/08/2022","0000480334/001","BENTLEY MOBILITY SERVICES LTD","40462300","675.45","HOUSING SERVICES - STATUTORU HRA","HRA STATUTORY","D116","HRA STATUTORY","HOUSING SERVICES","WORKS (CONSTRUCTION REPAIR MAINTENANCE)"
"http://statistics.data.gov.uk/id/local-authority/43UM","WOKING BOROUGH COUNCIL","27/07/2022","03/08/2022","0000480336/001","CENNOX SIGNAGE AND CONSTRUCTION LTD","01401300","349.00","NEIGHBOURHOOD SERVICES - STREET FURNITURE","GROUNDS MAINT-CONTRACTORS","D200","GROUNDS MAINT-CONTRACTORS","NEIGHBOURHOOD SERVICES","FURNITURE & SOFT FURNISHINGS"
"http://statistics.data.gov.uk/id/local-authority/43UM","WOKING BOROUGH COUNCIL","22/07/2022","03/08/2022","0000480337/001","FAITH RECRUITMENT","01709500","46.88","CORPORATE STRATEGY - CUSTOMER SERVICES","TEMPORARY STAFF","A110","TEMPORARY STAFF","CORPORATE STRATEGY","HUMAN RESOURCES"
"http://statistics.data.gov.uk/id/local-authority/43UM","WOKING BOROUGH COUNCIL","22/07/2022","03/08/2022","0000480338/001","FAITH RECRUITMENT","01709500","624.96","INFORMATION TECHNOLOGY - 150 COUNCIL TAX REBATE SCHEME","TEMP STAFF SALARIES","Q480","TEMP STAFF SALARIES","INFORMATION TECHNOLOGY","HUMAN RESOURCES"
"http://statistics.data.gov.uk/id/local-authority/43UM","WOKING BOROUGH COUNCIL","22/07/2022","03/08/2022","0000480339/001","FAITH RECRUITMENT","01709500","312.48","INFORMATION TECHNOLOGY - 150 COUNCIL TAX REBATE SCHEME","TEMP STAFF SALARIES","Q480","TEMP STAFF SALARIES","INFORMATION TECHNOLOGY","HUMAN RESOURCES"
"http://statistics.data.gov.uk/id/local-authority/43UM","WOKING BOROUGH COUNCIL","22/07/2022","03/08/2022","0000480340/001","FAITH RECRUITMENT","01709500","555.52","INFORMATION TECHNOLOGY - 150 COUNCIL TAX REBATE SCHEME","TEMP STAFF SALARIES","Q480","TEMP STAFF SALARIES","INFORMATION TECHNOLOGY","HUMAN RESOURCES"
"http://statistics.data.gov.uk/id/local-authority/43UM","WOKING BOROUGH COUNCIL","22/07/2022","03/08/2022","0000480345/001","FAITH RECRUITMENT","01709500","677.30","CORPORATE STRATEGY - CUSTOMER SERVICES","TEMPORARY STAFF","A110","TEMPORARY STAFF","CORPORATE STRATEGY","HUMAN RESOURCES"
"http://statistics.data.gov.uk/id/local-authority/43UM","WOKING BOROUGH COUNCIL","26/07/2022","03/08/2022","0000480346/001","SHEERWATER GLASS","40498100","1583.33","ASSET MANAGEMENT - 26 AND 28 ASH ROAD","R&M BUILDINGS - CONTRACTORS","D100","R&M BUILDINGS - CONTRACTORS","ASSET MANAGEMENT","WORKS (CONSTRUCTION REPAIR MAINTENANCE)"
"http://statistics.data.gov.uk/id/local-authority/43UM","WOKING BOROUGH COUNCIL","27/07/2022","03/08/2022","0000480349/001","MARKS CONSULTING PARTNERS LIMITED","40708400","1868.75","HOUSING SERVICES - HOUSING MAINTENANCE PEOCUREMENT","OTHER CONSULTANTS","Q430","OTHER CONSULTANTS","HOUSING SERVICES","CONSULTANCY"
"http://statistics.data.gov.uk/id/local-authority/43UM","WOKING BOROUGH COUNCIL","27/07/2022","03/08/2022","0000480350/001","BROOK STREET (UK) LTD","01049600","804.75","HOUSING SERVICES - HOUSING STANDARDS & LICENSING","TEMPORARY STAFF","A110","TEMPORARY STAFF","HOUSING SERVICES","HUMAN RESOURCES"
"http://statistics.data.gov.uk/id/local-authority/43UM","WOKING BOROUGH COUNCIL","28/07/2022","03/08/2022","0000480352/001","TINDLE NEWSPAPERS SURREY & HAMPSHIRE","40249900","576.00","CORPORATE STRATEGY - PUBLIC RELATIONS","STATUTORY ADVERTS","H410","STATUTORY ADVERTS","CORPORATE STRATEGY","FACILITIES & MANAGEMENT SERVICES"
"http://statistics.data.gov.uk/id/local-authority/43UM","WOKING BOROUGH COUNCIL","28/07/2022","03/08/2022","0000480353/001","TINDLE NEWSPAPERS SURREY & HAMPSHIRE","40249900","256.00","CORPORATE STRATEGY - PUBLIC RELATIONS","STATUTORY ADVERTS","H410","STATUTORY ADVERTS","CORPORATE STRATEGY","FACILITIES & MANAGEMENT SERVICES"
"http://statistics.data.gov.uk/id/local-authority/43UM","WOKING BOROUGH COUNCIL","26/07/2022","03/08/2022","0000480354/001","HEADLINE DESIGN & PRINT","00016900","50.00","CORPORATE STRATEGY - ENVIRONMENTAL PROJECTS","LA21","H118","LA21","CORPORATE STRATEGY","FINANCIAL SERVICES"
"http://statistics.data.gov.uk/id/local-authority/43UM","WOKING BOROUGH COUNCIL","28/07/2022","03/08/2022","0000480356/001","OFFICE SPECIALTIES LTD","40911900","8.75","ASSET MANAGEMENT - CIVIC OFFICES","CONSUMABLES","G630","CONSUMABLES","ASSET MANAGEMENT","STATIONERY"
"http://statistics.data.gov.uk/id/local-authority/43UM","WOKING BOROUGH COUNCIL","27/07/2022","03/08/2022","0000480357/001","JLA FIRE & SECURITY LTD","40299300","92.00","LEISURE SERVICES - SHEERWATER LEISURE CENTRE","R&M BUILDINGS - CONTRACTORS","D100","R&M BUILDINGS - CONTRACTORS","LEISURE SERVICES","CONSULTANCY"
"http://statistics.data.gov.uk/id/local-authority/43UM","WOKING BOROUGH COUNCIL","27/07/2022","03/08/2022","0000480358/001","GARY LEA","40308200","360.00","HOUSING SERVICES - HOME IMPS & BEN AGENCY","HANDYPERSON MATERIALS","G201","HANDYPERSON MATERIALS","HOUSING SERVICES","FINANCIAL SERVICES"
"http://statistics.data.gov.uk/id/local-authority/43UM","WOKING BOROUGH COUNCIL","28/07/2022","03/08/2022","0000480359/001","THAMESWEY ENERGY LIMITED","01142300","881.40","CORPORATE STRATEGY - LEISURE MANAGEMENT CONTRACT","CLIMATE CHANGE LEVY","D430","CLIMATE CHANGE LEVY","CORPORATE STRATEGY","UTILITIES"
"http://statistics.data.gov.uk/id/local-authority/43UM","WOKING BOROUGH COUNCIL","28/07/2022","03/08/2022","0000480359/002","THAMESWEY ENERGY LIMITED","01142300","6620.33","CORPORATE STRATEGY - LEISURE MANAGEMENT CONTRACT","GAS","D420","GAS","CORPORATE STRATEGY","UTILITIES"
"http://statistics.data.gov.uk/id/local-authority/43UM","WOKING BOROUGH COUNCIL","28/07/2022","03/08/2022","0000480360/001","THAMESWEY ENERGY LIMITED","01142300","789.05","CORPORATE STRATEGY - LEISURE MANAGEMENT CONTRACT","CLIMATE CHANGE LEVY","D430","CLIMATE CHANGE LEVY","CORPORATE STRATEGY","UTILITIES"
"http://statistics.data.gov.uk/id/local-authority/43UM","WOKING BOROUGH COUNCIL","28/07/2022","03/08/2022","0000480360/002","THAMESWEY ENERGY LIMITED","01142300","7822.35","CORPORATE STRATEGY - LEISURE MANAGEMENT CONTRACT","GAS","D420","GAS","CORPORATE STRATEGY","UTILITIES"
"http://statistics.data.gov.uk/id/local-authority/43UM","WOKING BOROUGH COUNCIL","25/07/2022","03/08/2022","0000480365/001","BENTLEY MOBILITY SERVICES LTD","40462300","2082.00","HOUSING SERVICES - DISABLED FACILITIES GRANTS","MANDATORY GRANTS","Q712","MANDATORY GRANTS","HOUSING SERVICES","WORKS (CONSTRUCTION REPAIR MAINTENANCE)"
"http://statistics.data.gov.uk/id/local-authority/43UM","WOKING BOROUGH COUNCIL","28/06/2022","03/08/2022","0000480366/001","VIRGIN MEDIA BUSINESS","00316500","65.00","ASSET MANAGEMENT - C.C.T.V.","CCTV TRANSMISSION MAINTENANCE","D342","CCTV TRANSMISSION MAINTENANCE","ASSET MANAGEMENT","INFORMATION COMMUNICATION TECHNOLOGY"
"http://statistics.data.gov.uk/id/local-authority/43UM","WOKING BOROUGH COUNCIL","25/07/2022","03/08/2022","0000480367/001","VIRGIN MEDIA BUSINESS","00367000","5661.25","ASSET MANAGEMENT - C.C.T.V.","CCTV TRANSMISSION MAINTENANCE","D342","CCTV TRANSMISSION MAINTENANCE","ASSET MANAGEMENT","UTILITIES"
"http://statistics.data.gov.uk/id/local-authority/43UM","WOKING BOROUGH COUNCIL","27/07/2022","03/08/2022","0000480368/001","VIRGIN MEDIA BUSINESS","00316500","65.00","ASSET MANAGEMENT - C.C.T.V.","CCTV TRANSMISSION MAINTENANCE","D342","CCTV TRANSMISSION MAINTENANCE","ASSET MANAGEMENT","INFORMATION COMMUNICATION TECHNOLOGY"
"http://statistics.data.gov.uk/id/local-authority/43UM","WOKING BOROUGH COUNCIL","27/07/2022","03/08/2022","0000480369/001","SOFTCAT LIMITED","40418200","81324.53","INFORMATION TECHNOLOGY - I.T.S. ICT","EQUIPMENT REPAIR & MAINTENANCE","G120","EQUIPMENT REPAIR & MAINTENANCE","INFORMATION TECHNOLOGY","INFORMATION COMMUNICATION TECHNOLOGY"
"http://statistics.data.gov.uk/id/local-authority/43UM","WOKING BOROUGH COUNCIL","27/07/2022","03/08/2022","0000480369/002","SOFTCAT LIMITED","40418200","5374.63","INFORMATION TECHNOLOGY - I.T.S. ICT","EQUIPMENT REPAIR & MAINTENANCE","G120","EQUIPMENT REPAIR & MAINTENANCE","INFORMATION TECHNOLOGY","INFORMATION COMMUNICATION TECHNOLOGY"
"http://statistics.data.gov.uk/id/local-authority/43UM","WOKING BOROUGH COUNCIL","27/07/2022","03/08/2022","0000480369/003","SOFTCAT LIMITED","40418200","4500.00","INFORMATION TECHNOLOGY - I.T.S. ICT","EQUIPMENT REPAIR & MAINTENANCE","G120","EQUIPMENT REPAIR & MAINTENANCE","INFORMATION TECHNOLOGY","INFORMATION COMMUNICATION TECHNOLOGY"
"http://statistics.data.gov.uk/id/local-authority/43UM","WOKING BOROUGH COUNCIL","05/07/2022","03/08/2022","0000480372/001","ALPHABET (GB) LIMITED","00015200","-40.80","CORPORATE MANAGEMENT GROUP - LEASED CAR PAYMENTS","PAYMENT TO LESSORS","T170","PAYMENT TO LESSORS","CORPORATE MANAGEMENT GROUP","VEHICLE MANAGEMENT"
"http://statistics.data.gov.uk/id/local-authority/43UM","WOKING BOROUGH COUNCIL","05/07/2022","03/08/2022","0000480372/003","ALPHABET (GB) LIMITED","00015200","-3.72","CORPORATE MANAGEMENT GROUP - LEASED CAR PAYMENTS","PAYMENT TO LESSORS","T170","PAYMENT TO LESSORS","CORPORATE MANAGEMENT GROUP","VEHICLE MANAGEMENT"
"http://statistics.data.gov.uk/id/local-authority/43UM","WOKING BOROUGH COUNCIL","05/07/2022","03/08/2022","0000480373/001","ALPHABET (GB) LIMITED","00015200","49.02","CORPORATE MANAGEMENT GROUP - LEASED CAR DEDUCTIONS","RECOVERABLE COSTS","T162","RECOVERABLE COSTS","CORPORATE MANAGEMENT GROUP","VEHICLE MANAGEMENT"
"http://statistics.data.gov.uk/id/local-authority/43UM","WOKING BOROUGH COUNCIL","05/07/2022","03/08/2022","0000480373/003","ALPHABET (GB) LIMITED","00015200","4.90","CORPORATE MANAGEMENT GROUP - LEASED CAR DEDUCTIONS","RECOVERABLE COSTS","T162","RECOVERABLE COSTS","CORPORATE MANAGEMENT GROUP","VEHICLE MANAGEMENT"
"http://statistics.data.gov.uk/id/local-authority/43UM","WOKING BOROUGH COUNCIL","25/07/2022","03/08/2022","0000480374/001","ALPHABET (GB) LIMITED","00015200","-59.37","CORPORATE MANAGEMENT GROUP - LEASED CAR DEDUCTIONS","RECOVERABLE COSTS","T162","RECOVERABLE COSTS","CORPORATE MANAGEMENT GROUP","VEHICLE MANAGEMENT"
"http://statistics.data.gov.uk/id/local-authority/43UM","WOKING BOROUGH COUNCIL","25/07/2022","03/08/2022","0000480374/003","ALPHABET (GB) LIMITED","00015200","-5.93","CORPORATE MANAGEMENT GROUP - LEASED CAR DEDUCTIONS","RECOVERABLE COSTS","T162","RECOVERABLE COSTS","CORPORATE MANAGEMENT GROUP","VEHICLE MANAGEMENT"
"http://statistics.data.gov.uk/id/local-authority/43UM","WOKING BOROUGH COUNCIL","25/07/2022","03/08/2022","0000480376/001","ALPHABET (GB) LIMITED","00015200","1308.13","NEIGHBOURHOOD SERVICES - COMMUNITY DEVELOPMENT","LEASED CAR ALLOWANCES","A200","LEASED CAR ALLOWANCES","NEIGHBOURHOOD SERVICES","VEHICLE MANAGEMENT"
"http://statistics.data.gov.uk/id/local-authority/43UM","WOKING BOROUGH COUNCIL","26/07/2022","03/08/2022","0000480377/001","ALPHABET (GB) LIMITED","00015200","65.00","CORPORATE MANAGEMENT GROUP - LEASED CAR DEDUCTIONS","RECOVERABLE COSTS","T162","RECOVERABLE COSTS","CORPORATE MANAGEMENT GROUP","VEHICLE MANAGEMENT"
"http://statistics.data.gov.uk/id/local-authority/43UM","WOKING BOROUGH COUNCIL","26/07/2022","03/08/2022","0000480378/001","JAMES POTTER","40849300","1760.00","ASSET MANAGEMENT - BUILDING SERVICES","TEMPORARY STAFF","A110","TEMPORARY STAFF","ASSET MANAGEMENT","ENVIRONMENTAL SERVICES"
"http://statistics.data.gov.uk/id/local-authority/43UM","WOKING BOROUGH COUNCIL","25/07/2022","03/08/2022","0000480380/001","SSE PLC","40619300","193.08","HOUSING SERVICES - LANDLORDS EXPENSES","ELECTRICITY","D400","ELECTRICITY","HOUSING SERVICES","UTILITIES"
"http://statistics.data.gov.uk/id/local-authority/43UM","WOKING BOROUGH COUNCIL","19/07/2022","03/08/2022","0000480381/001","ROYAL MAIL GROUP LTD","00040000","360.00","CORPORATE STRATEGY - POSTAGE","POSTAGE - REPLY PAID","G710","POSTAGE - REPLY PAID","CORPORATE STRATEGY","MAIL SERVICES"
"http://statistics.data.gov.uk/id/local-authority/43UM","WOKING BOROUGH COUNCIL","26/07/2022","03/08/2022","0000480382/001","CARTER JONAS","41040900","2750.00","INDEPENDENT LIVING SERVICES - SW REGEN CPO (COMPULSORY PO)","LEGAL FEES","Q190","LEGAL FEES","INDEPENDENT LIVING SERVICES","CONSULTANCY"
"http://statistics.data.gov.uk/id/local-authority/43UM","WOKING BOROUGH COUNCIL","27/07/2022","03/08/2022","0000480387/001","WOKING CHAMBER OF COMMERCE","00097300","12.50","CORPORATE STRATEGY - TOWN CENTRE FORUM","ECDEV BUSINESS ENGAGEMENT","H411","ECDEV BUSINESS ENGAGEMENT","CORPORATE STRATEGY","FACILITIES & MANAGEMENT SERVICES"
"http://statistics.data.gov.uk/id/local-authority/43UM","WOKING BOROUGH COUNCIL","27/07/2022","03/08/2022","0000480388/001","E.ON ENERGY SOLUTIONS LIMITED","40941500","-393.51","ASSET MANAGEMENT - WOLSEY PLACE","ELECTRICITY","D400","ELECTRICITY","ASSET MANAGEMENT","UTILITIES"
"http://statistics.data.gov.uk/id/local-authority/43UM","WOKING BOROUGH COUNCIL","27/07/2022","03/08/2022","0000480389/001","E.ON ENERGY SOLUTIONS LIMITED","40941500","393.50","ASSET MANAGEMENT - WOLSEY PLACE","ELECTRICITY","D400","ELECTRICITY","ASSET MANAGEMENT","UTILITIES"
"http://statistics.data.gov.uk/id/local-authority/43UM","WOKING BOROUGH COUNCIL","28/07/2022","03/08/2022","0000480399/001","COMPLETE IT SYSTEMS LIMITED","40591300","262.50","INFORMATION TECHNOLOGY - ICT GENERAL REPLACEMENT 2022/23","CAPITAL BUDGET CODE ONLY","Q000","CAPITAL BUDGET CODE ONLY","INFORMATION TECHNOLOGY","INFORMATION COMMUNICATION TECHNOLOGY"
"http://statistics.data.gov.uk/id/local-authority/43UM","WOKING BOROUGH COUNCIL","13/07/2022","03/08/2022","0000480400/001","VENN GROUP LIMITED","40383900","484.20","REVENUES AND BENEFITS - BENEFIT SERVICES","TEMPORARY STAFF","A110","TEMPORARY STAFF","REVENUES AND BENEFITS","HUMAN RESOURCES"
"http://statistics.data.gov.uk/id/local-authority/43UM","WOKING BOROUGH COUNCIL","26/07/2022","03/08/2022","0000480401/001","BENTLEY MOBILITY SERVICES LTD","40462300","315.00","HOUSING SERVICES - DISABLED FACILITIES GRANTS","MANDATORY GRANTS","Q712","MANDATORY GRANTS","HOUSING SERVICES","WORKS (CONSTRUCTION REPAIR MAINTENANCE)"
"http://statistics.data.gov.uk/id/local-authority/43UM","WOKING BOROUGH COUNCIL","22/07/2022","03/08/2022","0000480402/001","TUNSTALL HEALTHCARE (UK) LTD","00019000","1686.15","INDEPENDENT LIVING SERVICES - COMMUNITY ALARMS-GF","EQUIPMENT","G100","EQUIPMENT","INDEPENDENT LIVING SERVICES","HEALTHCARE"
"http://statistics.data.gov.uk/id/local-authority/43UM","WOKING BOROUGH COUNCIL","22/07/2022","03/08/2022","0000480402/002","TUNSTALL HEALTHCARE (UK) LTD","00019000","187.35","INDEPENDENT LIVING SERVICES - COMMUNITY ALARMS-GF","EQUIPMENT","G100","EQUIPMENT","INDEPENDENT LIVING SERVICES","HEALTHCARE"
"http://statistics.data.gov.uk/id/local-authority/43UM","WOKING BOROUGH COUNCIL","29/07/2022","03/08/2022","0000480411/001","EMCOR GROUP (UK) PLC","00004600","3052.26","HOUSING SERVICES - RESPONSIVE REPARS HRA","HRA REPAIRS CONTRACTOR","D112","HRA REPAIRS CONTRACTOR","HOUSING SERVICES","WORKS (CONSTRUCTION REPAIR MAINTENANCE)"
"http://statistics.data.gov.uk/id/local-authority/43UM","WOKING BOROUGH COUNCIL","28/07/2022","03/08/2022","0000480413/001","SURREY FIRE & SAFETY LTD","41015600","975.00","HOUSING SERVICES - STATUTORU HRA","HRA STATUTORY","D116","HRA STATUTORY","HOUSING SERVICES","HEALTH & SAFETY"
"http://statistics.data.gov.uk/id/local-authority/43UM","WOKING BOROUGH COUNCIL","28/07/2022","03/08/2022","0000480414/001","BUILDIMAGE LTD","40630900","1835.22","HOUSING SERVICES - RESPONSIVE REPARS HRA","HRA REPAIRS CONTRACTOR","D112","HRA REPAIRS CONTRACTOR","HOUSING SERVICES","FURNITURE & SOFT FURNISHINGS"
"http://statistics.data.gov.uk/id/local-authority/43UM","WOKING BOROUGH COUNCIL","28/07/2022","03/08/2022","0000480415/001","BUILDIMAGE LTD","40630900","4481.73","HOUSING SERVICES - RESPONSIVE REPARS HRA","HRA REPAIRS CONTRACTOR","D112","HRA REPAIRS CONTRACTOR","HOUSING SERVICES","FURNITURE & SOFT FURNISHINGS"
"http://statistics.data.gov.uk/id/local-authority/43UM","WOKING BOROUGH COUNCIL","28/07/2022","03/08/2022","0000480416/001","BUILDIMAGE LTD","40630900","3598.75","HOUSING SERVICES - RESPONSIVE REPARS HRA","HRA REPAIRS CONTRACTOR","D112","HRA REPAIRS CONTRACTOR","HOUSING SERVICES","FURNITURE & SOFT FURNISHINGS"
"http://statistics.data.gov.uk/id/local-authority/43UM","WOKING BOROUGH COUNCIL","28/07/2022","03/08/2022","0000480417/001","BUILDIMAGE LTD","40630900","4491.55","HOUSING SERVICES - RESPONSIVE REPARS HRA","HRA REPAIRS CONTRACTOR","D112","HRA REPAIRS CONTRACTOR","HOUSING SERVICES","FURNITURE & SOFT FURNISHINGS"
"http://statistics.data.gov.uk/id/local-authority/43UM","WOKING BOROUGH COUNCIL","24/07/2022","03/08/2022","0000480418/001","THE LITTLE MARQUEE HIRE COMPANY","00813200","7185.50","CORPORATE STRATEGY - PEACE GARDEN COMMERMORATIVE SER","EQUIPMENT-HIRE","G115","EQUIPMENT-HIRE","CORPORATE STRATEGY","ARTS & LEISURE SERVICES"
"http://statistics.data.gov.uk/id/local-authority/43UM","WOKING BOROUGH COUNCIL","27/07/2022","03/08/2022","0000480421/001","GIBBS & DANDY","40335300","568.80","HOUSING SERVICES - HOME IMPS & BEN AGENCY","HANDYPERSON MATERIALS","G201","HANDYPERSON MATERIALS","HOUSING SERVICES","BUILDING CONSTRUCTION MATERIALS"
"http://statistics.data.gov.uk/id/local-authority/43UM","WOKING BOROUGH COUNCIL","28/07/2022","03/08/2022","0000480422/001","GIBBS & DANDY","40335300","10.00","HOUSING SERVICES - HOME IMPS & BEN AGENCY","HANDYPERSON MATERIALS","G201","HANDYPERSON MATERIALS","HOUSING SERVICES","BUILDING CONSTRUCTION MATERIALS"
"http://statistics.data.gov.uk/id/local-authority/43UM","WOKING BOROUGH COUNCIL","01/04/2022","03/08/2022","0000480423/001","THOMSON REUTERS","00027200","20214.96","CORPORATE STRATEGY - LEGAL","BOOKS MAPS PLANS","G650","BOOKS MAPS PLANS","CORPORATE STRATEGY","LEGAL SERVICES"
"http://statistics.data.gov.uk/id/local-authority/43UM","WOKING BOROUGH COUNCIL","21/06/2022","03/08/2022","0000480424/001","THOMSON REUTERS","00027200","-15728.90","CORPORATE STRATEGY - LEGAL","BOOKS MAPS PLANS","G650","BOOKS MAPS PLANS","CORPORATE STRATEGY","LEGAL SERVICES"
"http://statistics.data.gov.uk/id/local-authority/43UM","WOKING BOROUGH COUNCIL","28/07/2022","03/08/2022","0000480425/001","SHAW TRUST","01880600","40.00","HOUSING SERVICES - HOME IMPS & BEN AGENCY","HANDYPERSON MATERIALS","G201","HANDYPERSON MATERIALS","HOUSING SERVICES","EDUCATION"
"http://statistics.data.gov.uk/id/local-authority/43UM","WOKING BOROUGH COUNCIL","22/07/2022","03/08/2022","0000480428/001","E.ON ENERGY SOLUTIONS LIMITED","40941500","9.29","HOUSING SERVICES - LANDLORDS EXPENSES","GAS","D420","GAS","HOUSING SERVICES","UTILITIES"
"http://statistics.data.gov.uk/id/local-authority/43UM","WOKING BOROUGH COUNCIL","28/07/2022","03/08/2022","0000480434/001","NOMINET UK","01459000","765.94","INFORMATION TECHNOLOGY - COMMUNICATIONS","NETWORK CIRCUITS","G800","NETWORK CIRCUITS","INFORMATION TECHNOLOGY","CONSULTANCY"
"http://statistics.data.gov.uk/id/local-authority/43UM","WOKING BOROUGH COUNCIL","15/07/2022","03/08/2022","0000480438/001","OUTLINE","01164000","1350.00","CORPORATE STRATEGY - GRANTS TO ORGANISATION","GRANTS","H100","GRANTS","CORPORATE STRATEGY","FINANCIAL SERVICES"
"http://statistics.data.gov.uk/id/local-authority/43UM","WOKING BOROUGH COUNCIL","28/08/2022","03/08/2022","0000480439/001","CELL:CM LIMITED","01780000","3430.00","ASSET MANAGEMENT - PROPERTY SERVICES","CONSULTANTS","H670","CONSULTANTS","ASSET MANAGEMENT","FACILITIES & MANAGEMENT SERVICES"
"http://statistics.data.gov.uk/id/local-authority/43UM","WOKING BOROUGH COUNCIL","26/07/2022","03/08/2022","0000480442/001","EDF ENERGY CUSTOMERS PLC","01451600","58.33","HOUSING SERVICES - LANDLORDS EXPENSES","ELECTRICITY","D400","ELECTRICITY","HOUSING SERVICES","UTILITIES"
"http://statistics.data.gov.uk/id/local-authority/43UM","WOKING BOROUGH COUNCIL","28/07/2022","03/08/2022","0000480444/001","ACCESS INTELLIGENCE MEDIA & COMM LTD","40678200","8383.50","CORPORATE STRATEGY - PUBLIC RELATIONS","NEW MEDIA MONITORING","H401","NEW MEDIA MONITORING","CORPORATE STRATEGY","INFORMATION COMMUNICATION TECHNOLOGY"
"http://statistics.data.gov.uk/id/local-authority/43UM","WOKING BOROUGH COUNCIL","31/07/2022","03/08/2022","0000480445/001","IRON MOUNTAIN (UK) PLC","01035400","535.68","INFORMATION TECHNOLOGY - I.T.S. ICT","OFF SITE SECURE","H769","OFF SITE SECURE","INFORMATION TECHNOLOGY","FACILITIES & MANAGEMENT SERVICES"
"http://statistics.data.gov.uk/id/local-authority/43UM","WOKING BOROUGH COUNCIL","01/08/2022","03/08/2022","0000480448/001","FLYING UMBRELLA","41022200","1000.00","REVENUES AND BENEFITS - BENEFIT SERVICES","TEMPORARY STAFF","A110","TEMPORARY STAFF","REVENUES AND BENEFITS","HUMAN RESOURCES"
"http://statistics.data.gov.uk/id/local-authority/43UM","WOKING BOROUGH COUNCIL","27/07/2022","03/08/2022","0000480455/001","SSE PLC","40619300","225.38","HOUSING SERVICES - LANDLORDS EXPENSES","ELECTRICITY","D400","ELECTRICITY","HOUSING SERVICES","UTILITIES"
"http://statistics.data.gov.uk/id/local-authority/43UM","WOKING BOROUGH COUNCIL","25/07/2022","03/08/2022","0000480458/001","SSE PLC","40619300","169.87","HOUSING SERVICES - LANDLORDS EXPENSES","ELECTRICITY","D400","ELECTRICITY","HOUSING SERVICES","UTILITIES"
"http://statistics.data.gov.uk/id/local-authority/43UM","WOKING BOROUGH COUNCIL","25/07/2022","03/08/2022","0000480459/001","SSE PLC","40619300","156.27","HOUSING SERVICES - LANDLORDS EXPENSES","ELECTRICITY","D400","ELECTRICITY","HOUSING SERVICES","UTILITIES"
"http://statistics.data.gov.uk/id/local-authority/43UM","WOKING BOROUGH COUNCIL","25/07/2022","03/08/2022","0000480460/001","SSE PLC","40619300","166.91","HOUSING SERVICES - LANDLORDS EXPENSES","ELECTRICITY","D400","ELECTRICITY","HOUSING SERVICES","UTILITIES"
"http://statistics.data.gov.uk/id/local-authority/43UM","WOKING BOROUGH COUNCIL","29/08/2022","03/08/2022","0000480461/001","JILL TONKS","40817100","665.00","INDEPENDENT LIVING SERVICES - FAMILY CENTRES","CLINICAL SUPERVISION","G505","CLINICAL SUPERVISION","INDEPENDENT LIVING SERVICES","FINANCIAL SERVICES"
"http://statistics.data.gov.uk/id/local-authority/43UM","WOKING BOROUGH COUNCIL","29/07/2022","03/08/2022","0000480462/001","JILL TONKS","40817100","380.00","INDEPENDENT LIVING SERVICES - FAMILY SUPPORT PROGRAMME","CLINICAL SUPERVISION","G505","CLINICAL SUPERVISION","INDEPENDENT LIVING SERVICES","FINANCIAL SERVICES"
"http://statistics.data.gov.uk/id/local-authority/43UM","WOKING BOROUGH COUNCIL","29/07/2022","03/08/2022","0000480463/001","JILL TONKS","40817100","190.00","HOUSING SERVICES - SYRIAN REFUGEE FAMILES","CLINICAL SUPERVISION","Q504","CLINICAL SUPERVISION","HOUSING SERVICES","FINANCIAL SERVICES"
"http://statistics.data.gov.uk/id/local-authority/43UM","WOKING BOROUGH COUNCIL","29/07/2022","03/08/2022","0000480464/001","ALPHABET (GB) LIMITED","00015200","25.00","HOUSING SERVICES - HOME IMPS & BEN AGENCY","VEHICLE LEASING COSTS","F400","VEHICLE LEASING COSTS","HOUSING SERVICES","VEHICLE MANAGEMENT"
"http://statistics.data.gov.uk/id/local-authority/43UM","WOKING BOROUGH COUNCIL","31/07/2022","03/08/2022","0000480466/001","ALPHABET (GB) LIMITED","00015200","320.00","CORPORATE MANAGEMENT GROUP - LEASED CAR DEDUCTIONS","RECOVERABLE COSTS","T162","RECOVERABLE COSTS","CORPORATE MANAGEMENT GROUP","VEHICLE MANAGEMENT"
"http://statistics.data.gov.uk/id/local-authority/43UM","WOKING BOROUGH COUNCIL","31/07/2022","03/08/2022","0000480467/001","ALPHABET (GB) LIMITED","00015200","508.48","HOUSING SERVICES - HOME IMPS & BEN AGENCY","VEHICLE LEASING COSTS","F400","VEHICLE LEASING COSTS","HOUSING SERVICES","VEHICLE MANAGEMENT"
"http://statistics.data.gov.uk/id/local-authority/43UM","WOKING BOROUGH COUNCIL","31/07/2022","03/08/2022","0000480468/001","ALPHABET (GB) LIMITED","00015200","626.99","CORPORATE MANAGEMENT GROUP - LEASED CAR RELIEF","EXPEND FROM FUND","T750","EXPEND FROM FUND","CORPORATE MANAGEMENT GROUP","VEHICLE MANAGEMENT"
"http://statistics.data.gov.uk/id/local-authority/43UM","WOKING BOROUGH COUNCIL","01/08/2022","03/08/2022","0000480469/001","ALPHABET (GB) LIMITED","00015200","4575.32","HOUSING SERVICES - HOME IMPS & BEN AGENCY","VEHICLE LEASING COSTS","F400","VEHICLE LEASING COSTS","HOUSING SERVICES","VEHICLE MANAGEMENT"
"http://statistics.data.gov.uk/id/local-authority/43UM","WOKING BOROUGH COUNCIL","25/07/2022","03/08/2022","0000480470/001","SSE PLC","40619300","142.67","HOUSING SERVICES - LANDLORDS EXPENSES","ELECTRICITY","D400","ELECTRICITY","HOUSING SERVICES","UTILITIES"
"http://statistics.data.gov.uk/id/local-authority/43UM","WOKING BOROUGH COUNCIL","25/07/2022","03/08/2022","0000480471/001","SSE PLC","40619300","254.88","HOUSING SERVICES - LANDLORDS EXPENSES","ELECTRICITY","D400","ELECTRICITY","HOUSING SERVICES","UTILITIES"
"http://statistics.data.gov.uk/id/local-authority/43UM","WOKING BOROUGH COUNCIL","15/06/2022","03/08/2022","0000480473/001","BOLLSCAR BUILDERS LTD","41003800","-4319.12","HOUSING SERVICES - STATUTORU HRA","HRA STATUTORY","D116","HRA STATUTORY","HOUSING SERVICES","CLEANING & JANITORIAL"
"http://statistics.data.gov.uk/id/local-authority/43UM","WOKING BOROUGH COUNCIL","15/06/2022","03/08/2022","0000480474/001","BOLLSCAR BUILDERS LTD","41003800","4319.12","HOUSING SERVICES - STATUTORU HRA","HRA STATUTORY","D116","HRA STATUTORY","HOUSING SERVICES","CLEANING & JANITORIAL"
"http://statistics.data.gov.uk/id/local-authority/43UM","WOKING BOROUGH COUNCIL","13/07/2022","03/08/2022","0000480479/001","TRACEY CLAYTON","01372800","275.00","CORPORATE MANAGEMENT GROUP - STAFF TRAINING/GENERAL COSTS","TRAINING - CORPORATE","A910","TRAINING - CORPORATE","CORPORATE MANAGEMENT GROUP","HUMAN RESOURCES"
"http://statistics.data.gov.uk/id/local-authority/43UM","WOKING BOROUGH COUNCIL","31/07/2022","03/08/2022","0000480491/001","VENTURI LIMITED","41001700","1425.00","INFORMATION TECHNOLOGY - MICROSOFT 365 IMPLEMENTATION","SERVICES","Q053","SERVICES","INFORMATION TECHNOLOGY","INFORMATION COMMUNICATION TECHNOLOGY"
"http://statistics.data.gov.uk/id/local-authority/43UM","WOKING BOROUGH COUNCIL","31/07/2022","03/08/2022","0000480491/002","VENTURI LIMITED","41001700","1425.00","INFORMATION TECHNOLOGY - MICROSOFT 365 IMPLEMENTATION","SERVICES","Q053","SERVICES","INFORMATION TECHNOLOGY","INFORMATION COMMUNICATION TECHNOLOGY"
"http://statistics.data.gov.uk/id/local-authority/43UM","WOKING BOROUGH COUNCIL","19/07/2022","03/08/2022","0000480494/001","OFFICEFURNITUREONLINE.CO.UK","40663700","1488.00","HOUSING SERVICES - DISABLED FACILITIES GRANTS","DISCRETIONARY GRANTS","Q713","DISCRETIONARY GRANTS","HOUSING SERVICES","FURNITURE & SOFT FURNISHINGS"
"http://statistics.data.gov.uk/id/local-authority/43UM","WOKING BOROUGH COUNCIL","27/07/2022","03/08/2022","0065000339/001","GRACE ANDREWS","41041600","3.45","NEIGHBOURHOOD SERVICES - CAR PARKS ADMIN&OPERATIONAL EX","EQUIPMENT","G100","EQUIPMENT","NEIGHBOURHOOD SERVICES","STREET & TRAFFIC MANAGEMENT"
"http://statistics.data.gov.uk/id/local-authority/43UM","WOKING BOROUGH COUNCIL","28/07/2022","03/08/2022","0065000340/001","ADAM HART","41042000","900.00","HOUSING SERVICES - RESPONSIVE REPARS HRA","HRA REPAIRS CONTRACTOR","D112","HRA REPAIRS CONTRACTOR","HOUSING SERVICES","FINANCIAL SERVICES"
"http://statistics.data.gov.uk/id/local-authority/43UM","WOKING BOROUGH COUNCIL","28/07/2022","03/08/2022","0065000341/001","CIARAN MITCHELL","41041800","300.00","INDEPENDENT LIVING SERVICES - PARKVIEW","WELL BEING ACTIVITIES","H419","WELL BEING ACTIVITIES","INDEPENDENT LIVING SERVICES","FINANCIAL SERVICES"
"http://statistics.data.gov.uk/id/local-authority/43UM","WOKING BOROUGH COUNCIL","28/07/2022","03/08/2022","0065000342/001","JOANNA HODGSON","41042300","828.44","CORPORATE STRATEGY - PEACE GARDEN COMMERMORATIVE SER","CONTRACT CATERING","G400","CONTRACT CATERING","CORPORATE STRATEGY","FINANCIAL SERVICES"
"http://statistics.data.gov.uk/id/local-authority/43UM","WOKING BOROUGH COUNCIL","03/08/2022","03/08/2022","GPC/00020108","PAYPAL","PROCUREMENT CARD","158.54","CORPORATE STRATEGY - PUBLIC RELATIONS","GENERAL PUBLIC RELATIONS EXPNS","H915","ANNUAL SUBSCRIPTION TO QR CREATOR & DATA TRACKER","MISS K MAIR","COMPUTER PROGRAM/SYS DESIGN"
"http://statistics.data.gov.uk/id/local-authority/43UM","WOKING BOROUGH COUNCIL","03/08/2022","03/08/2022","GPC/00020109","CLEARCHECK.CO.UK","PROCUREMENT CARD","8.00","CORPORATE MANAGEMENT GROUP - STAFF TRAINING/GENERAL COSTS","CRIMINAL RECORDS BUREAU FEES","H642","DBS MONTHLY FEE","MRS SARAH REED","PROFESSIONAL SERVICES - DEF"
"http://statistics.data.gov.uk/id/local-authority/43UM","WOKING BOROUGH COUNCIL","03/08/2022","03/08/2022","GPC/00020110","ASDA STORES 4823","PROCUREMENT CARD","27.65","INDEPENDENT LIVING SERVICES - MEALS ON WHEELS","PROVISIONS","G410","BBQ","ASHLEY BOYLE","GROCERY STORES"
"http://statistics.data.gov.uk/id/local-authority/43UM","WOKING BOROUGH COUNCIL","03/08/2022","03/08/2022","GPC/00020111","AMZNMKTPLACE","PROCUREMENT CARD","21.66","INDEPENDENT LIVING SERVICES - FAMILY CENTRES","PROVISIONS","G410","FOLDING PADDLING POOL","KESARA CHEENA","MISC SPECIALITY RETAIL"
"http://statistics.data.gov.uk/id/local-authority/43UM","WOKING BOROUGH COUNCIL","03/08/2022","03/08/2022","GPC/00020113","W M MORRISON STORE","PROCUREMENT CARD","800.00","CORPORATE STRATEGY - HOUSEHOLD SUPPORT FUND","HSF FOOD CHILDREN","G155","HOUSEHOLD FUND FOOD VOUCHERS","JANET COURTNEY","GROCERY STORES"
"http://statistics.data.gov.uk/id/local-authority/43UM","WOKING BOROUGH COUNCIL","03/08/2022","03/08/2022","GPC/00020114","WILKO RETAIL LIMITED","PROCUREMENT CARD","11.46","INDEPENDENT LIVING SERVICES - FAMILY SUPPORT PROGRAMME","FAMILY ENABLING (FSP PROJECT)","H137","STATIONERY","SARAH WRIGHT","MISC GEN MERCHANDISE - DEF"
"http://statistics.data.gov.uk/id/local-authority/43UM","WOKING BOROUGH COUNCIL","03/08/2022","03/08/2022","GPC/00020115","WWW.SCREWFIX.COM","PROCUREMENT CARD","19.08","ASSET MANAGEMENT - FACILITIES MANAGEMENT","FACILITIES MANAGEMENT REPAIRS","D908","ITEMS FOR MIDAS IRRIGATION","MR D JONES","LUMBER/BUILD SUPPLY STORES"
"http://statistics.data.gov.uk/id/local-authority/43UM","WOKING BOROUGH COUNCIL","03/08/2022","03/08/2022","GPC/00020116","ROBERT DYAS WOKING","PROCUREMENT CARD","20.82","NEIGHBOURHOOD SERVICES - CPZ WBC FROM 25/7/05","EQUIPMENT","G100","SPANNER FOR SIGNS AND BATTERIES FOR CAMERAS ","RICHARD TAYLOR","HARDWARE STORES"
"http://statistics.data.gov.uk/id/local-authority/43UM","WOKING BOROUGH COUNCIL","03/08/2022","03/08/2022","GPC/00020117","SWRAILWAYSELFSERVE","PROCUREMENT CARD","5.40","CORPORATE STRATEGY - TOWN CENTRE FORUM","TRAVEL EXPENSES-OFFICERS","F600","TRAIN TICKET","MR GLENN J THOROGOOD","PASSENGER RAILWAYS"
"http://statistics.data.gov.uk/id/local-authority/43UM","WOKING BOROUGH COUNCIL","03/08/2022","03/08/2022","GPC/00020118","AMZNMKTPLACE","PROCUREMENT CARD","6.72","INDEPENDENT LIVING SERVICES - FAMILY CENTRES","PROVISIONS","G410","MILK ","KESARA CHEENA","MISC SPECIALITY RETAIL"
"http://statistics.data.gov.uk/id/local-authority/43UM","WOKING BOROUGH COUNCIL","03/08/2022","03/08/2022","GPC/00020120","DISCLOSURE AND BARRING","PROCUREMENT CARD","18.00","CORPORATE MANAGEMENT GROUP - STAFF TRAINING/GENERAL COSTS","CRIMINAL RECORDS BUREAU FEES","H642","BASIC DBS CHECK ","MRS SARAH REED","GOV'T SERV - DEFAULT"
"http://statistics.data.gov.uk/id/local-authority/43UM","WOKING BOROUGH COUNCIL","03/08/2022","03/08/2022","GPC/00020121","WWW.SWIMMINGPOOLCHEMIC","PROCUREMENT CARD","113.30","NEIGHBOURHOOD SERVICES - MUSLIM BURIAL GRND PEACE GARDE","MAINTENANCE/MINOR WORKS","D211","WINTERISING ALGAECIDE ","MATTHEW WHEELER","BUSINESS SERVICES - DEFAULT"
"http://statistics.data.gov.uk/id/local-authority/43UM","WOKING BOROUGH COUNCIL","03/08/2022","03/08/2022","GPC/00020122","EDF ENERGY-IVR","PROCUREMENT CARD","16.67","HOUSING SERVICES - ENERGY","ELECTRICITY","D400","NO ELECTRIC AT NEW PROPERTY","PHILIP OGLESBY","UTILITIES / ELEC/GAS/H20/SANI"
"http://statistics.data.gov.uk/id/local-authority/43UM","WOKING BOROUGH COUNCIL","03/08/2022","03/08/2022","GPC/00020123","SAINSBURYS S/MKTS","PROCUREMENT CARD","11.25","INDEPENDENT LIVING SERVICES - SOCIAL PRESCRIBING","MISC GRANTS","P410","BOARD GAME BRIDGE COURT","JULIE COWELL","GROCERY STORES"
"http://statistics.data.gov.uk/id/local-authority/43UM","WOKING BOROUGH COUNCIL","03/08/2022","03/08/2022","GPC/00020125","AMZNMKTPLACE","PROCUREMENT CARD","47.46","INDEPENDENT LIVING SERVICES - FAMILY CENTRES","PROVISIONS","G410","SYTH BUNGALOW","KESARA CHEENA","MISC SPECIALITY RETAIL"
"http://statistics.data.gov.uk/id/local-authority/43UM","WOKING BOROUGH COUNCIL","03/08/2022","03/08/2022","GPC/00020126","DOLPHIN COMPUTER ACCESS","PROCUREMENT CARD","83.33","CORPORATE MANAGEMENT GROUP - STAFF TRAINING/GENERAL COSTS","TRAINING - CORPORATE","A910","TRANSACTIONS ON P CARD GBP500 PLUS GBP100 VAT","CLARE GANE","MISC GEN MERCHANDISE - DEF"
"http://statistics.data.gov.uk/id/local-authority/43UM","WOKING BOROUGH COUNCIL","03/08/2022","03/08/2022","GPC/00020127","RYMAN","PROCUREMENT CARD","4.02","PLANNING SERVICES - PLANNING SERVICES GENERAL EXPE","EQUIPMENT","G100","PROTRACTORS FOR PLANNING OFFICERS","MRS CHRISTINE DUPLOCK","STATIONERY STORES"
"http://statistics.data.gov.uk/id/local-authority/43UM","WOKING BOROUGH COUNCIL","03/08/2022","03/08/2022","GPC/00020144","PRIMARK","PROCUREMENT CARD","5.42","INDEPENDENT LIVING SERVICES - FAMILY SUPPORT PROGRAMME","FAMILY ENABLING (FSP PROJECT)","H137","STATIONERY","SARAH WRIGHT","FAMILY CLOTHING STORES"
"http://statistics.data.gov.uk/id/local-authority/43UM","WOKING BOROUGH COUNCIL","04/08/2022","04/08/2022","GPC/00020119","AMZNMKTPLACE","PROCUREMENT CARD","3.74","INDEPENDENT LIVING SERVICES - FAMILY CENTRES","STATIONERY","G620","DISPLAY BOOK","NASREEN FAROOQ","MISC SPECIALITY RETAIL"
"http://statistics.data.gov.uk/id/local-authority/43UM","WOKING BOROUGH COUNCIL","04/08/2022","04/08/2022","GPC/00020119","AMZNMKTPLACE","PROCUREMENT CARD","3.74","INDEPENDENT LIVING SERVICES - FAMILY CENTRES","STATIONERY","G620","DISPLAY BOOK","NASREEN FAROOQ","MISC SPECIALITY RETAIL"
"http://statistics.data.gov.uk/id/local-authority/43UM","WOKING BOROUGH COUNCIL","04/08/2022","04/08/2022","GPC/00020128","TESCO STORE 2160","PROCUREMENT CARD","4.00","INDEPENDENT LIVING SERVICES - FAMILY CENTRES","PROVISIONS","G410","SEND PICNIC PROVISIONS","CAREY HARRISON","GROCERY STORES"
"http://statistics.data.gov.uk/id/local-authority/43UM","WOKING BOROUGH COUNCIL","04/08/2022","04/08/2022","GPC/00020129","JUSTPARK PARKING LIMITED","PROCUREMENT CARD","5.33","INDEPENDENT LIVING SERVICES - HOME SUPPORT SERVICE","EQUIPMENT","G100","PARKING","JULIE COWELL","AUTO PARKING LOTS/GARAGES"
"http://statistics.data.gov.uk/id/local-authority/43UM","WOKING BOROUGH COUNCIL","04/08/2022","04/08/2022","GPC/00020130","SAINSBURYS PETROL","PROCUREMENT CARD","89.18","HOUSING SERVICES - HOME IMPS & BEN AGENCY","TRAVEL EXPENSES-OFFICERS","F600","FUEL FOR HP VAN","LEIGH ROBERTS","SERVICE STATIONS"
"http://statistics.data.gov.uk/id/local-authority/43UM","WOKING BOROUGH COUNCIL","04/08/2022","04/08/2022","GPC/00020131","SAINSBURYS","PROCUREMENT CARD","200.00","CORPORATE STRATEGY - HOUSEHOLD SUPPORT FUND","HSF FOOD CHILDREN","G155","HOUSEHOLD FUND FOOD VOUCHERS","JANET COURTNEY","GROCERY STORES"
"http://statistics.data.gov.uk/id/local-authority/43UM","WOKING BOROUGH COUNCIL","04/08/2022","04/08/2022","GPC/00020132","WWW.SCREWFIX.COM","PROCUREMENT CARD","12.90","BUILDING SERVICES - L.M.C. - HOE VALLEY SCHOOL","R&M BUILDINGS - CONTRACTORS","D100","AIR CAN FOR SBX FIRE SYSTEM TEST","RICK HAZLEWOOD","LUMBER/BUILD SUPPLY STORES"
"http://statistics.data.gov.uk/id/local-authority/43UM","WOKING BOROUGH COUNCIL","04/08/2022","04/08/2022","GPC/00020133","SP SPRINGWELL MICRO","PROCUREMENT CARD","319.90","CORPORATE STRATEGY - COVID -19 PANDEMIC","MAIN CONTRACTOR","Q200","FLUSHING DEVICES FOR BROOKWOOD PAVILION","RICK HAZLEWOOD","ELECTRICAL PARTS/EQUIPMENT"
"http://statistics.data.gov.uk/id/local-authority/43UM","WOKING BOROUGH COUNCIL","04/08/2022","04/08/2022","GPC/00020134","ASDA STORES LTD","PROCUREMENT CARD","200.00","CORPORATE STRATEGY - HOUSEHOLD SUPPORT FUND","HSF FOOD CHILDREN","G155","HOUSEHOLD FUND","JANICE GOONERY","GROCERY STORES"
"http://statistics.data.gov.uk/id/local-authority/43UM","WOKING BOROUGH COUNCIL","04/08/2022","04/08/2022","GPC/00020135","AO RETAIL LIMITED","PROCUREMENT CARD","415.83","HOUSING SERVICES - UKRAINE REFUGEE","PURCHASE OF FURNITURE","Q500","ELECTRICAL","JANET COURTNEY","HOUSEHOLD APPLIANCE STORES"
"http://statistics.data.gov.uk/id/local-authority/43UM","WOKING BOROUGH COUNCIL","04/08/2022","04/08/2022","GPC/00020136","WWW.MONEYCLAIM.GOV","PROCUREMENT CARD","80.00","CORPORATE STRATEGY - LEGAL","COURT COSTS","H620","COURT FEE - ISSUE CLAIM","MISS A J FRANCIS","GOV'T SERV - DEFAULT"
"http://statistics.data.gov.uk/id/local-authority/43UM","WOKING BOROUGH COUNCIL","04/08/2022","04/08/2022","GPC/00020137","VOUCHER EXPRESS","PROCUREMENT CARD","166.67","CORPORATE STRATEGY - HOUSEHOLD SUPPORT FUND","HSF FOOD CHILDREN","G155","HOUSEHOLD FUND","JANICE GOONERY","BUSINESS SERVICES - DEFAULT"
"http://statistics.data.gov.uk/id/local-authority/43UM","WOKING BOROUGH COUNCIL","04/08/2022","04/08/2022","GPC/00020138","FIRST CHOICE CATERING SPA","PROCUREMENT CARD","159.52","INDEPENDENT LIVING SERVICES - MEALS ON WHEELS","NEW EQUIPMENT","G105","PART FOR RATIONAL OVEN","REBECCA STEVENS","COMMERCIAL EQUIPMENT/DEF"
"http://statistics.data.gov.uk/id/local-authority/43UM","WOKING BOROUGH COUNCIL","04/08/2022","04/08/2022","GPC/00020139","WICKES WOKING","PROCUREMENT CARD","14.67","HOUSING SERVICES - HOME IMPS & BEN AGENCY","HANDYPERSON MATERIALS","G201","HANDYPERSON MATERIALS","JASON BALCHIN","HOME SUPPLY WAREHOUSE STORES"
"http://statistics.data.gov.uk/id/local-authority/43UM","WOKING BOROUGH COUNCIL","04/08/2022","04/08/2022","GPC/00020140","ASDA STORES 4823","PROCUREMENT CARD","29.60","INDEPENDENT LIVING SERVICES - FAMILY CENTRES","EQUIPMENT","G100","SYTHWOOD GARDEN EQUIPMENT","CLAIRE O'KELLY","GROCERY STORES"
"http://statistics.data.gov.uk/id/local-authority/43UM","WOKING BOROUGH COUNCIL","04/08/2022","04/08/2022","GPC/00020141","AMZNMKTPLACE","PROCUREMENT CARD","13.29","INDEPENDENT LIVING SERVICES - FAMILY CENTRES","PROVISIONS","G410","NOW AND NEXT BOARD DBRA","KESARA CHEENA","MISC SPECIALITY RETAIL"
"http://statistics.data.gov.uk/id/local-authority/43UM","WOKING BOROUGH COUNCIL","04/08/2022","04/08/2022","GPC/00020142","UNITY WOKING","PROCUREMENT CARD","5.16","ASSET MANAGEMENT - FACILITIES MANAGEMENT","FACILITIES MANAGEMENT REPAIRS","D908","HOSECLIPS FOR IRRIGATION MIDAS HOUSE","MR D JONES","AUTOMOTIVE PARTS STORES"
"http://statistics.data.gov.uk/id/local-authority/43UM","WOKING BOROUGH COUNCIL","04/08/2022","04/08/2022","GPC/00020143","WICKES WOKING","PROCUREMENT CARD","18.75","HOUSING SERVICES - HOME IMPS & BEN AGENCY","HANDYPERSON MATERIALS","G201","HANDYPERSON MATERIALS","JASON BALCHIN","HOME SUPPLY WAREHOUSE STORES"
"http://statistics.data.gov.uk/id/local-authority/43UM","WOKING BOROUGH COUNCIL","04/08/2022","04/08/2022","GPC/00020145","RYMAN","PROCUREMENT CARD","14.99","HOUSING SERVICES - HOME IMPS & BEN AGENCY","EXTERNAL PRINTING - PUBLICITY","G605","FAN FOR OFFICE IN WISH FLAT BROCKHILL","HELEN KEMPSELL","STATIONERY STORES"
"http://statistics.data.gov.uk/id/local-authority/43UM","WOKING BOROUGH COUNCIL","04/08/2022","04/08/2022","GPC/00020147","WWW.SCREWFIX.COM","PROCUREMENT CARD","11.97","CORPORATE STRATEGY - COVID -19 PANDEMIC","MAIN CONTRACTOR","Q200","ITEMS FOR WATERER PARK AND VAN STOCK","RICK HAZLEWOOD","LUMBER/BUILD SUPPLY STORES"
"http://statistics.data.gov.uk/id/local-authority/43UM","WOKING BOROUGH COUNCIL","04/08/2022","04/08/2022","GPC/00020148","ASDA STORES 4823","PROCUREMENT CARD","29.20","INDEPENDENT LIVING SERVICES - FAMILY CENTRES","PROVISIONS","G410","SEND PICNIC PROVISIONS","CAREY HARRISON","GROCERY STORES"
"http://statistics.data.gov.uk/id/local-authority/43UM","WOKING BOROUGH COUNCIL","04/08/2022","04/08/2022","GPC/00020149","ESSO BELLFIELDS SSTN","PROCUREMENT CARD","1.46","FINANCIAL SERVICES - BROCKHILL SOCIAL FUND","MISCELLANEOUS EXPENSES","X827","BISCUITS FOR BROCKHILL","MRS M CHILCOTT","SERVICE STATIONS"
"http://statistics.data.gov.uk/id/local-authority/43UM","WOKING BOROUGH COUNCIL","30/06/2022","05/08/2022","0000479567/001","BOTTOMLINE TECHNOLOGIES LIMITED","40903700","465.16","INFORMATION TECHNOLOGY - I.T.S. ICT","HOSTED SYSTEMS","G198","HOSTED SYSTEMS","INFORMATION TECHNOLOGY","INFORMATION COMMUNICATION TECHNOLOGY"
"http://statistics.data.gov.uk/id/local-authority/43UM","WOKING BOROUGH COUNCIL","22/07/2022","05/08/2022","0000480107/001","ALLSTAR BUSINESS SOLUTIONS LTD","01500600","328.20","INDEPENDENT LIVING SERVICES - MEALS ON WHEELS","PETROL","F200","PETROL","INDEPENDENT LIVING SERVICES","UTILITIES"
"http://statistics.data.gov.uk/id/local-authority/43UM","WOKING BOROUGH COUNCIL","22/07/2022","05/08/2022","0000480195/001","RSP RAIL TRAVEL ACCOUNT","01121300","17.10","HOUSING SERVICES - HOUSING OPTIONS","TRAVEL EXPENSES-RESIDENTS","F630","TRAVEL EXPENSES-RESIDENTS","HOUSING SERVICES","PUBLIC TRANSPORT"
"http://statistics.data.gov.uk/id/local-authority/43UM","WOKING BOROUGH COUNCIL","29/07/2022","05/08/2022","0000480419/001","LAND REGISTRY","00018400","268.00","CORPORATE STRATEGY - LEGAL","LAND REGISTRY FEE","H425","LAND REGISTRY FEE","CORPORATE STRATEGY","LEGAL SERVICES"
"http://statistics.data.gov.uk/id/local-authority/43UM","WOKING BOROUGH COUNCIL","31/07/2022","05/08/2022","0000480510/001","BOTTOMLINE TECHNOLOGIES LIMITED","40903700","488.42","INFORMATION TECHNOLOGY - I.T.S. ICT","HOSTED SYSTEMS","G198","HOSTED SYSTEMS","INFORMATION TECHNOLOGY","INFORMATION COMMUNICATION TECHNOLOGY"
"http://statistics.data.gov.uk/id/local-authority/43UM","WOKING BOROUGH COUNCIL","19/07/2022","05/08/2022","0000480560/001","BOTTOMLINE TECHNOLOGIES LIMITED","40903700","7792.83","INFORMATION TECHNOLOGY - 150 COUNCIL TAX REBATE SCHEME","OTHER CONSULTANTS","Q430","OTHER CONSULTANTS","INFORMATION TECHNOLOGY","INFORMATION COMMUNICATION TECHNOLOGY"
"http://statistics.data.gov.uk/id/local-authority/43UM","WOKING BOROUGH COUNCIL","29/07/2022","05/08/2022","0030003585/001","PUBLIC WORKS LOAN BOARD","00021400","165833.56","FINANCIAL SERVICES - INTEREST PAYABLE & SIMILAR CHG","PWLB ANNUITY","U111","PWLB ANNUITY","FINANCIAL SERVICES","FINANCIAL SERVICES"
"http://statistics.data.gov.uk/id/local-authority/43UM","WOKING BOROUGH COUNCIL","29/07/2022","05/08/2022","0030003586/001","BARCLAYS CAPITAL","00132800","116472.60","FINANCIAL SERVICES - INTEREST PAYABLE & SIMILAR CHG","L.O.B.O. LOAN","U113","L.O.B.O. LOAN","FINANCIAL SERVICES","FINANCIAL SERVICES"
"http://statistics.data.gov.uk/id/local-authority/43UM","WOKING BOROUGH COUNCIL","01/08/2022","05/08/2022","0030003587/001","PUBLIC WORKS LOAN BOARD","00021400","279674.51","FINANCIAL SERVICES - INTEREST PAYABLE & SIMILAR CHG","PWLB ANNUITY","U111","PWLB ANNUITY","FINANCIAL SERVICES","FINANCIAL SERVICES"
"http://statistics.data.gov.uk/id/local-authority/43UM","WOKING BOROUGH COUNCIL","01/08/2022","05/08/2022","0030003588/001","PUBLIC WORKS LOAN BOARD","00021400","111000.00","FINANCIAL SERVICES - INTEREST PAYABLE & SIMILAR CHG","PWLB MATURITY LOAN","U112","PWLB MATURITY LOAN","FINANCIAL SERVICES","FINANCIAL SERVICES"
"http://statistics.data.gov.uk/id/local-authority/43UM","WOKING BOROUGH COUNCIL","01/08/2022","05/08/2022","0030003589/001","PUBLIC WORKS LOAN BOARD","00021400","110750.00","FINANCIAL SERVICES - INTEREST PAYABLE & SIMILAR CHG","PWLB MATURITY LOAN","U112","PWLB MATURITY LOAN","FINANCIAL SERVICES","FINANCIAL SERVICES"
"http://statistics.data.gov.uk/id/local-authority/43UM","WOKING BOROUGH COUNCIL","01/08/2022","05/08/2022","0030003590/001","PUBLIC WORKS LOAN BOARD","00021400","124046.65","FINANCIAL SERVICES - INTEREST PAYABLE & SIMILAR CHG","PWLB ANNUITY","U111","PWLB ANNUITY","FINANCIAL SERVICES","FINANCIAL SERVICES"
"http://statistics.data.gov.uk/id/local-authority/43UM","WOKING BOROUGH COUNCIL","29/07/2022","05/08/2022","0030003591/001","BARCLAYS CAPITAL","00132800","116472.60","FINANCIAL SERVICES - INTEREST PAYABLE & SIMILAR CHG","L.O.B.O. LOAN","U113","L.O.B.O. LOAN","FINANCIAL SERVICES","FINANCIAL SERVICES"
"http://statistics.data.gov.uk/id/local-authority/43UM","WOKING BOROUGH COUNCIL","04/08/2022","05/08/2022","0030003594/001","PUBLIC WORKS LOAN BOARD","00021400","111500.00","FINANCIAL SERVICES - INTEREST PAYABLE & SIMILAR CHG","PWLB MATURITY LOAN","U112","PWLB MATURITY LOAN","FINANCIAL SERVICES","FINANCIAL SERVICES"
"http://statistics.data.gov.uk/id/local-authority/43UM","WOKING BOROUGH COUNCIL","05/08/2022","05/08/2022","GPC/00020152","ISTA UTILITY BILLING","PROCUREMENT CARD","375.85","CORPORATE STRATEGY - HOUSEHOLD SUPPORT FUND","HSF ENERGY/WATER CHILDREN","G255","ELECTRICITY BILL FROM HOUSE HOLD FUND","PALLAVI SHARAN","UTILITIES / ELEC/GAS/H20/SANI"
"http://statistics.data.gov.uk/id/local-authority/43UM","WOKING BOROUGH COUNCIL","05/08/2022","05/08/2022","GPC/00020153","ARGOS LTD","PROCUREMENT CARD","46.67","INDEPENDENT LIVING SERVICES - THE VYNE","EQUIPMENT","G100","GARDEN HOSE","GILLIAN WAINE","DISCOUNT STORES"
"http://statistics.data.gov.uk/id/local-authority/43UM","WOKING BOROUGH COUNCIL","05/08/2022","05/08/2022","GPC/00020155","AMZNMKTPLACE","PROCUREMENT CARD","17.46","INDEPENDENT LIVING SERVICES - THE VYNE","PROVISIONS","G410","CAFE PROVISIONS","GILLIAN WAINE","MISC SPECIALITY RETAIL"
"http://statistics.data.gov.uk/id/local-authority/43UM","WOKING BOROUGH COUNCIL","05/08/2022","05/08/2022","GPC/00020156","ARGOS LTD","PROCUREMENT CARD","150.83","INDEPENDENT LIVING SERVICES - SW REGEN HOME LOSS PAYMENTS","MAIN CONTRACTOR","Q200","CURTAIN POLES AND CURTAINS FOR SHEERWATER TENANT ","SHANAZ ASHRAF","DISCOUNT STORES"
"http://statistics.data.gov.uk/id/local-authority/43UM","WOKING BOROUGH COUNCIL","05/08/2022","05/08/2022","GPC/00020157","WWW.SCREWFIX.COM","PROCUREMENT CARD","42.90","ASSET MANAGEMENT - FACILITIES MANAGEMENT","FACILITIES MANAGEMENT REPAIRS","D908","IRRIGATION MIDAS HOUSE","MR D JONES","LUMBER/BUILD SUPPLY STORES"
"http://statistics.data.gov.uk/id/local-authority/43UM","WOKING BOROUGH COUNCIL","05/08/2022","05/08/2022","GPC/00020161","HALFORDS 0763","PROCUREMENT CARD","9.82","ASSET MANAGEMENT - BUILDING SERVICES","PETROL","F200","FOR VAN","MR D JONES","BICYCLE SHOPS/SALES/SERVICE"
"http://statistics.data.gov.uk/id/local-authority/43UM","WOKING BOROUGH COUNCIL","05/08/2022","05/08/2022","GPC/00020162","AO RETAIL LIMITED","PROCUREMENT CARD","529.99","INDEPENDENT LIVING SERVICES - SW REGEN HOME LOSS PAYMENTS","MAIN CONTRACTOR","Q200","WHITE GOODS FOR TENANT","SHANAZ ASHRAF","HOUSEHOLD APPLIANCE STORES"
"http://statistics.data.gov.uk/id/local-authority/43UM","WOKING BOROUGH COUNCIL","05/08/2022","05/08/2022","GPC/00020163","ISTA UTILITY BILLING","PROCUREMENT CARD","124.15","CORPORATE STRATEGY - HOUSEHOLD SUPPORT FUND","HSF ENERGY/WATER CHILDREN","G255","UTILITY BILL FROM HOUSE HOLD FUND","PALLAVI SHARAN","UTILITIES / ELEC/GAS/H20/SANI"
"http://statistics.data.gov.uk/id/local-authority/43UM","WOKING BOROUGH COUNCIL","05/08/2022","05/08/2022","GPC/00020164","SAINSBURYS S/MKTS","PROCUREMENT CARD","13.00","NEIGHBOURHOOD SERVICES - ARTS DEVELOPMENT","EQUIPMENT REPAIR & MAINTENANCE","G120","ADDITIONAL TOILET ROLL FOR BUZZ ","ROSE E L BLACKLEY","GROCERY STORES"
"http://statistics.data.gov.uk/id/local-authority/43UM","WOKING BOROUGH COUNCIL","05/08/2022","05/08/2022","GPC/00020165","WWW.OVOENERGY.COM","PROCUREMENT CARD","41.67","HOUSING SERVICES - ENERGY","ELECTRICITY","D400","TOP UP METER FOR FLAT SWITCHED TO PAY AS YOU GO ","PHILIP OGLESBY","UTILITIES / ELEC/GAS/H20/SANI"
"http://statistics.data.gov.uk/id/local-authority/43UM","WOKING BOROUGH COUNCIL","05/08/2022","05/08/2022","GPC/00020169","HOME BARGAINS BYFLEET","PROCUREMENT CARD","48.38","INDEPENDENT LIVING SERVICES - SOCIAL PRESCRIBING","MISC GRANTS","P410","BBQ STUFF","JULIE COWELL","HARDWARE STORES"
"http://statistics.data.gov.uk/id/local-authority/43UM","WOKING BOROUGH COUNCIL","05/08/2022","05/08/2022","GPC/00020170","SUMUP  *MR.CARLOS ICE CRE","PROCUREMENT CARD","24.50","INDEPENDENT LIVING SERVICES - FAMILY CENTRES","PROVISIONS","G410","STAFF ICECREAMS AT THE SEND PICNIC","JULIEA MORRIS","MISC FOOD STORES - DEFAULT"
"http://statistics.data.gov.uk/id/local-authority/43UM","WOKING BOROUGH COUNCIL","05/08/2022","05/08/2022","GPC/00020171","PRET A MANGER 5052 WOKING","PROCUREMENT CARD","7.40","INDEPENDENT LIVING SERVICES - FAMILY SUPPORT PROGRAMME","FAMILY ENABLING (FSP PROJECT)","H137","COFFEE","PALLAVI SHARAN","FAST FOOD RESTAURANTS"
"http://statistics.data.gov.uk/id/local-authority/43UM","WOKING BOROUGH COUNCIL","05/08/2022","05/08/2022","GPC/00020172","ROBERT DYAS WOKING","PROCUREMENT CARD","10.82","CORPORATE STRATEGY - PUBLIC RELATIONS","GENERAL PUBLIC RELATIONS EXPNS","H915","CABLE TIES","MR AC DENNER","HARDWARE STORES"
"http://statistics.data.gov.uk/id/local-authority/43UM","WOKING BOROUGH COUNCIL","05/08/2022","05/08/2022","GPC/00020173","WAITROSE 181","PROCUREMENT CARD","14.80","INDEPENDENT LIVING SERVICES - BROCKHILL EXTRA CARE","STEP DOWN","H300","STEP DOWN ITEMS","OVIDIU MITROFAN","GROCERY STORES"
"http://statistics.data.gov.uk/id/local-authority/43UM","WOKING BOROUGH COUNCIL","05/08/2022","05/08/2022","GPC/00020174","ST JOHN AMBULANCE","PROCUREMENT CARD","198.00","CORPORATE MANAGEMENT GROUP - STAFF TRAINING/GENERAL COSTS","TRAINING - CORPORATE","A910","FIRST AID COURSE","SARAH WRIGHT","CHARITABLE/SOC SERVICE ORGS"
"http://statistics.data.gov.uk/id/local-authority/43UM","WOKING BOROUGH COUNCIL","05/08/2022","05/08/2022","GPC/00020175","ARGOS LTD","PROCUREMENT CARD","57.50","INDEPENDENT LIVING SERVICES - REMOVAL COSTS SHEERWATER REGEB","MAIN CONTRACTOR","Q200","PACKING BOXES FOR REGEN TENANT","SHANAZ ASHRAF","DISCOUNT STORES"
"http://statistics.data.gov.uk/id/local-authority/43UM","WOKING BOROUGH COUNCIL","05/08/2022","05/08/2022","GPC/00020179","JUSTPARK PARKING LIMITED","PROCUREMENT CARD","3.20","INDEPENDENT LIVING SERVICES - FAMILY SUPPORT PROGRAMME","PARKING COSTS","F510","PARKING- HOME VISIT","PALLAVI SHARAN","AUTO PARKING LOTS/GARAGES"
"http://statistics.data.gov.uk/id/local-authority/43UM","WOKING BOROUGH COUNCIL","06/08/2022","06/08/2022","GPC/00020150","AMZNMKTPLACE","PROCUREMENT CARD","17.91","INDEPENDENT LIVING SERVICES - FAMILY SUPPORT PROGRAMME","EQUIPMENT","G100","AMAZON CHARGER","EVELYN EYISON","MISC SPECIALITY RETAIL"
"http://statistics.data.gov.uk/id/local-authority/43UM","WOKING BOROUGH COUNCIL","06/08/2022","06/08/2022","GPC/00020180","DNH*GO DADDY EUROPE GBP","PROCUREMENT CARD","202.36","ASSET MANAGEMENT - PLANET WOKING","MAIN CONTRACTOR","Q200","RENEWAL OF PLANET WOKING WEBSITE DOMAINS","MRS L M BEATTIE","COMPUTER NETWORK/INFORMATION SERVICES"
"http://statistics.data.gov.uk/id/local-authority/43UM","WOKING BOROUGH COUNCIL","07/08/2022","07/08/2022","GPC/00020151","AMZ*SIGNATURE LIFE MOB","PROCUREMENT CARD","-153.33","HOUSING SERVICES - HOME IMPS & BEN AGENCY","HANDYPERSON MATERIALS","G201","REFUND ON SUPERPOLE NOT DELIVERED","HANNAH SCOTT","MISC SPECIALITY RETAIL"
"http://statistics.data.gov.uk/id/local-authority/43UM","WOKING BOROUGH COUNCIL","07/08/2022","07/08/2022","GPC/00020158","AMZNMKTPLACE","PROCUREMENT CARD","7.25","INDEPENDENT LIVING SERVICES - FAMILY CENTRES","PROVISIONS","G410","ST JOHNS CLEANSING WIPES","KESARA CHEENA","MISC SPECIALITY RETAIL"
"http://statistics.data.gov.uk/id/local-authority/43UM","WOKING BOROUGH COUNCIL","07/08/2022","07/08/2022","GPC/00020159","BOOKERECOMM","PROCUREMENT CARD","11.78","INDEPENDENT LIVING SERVICES - MEALS SERVICE - BROCKHILL","PROVISIONS","G410","GROCERIES FOR KITCHENS","REBECCA STEVENS","CATERERS"
"http://statistics.data.gov.uk/id/local-authority/43UM","WOKING BOROUGH COUNCIL","07/08/2022","07/08/2022","GPC/00020160","AMZNMKTPLACE","PROCUREMENT CARD","12.74","INDEPENDENT LIVING SERVICES - FAMILY CENTRES","PROVISIONS","G410","GAZEBO WEIGHT BAGS - SEND PICNIC","KESARA CHEENA","MISC SPECIALITY RETAIL"
"http://statistics.data.gov.uk/id/local-authority/43UM","WOKING BOROUGH COUNCIL","07/08/2022","07/08/2022","GPC/00020166","BOOKERECOMM","PROCUREMENT CARD","85.21","INDEPENDENT LIVING SERVICES - MEALS ON WHEELS","PROVISIONS","G410","GROCERIES FOR KITCHENS","REBECCA STEVENS","CATERERS"
"http://statistics.data.gov.uk/id/local-authority/43UM","WOKING BOROUGH COUNCIL","07/08/2022","07/08/2022","GPC/00020167","BOOKERECOMM","PROCUREMENT CARD","70.30","INDEPENDENT LIVING SERVICES - MEALS SERVICE - HALE END COURT","PROVISIONS","G410","GROCERIES FOR HALE END","REBECCA STEVENS","CATERERS"
"http://statistics.data.gov.uk/id/local-authority/43UM","WOKING BOROUGH COUNCIL","07/08/2022","07/08/2022","GPC/00020167","BOOKERECOMM","PROCUREMENT CARD","84.95","INDEPENDENT LIVING SERVICES - MEALS SERVICE - HALE END COURT","PROVISIONS","G410","GROCERIES FOR HALE END","REBECCA STEVENS","CATERERS"
"http://statistics.data.gov.uk/id/local-authority/43UM","WOKING BOROUGH COUNCIL","07/08/2022","07/08/2022","GPC/00020168","BOOKERECOMM","PROCUREMENT CARD","13.78","INDEPENDENT LIVING SERVICES - MEALS SERVICE -THE VYNE","PROVISIONS","G410","GROCERIES FOR THE VYNE","REBECCA STEVENS","CATERERS"
"http://statistics.data.gov.uk/id/local-authority/43UM","WOKING BOROUGH COUNCIL","07/08/2022","07/08/2022","GPC/00020168","BOOKERECOMM","PROCUREMENT CARD","44.36","INDEPENDENT LIVING SERVICES - MEALS SERVICE -THE VYNE","PROVISIONS","G410","GROCERIES FOR THE VYNE","REBECCA STEVENS","CATERERS"
"http://statistics.data.gov.uk/id/local-authority/43UM","WOKING BOROUGH COUNCIL","07/08/2022","07/08/2022","GPC/00020176","BOOKERECOMM","PROCUREMENT CARD","16.77","INDEPENDENT LIVING SERVICES - MEALS SERVICE - BROCKHILL","PROVISIONS","G410","GROCERIES FOR KITCHENS","REBECCA STEVENS","CATERERS"
"http://statistics.data.gov.uk/id/local-authority/43UM","WOKING BOROUGH COUNCIL","07/08/2022","07/08/2022","GPC/00020176","BOOKERECOMM","PROCUREMENT CARD","117.84","INDEPENDENT LIVING SERVICES - MEALS SERVICE - BROCKHILL","PROVISIONS","G410","GROCERIES FOR KITCHENS","REBECCA STEVENS","CATERERS"
"http://statistics.data.gov.uk/id/local-authority/43UM","WOKING BOROUGH COUNCIL","07/08/2022","07/08/2022","GPC/00020177","BOOKERECOMM","PROCUREMENT CARD","36.92","INDEPENDENT LIVING SERVICES - MEALS SERVICE - ST MARYS","PROVISIONS","G410","GROCERIES FOR KITCHENS","REBECCA STEVENS","CATERERS"
"http://statistics.data.gov.uk/id/local-authority/43UM","WOKING BOROUGH COUNCIL","07/08/2022","07/08/2022","GPC/00020178","AMZNMKTPLACE","PROCUREMENT CARD","8.79","INDEPENDENT LIVING SERVICES - FAMILY CENTRES","PROVISIONS","G410","FIRST AID - INSTANT ICE SEND PICNIC","KESARA CHEENA","MISC SPECIALITY RETAIL"
"http://statistics.data.gov.uk/id/local-authority/43UM","WOKING BOROUGH COUNCIL","08/08/2022","08/08/2022","GPC/00020154","AMZNMKTPLACE","PROCUREMENT CARD","11.66","INDEPENDENT LIVING SERVICES - FAMILY CENTRES","PROVISIONS","G410","GALVANISED PEGS - SEND PICNIC JM","KESARA CHEENA","MISC SPECIALITY RETAIL"
"http://statistics.data.gov.uk/id/local-authority/43UM","WOKING BOROUGH COUNCIL","08/08/2022","08/08/2022","GPC/00020181","VOUCHER EXPRESS","PROCUREMENT CARD","166.67","CORPORATE STRATEGY - HOUSEHOLD SUPPORT FUND","HSF FOOD CHILDREN","G155","HOUSEHOLD FUND-BICKNALL","JANICE GOONERY","BUSINESS SERVICES - DEFAULT"
"http://statistics.data.gov.uk/id/local-authority/43UM","WOKING BOROUGH COUNCIL","08/08/2022","08/08/2022","GPC/00020182","AMAZON PRIME","PROCUREMENT CARD","-0.82","INDEPENDENT LIVING SERVICES - FAMILY SUPPORT PROGRAMME","EQUIPMENT","G100","EQUIPMENT","EVELYN EYISON","CONTINUITY/SUBSCRIPTION MERCHANT"
"http://statistics.data.gov.uk/id/local-authority/43UM","WOKING BOROUGH COUNCIL","08/08/2022","08/08/2022","GPC/00020183","MAILCHIMP","PROCUREMENT CARD","75.37","CORPORATE STRATEGY - PUBLIC RELATIONS","GENERAL PUBLIC RELATIONS EXPNS","H915","MONTHLY MAILING COSTS FOR WBC ENEWSLETTER","MISS K MAIR","DIGITAL GOODS-MULTI-CATEGORY"
"http://statistics.data.gov.uk/id/local-authority/43UM","WOKING BOROUGH COUNCIL","08/08/2022","08/08/2022","GPC/00020184","TITAN WOKING","PROCUREMENT CARD","8.33","HOUSING SERVICES - HOUSING OPTIONS","EQUIPMENT","G100","DEPOSIT ON STORAGE","JANET COURTNEY","BUSINESS SERVICES - DEFAULT"
"http://statistics.data.gov.uk/id/local-authority/43UM","WOKING BOROUGH COUNCIL","08/08/2022","08/08/2022","GPC/00020185","AMZNMKTPLACE","PROCUREMENT CARD","18.32","INDEPENDENT LIVING SERVICES - MOORCROFT","PROVISIONS","G410","CAFE SUPPLIES","RICHARD BUCKENHAM","MISC SPECIALITY RETAIL"
"http://statistics.data.gov.uk/id/local-authority/43UM","WOKING BOROUGH COUNCIL","08/08/2022","08/08/2022","GPC/00020186","AMZNMKTPLACE","PROCUREMENT CARD","10.77","INDEPENDENT LIVING SERVICES - MOORCROFT","PROVISIONS","G410","CAFE SUPPLIES","RICHARD BUCKENHAM","MISC SPECIALITY RETAIL"
"http://statistics.data.gov.uk/id/local-authority/43UM","WOKING BOROUGH COUNCIL","08/08/2022","08/08/2022","GPC/00020187","AMAZON PRIME","PROCUREMENT CARD","0.82","INDEPENDENT LIVING SERVICES - FAMILY SUPPORT PROGRAMME","EQUIPMENT","G100","EQUIPMENT","EVELYN EYISON","CONTINUITY/SUBSCRIPTION MERCHANT"
"http://statistics.data.gov.uk/id/local-authority/43UM","WOKING BOROUGH COUNCIL","08/08/2022","08/08/2022","GPC/00020188","AMZNMKTPLACE","PROCUREMENT CARD","9.16","INDEPENDENT LIVING SERVICES - FAMILY CENTRES","PROVISIONS","G410","SAND BAG - SEND PICNIC JM","KESARA CHEENA","MISC SPECIALITY RETAIL"
"http://statistics.data.gov.uk/id/local-authority/43UM","WOKING BOROUGH COUNCIL","08/08/2022","08/08/2022","GPC/00020189","ASDA STORES 4823","PROCUREMENT CARD","40.70","INDEPENDENT LIVING SERVICES - PARKVIEW","PROVISIONS","G410","STOCK","DONNA GREGORY","GROCERY STORES"
"http://statistics.data.gov.uk/id/local-authority/43UM","WOKING BOROUGH COUNCIL","08/08/2022","08/08/2022","GPC/00020190","DISCLOSURE AND BARRING","PROCUREMENT CARD","18.00","CORPORATE MANAGEMENT GROUP - STAFF TRAINING/GENERAL COSTS","CRIMINAL RECORDS BUREAU FEES","H642","BASIC DBS CHECK","MRS SARAH REED","GOV'T SERV - DEFAULT"
"http://statistics.data.gov.uk/id/local-authority/43UM","WOKING BOROUGH COUNCIL","08/08/2022","08/08/2022","GPC/00020194","MFG GOLDSWORTH PARK SERVI","PROCUREMENT CARD","41.67","HOUSING SERVICES - HOME IMPS & BEN AGENCY","TRAVEL EXPENSES-OFFICERS","F600","FUEL FOR HP VAN","IAN DEANE","SERVICE STATIONS"
"http://statistics.data.gov.uk/id/local-authority/43UM","WOKING BOROUGH COUNCIL","09/08/2022","09/08/2022","GPC/00020191","BRITISH HEART FOUNDATION","PROCUREMENT CARD","462.00","HOUSING SERVICES - UKRAINE REFUGEE","PURCHASE OF FURNITURE","Q500","SET UP UKRAINE TEMPORARY ACCOMMODATION ","JANET COURTNEY","CHARITABLE/SOC SERVICE ORGS"
"http://statistics.data.gov.uk/id/local-authority/43UM","WOKING BOROUGH COUNCIL","09/08/2022","09/08/2022","GPC/00020192","W M MORRISON STORE","PROCUREMENT CARD","37.09","FINANCIAL SERVICES - BROCKHILL SOCIAL FUND","MISCELLANEOUS EXPENSES","X827","TUCK SHOP","TRINA NEVILLE","GROCERY STORES"
"http://statistics.data.gov.uk/id/local-authority/43UM","WOKING BOROUGH COUNCIL","09/08/2022","09/08/2022","GPC/00020193","JUSTPARK PARKING LIMITED","PROCUREMENT CARD","2.67","INDEPENDENT LIVING SERVICES - MOORCROFT","PROVISIONS","G410","MEETING CIVIC","RICHARD BUCKENHAM","AUTO PARKING LOTS/GARAGES"
"http://statistics.data.gov.uk/id/local-authority/43UM","WOKING BOROUGH COUNCIL","09/08/2022","09/08/2022","GPC/00020195","WILKO RETAIL LIMITED","PROCUREMENT CARD","15.42","HOUSING SERVICES - UKRAINE REFUGEE","PURCHASE OF FURNITURE","Q500","HIGH STREET UKRAINE FLAT","JANICE GOONERY","MISC GEN MERCHANDISE - DEF"
"http://statistics.data.gov.uk/id/local-authority/43UM","WOKING BOROUGH COUNCIL","09/08/2022","09/08/2022","GPC/00020197","ARGOS LTD","PROCUREMENT CARD","214.82","HOUSING SERVICES - UKRAINE REFUGEE","PURCHASE OF FURNITURE","Q500","HIGH STREET WOKING FLAT UKRIANS","JANICE GOONERY","DISCOUNT STORES"
"http://statistics.data.gov.uk/id/local-authority/43UM","WOKING BOROUGH COUNCIL","09/08/2022","09/08/2022","GPC/00020198","ZTL*THE COSY","PROCUREMENT CARD","8.70","CORPORATE STRATEGY - VOLUNTARY DEVELOPMENT","CHARITY DEVELOPMENT","G118","REFRESHMENT","ELSPETH LEIGH ANDREWS","RESTAURANTS"
"http://statistics.data.gov.uk/id/local-authority/43UM","WOKING BOROUGH COUNCIL","09/08/2022","09/08/2022","GPC/00020199","ASDA STORES 4823","PROCUREMENT CARD","352.05","HOUSING SERVICES - UKRAINE REFUGEE","PURCHASE OF FURNITURE","Q500","HIGH STREET FLAT UKRAINE","JANICE GOONERY","GROCERY STORES"
"http://statistics.data.gov.uk/id/local-authority/43UM","WOKING BOROUGH COUNCIL","09/08/2022","09/08/2022","GPC/00020201","HOMEBASE.CO.UK","PROCUREMENT CARD","2.29","INDEPENDENT LIVING SERVICES - SW REGEN HOME LOSS PAYMENTS","MAIN CONTRACTOR","Q200","RETURNED INCORRECT ITEMS","SHANAZ ASHRAF","HOME SUPPLY WAREHOUSE STORES"
"http://statistics.data.gov.uk/id/local-authority/43UM","WOKING BOROUGH COUNCIL","09/08/2022","09/08/2022","GPC/00020202","W M MORRISON STORE","PROCUREMENT CARD","54.25","INDEPENDENT LIVING SERVICES - HALE END COURT","EVENTS EXPENSES","G418","SWEET TRUCK ","RIANNA MEME","GROCERY STORES"
"http://statistics.data.gov.uk/id/local-authority/43UM","WOKING BOROUGH COUNCIL","09/08/2022","09/08/2022","GPC/00020203","SAINSBURYS PETROL","PROCUREMENT CARD","105.00","ASSET MANAGEMENT - BUILDING SERVICES","PETROL","F200","POOL VAN DIESEL","MR C NORTON","SERVICE STATIONS"
"http://statistics.data.gov.uk/id/local-authority/43UM","WOKING BOROUGH COUNCIL","09/08/2022","09/08/2022","GPC/00020204","WICKES WOKING","PROCUREMENT CARD","4.58","INDEPENDENT LIVING SERVICES - SW REGEN HOME LOSS PAYMENTS","MAIN CONTRACTOR","Q200","PLASTIC HOOKS FOR REGEN TENANT","SHANAZ ASHRAF","HOME SUPPLY WAREHOUSE STORES"
"http://statistics.data.gov.uk/id/local-authority/43UM","WOKING BOROUGH COUNCIL","09/08/2022","09/08/2022","GPC/00020205","WWW.SCREWFIX.COM","PROCUREMENT CARD","26.41","ASSET MANAGEMENT - BRIDGE (HG WELLS)","R&M BUILDINGS - CONTRACTORS","D100","LOCKS","MR D JONES","LUMBER/BUILD SUPPLY STORES"
"http://statistics.data.gov.uk/id/local-authority/43UM","WOKING BOROUGH COUNCIL","09/08/2022","09/08/2022","GPC/00020206","TITAN WOKING","PROCUREMENT CARD","158.33","HOUSING SERVICES - HOUSING OPTIONS","EQUIPMENT","G100","DEPOSIT ON STORAGE TO KEEP PROCESSIONS SAFE","JANET COURTNEY","BUSINESS SERVICES - DEFAULT"
"http://statistics.data.gov.uk/id/local-authority/43UM","WOKING BOROUGH COUNCIL","09/08/2022","09/08/2022","GPC/00020207","LAND REGISTRY ECOM CCC","PROCUREMENT CARD","6.00","CORPORATE STRATEGY - LEGAL","LAND REGISTRY FEE","H425","LAND REG AND TITLE PLAN ","PHILLIPA DAVID","GOV'T SERV - DEFAULT"
"http://statistics.data.gov.uk/id/local-authority/43UM","WOKING BOROUGH COUNCIL","30/04/2022","10/08/2022","0000477556/001","MCPG LTD","40800400","92.00","NEIGHBOURHOOD SERVICES - ARTS DEVELOPMENT","EQUIPMENT REPAIR & MAINTENANCE","G120","EQUIPMENT REPAIR & MAINTENANCE","NEIGHBOURHOOD SERVICES","FACILITIES & MANAGEMENT SERVICES"
"http://statistics.data.gov.uk/id/local-authority/43UM","WOKING BOROUGH COUNCIL","09/06/2022","10/08/2022","0000478629/001","RH ENVIRONMENTAL LIMITED","40310200","830.10","NEIGHBOURHOOD SERVICES - NOISE/POLLUTION ABATE","CONSULTANTS","H670","CONSULTANTS","NEIGHBOURHOOD SERVICES","HEALTHCARE"
"http://statistics.data.gov.uk/id/local-authority/43UM","WOKING BOROUGH COUNCIL","04/07/2022","10/08/2022","0000479552/001","PROPERTY INITIATIVES MANAGEMENT LTD","40910000","4410.00","ASSET MANAGEMENT - DUKES COURT","CONSULTANTS","H670","CONSULTANTS","ASSET MANAGEMENT","HOUSING MANAGEMENT"
"http://statistics.data.gov.uk/id/local-authority/43UM","WOKING BOROUGH COUNCIL","06/07/2022","10/08/2022","0000479652/001","HURST WARNE & PARTNERS SURVEYORS LTD","40991300","3463.62","ASSET MANAGEMENT - DUKES COURT","AGENTS LETTING FEES","H742","AGENTS LETTING FEES","ASSET MANAGEMENT","CONSULTANCY"
"http://statistics.data.gov.uk/id/local-authority/43UM","WOKING BOROUGH COUNCIL","07/07/2022","10/08/2022","0000479653/001","BRAY FOX SMITH LTD","40828100","3463.62","ASSET MANAGEMENT - DUKES COURT","AGENTS LETTING FEES","H742","AGENTS LETTING FEES","ASSET MANAGEMENT","LEGAL SERVICES"
"http://statistics.data.gov.uk/id/local-authority/43UM","WOKING BOROUGH COUNCIL","14/07/2022","10/08/2022","0000479920/001","WOKING COMMUNITY TRANSPORT LTD","00046100","45.00","INDEPENDENT LIVING SERVICES - HALE END COURT","EVENTS EXPENSES","G418","EVENTS EXPENSES","INDEPENDENT LIVING SERVICES","PUBLIC TRANSPORT"
"http://statistics.data.gov.uk/id/local-authority/43UM","WOKING BOROUGH COUNCIL","09/07/2022","10/08/2022","0000479954/001","TOTAL GAS & POWER LIMITED","40456400","114.92","CORPORATE STRATEGY - LEISURE MANAGEMENT CONTRACT","CLIMATE CHANGE LEVY","D430","CLIMATE CHANGE LEVY","CORPORATE STRATEGY","UTILITIES"
"http://statistics.data.gov.uk/id/local-authority/43UM","WOKING BOROUGH COUNCIL","09/07/2022","10/08/2022","0000479954/002","TOTAL GAS & POWER LIMITED","40456400","3203.04","CORPORATE STRATEGY - LEISURE MANAGEMENT CONTRACT","GAS","D420","GAS","CORPORATE STRATEGY","UTILITIES"
"http://statistics.data.gov.uk/id/local-authority/43UM","WOKING BOROUGH COUNCIL","15/07/2022","10/08/2022","0000479961/001","POINT THIRTEEN MEDIA LIMITED","40637500","1095.00","PLANNING SERVICES - DEVELOPMENT CONTROL","STAFF RECRUITMENT","A275","STAFF RECRUITMENT","PLANNING SERVICES","HUMAN RESOURCES"
"http://statistics.data.gov.uk/id/local-authority/43UM","WOKING BOROUGH COUNCIL","20/07/2022","10/08/2022","0000480120/001","FLEXI-LETS LIMITED","40882800","2520.00","HOUSING SERVICES - HOUSING OPTIONS","BED & BREAKFAST EXPENDITURE","H786","BED & BREAKFAST EXPENDITURE","HOUSING SERVICES","HOUSING MANAGEMENT"
"http://statistics.data.gov.uk/id/local-authority/43UM","WOKING BOROUGH COUNCIL","24/07/2022","10/08/2022","0000480171/001","WHISTL UK LIMITED","00367900","932.54","CORPORATE STRATEGY - POSTAGE","POSTAGE - STANDARD TARIFF","G700","POSTAGE - STANDARD TARIFF","CORPORATE STRATEGY","MAIL SERVICES"
"http://statistics.data.gov.uk/id/local-authority/43UM","WOKING BOROUGH COUNCIL","24/07/2022","10/08/2022","0000480172/001","WHISTL UK LIMITED","00367900","1538.64","CORPORATE STRATEGY - POSTAGE","POSTAGE - STANDARD TARIFF","G700","POSTAGE - STANDARD TARIFF","CORPORATE STRATEGY","MAIL SERVICES"
"http://statistics.data.gov.uk/id/local-authority/43UM","WOKING BOROUGH COUNCIL","21/07/2022","10/08/2022","0000480182/001","WPS UNITED KINGDOM LTD","40942300","13257.50","NEIGHBOURHOOD SERVICES - CAR PARKS ADMIN&OPERATIONAL EX","TICKET MACHINE ANNUAL CONTRACT","D830","TICKET MACHINE ANNUAL CONTRACT","NEIGHBOURHOOD SERVICES","STREET & TRAFFIC MANAGEMENT"
"http://statistics.data.gov.uk/id/local-authority/43UM","WOKING BOROUGH COUNCIL","21/07/2022","10/08/2022","0000480183/001","WPS UNITED KINGDOM LTD","40942300","8897.00","NEIGHBOURHOOD SERVICES - CAR PARKS ADMIN&OPERATIONAL EX","TICKET MACHINE ANNUAL CONTRACT","D830","TICKET MACHINE ANNUAL CONTRACT","NEIGHBOURHOOD SERVICES","STREET & TRAFFIC MANAGEMENT"
"http://statistics.data.gov.uk/id/local-authority/43UM","WOKING BOROUGH COUNCIL","24/06/2022","10/08/2022","0000480194/001","BIDVEST NOONAN UK LTD","40977700","-11772.99","ASSET MANAGEMENT - CIVIC OFFICES","CONTRACT SECURITY","H602","CONTRACT SECURITY","ASSET MANAGEMENT","CONSULTANCY"
"http://statistics.data.gov.uk/id/local-authority/43UM","WOKING BOROUGH COUNCIL","23/06/2022","10/08/2022","0000480245/001","WPS UNITED KINGDOM LTD","40942300","-445.00","NEIGHBOURHOOD SERVICES - CAR PARKS ADMIN&OPERATIONAL EX","TICKET MACHINE ANNUAL CONTRACT","D830","TICKET MACHINE ANNUAL CONTRACT","NEIGHBOURHOOD SERVICES","STREET & TRAFFIC MANAGEMENT"
"http://statistics.data.gov.uk/id/local-authority/43UM","WOKING BOROUGH COUNCIL","25/07/2022","10/08/2022","0000480246/001","ROYAL MAIL GROUP LTD","00040000","112.83","CORPORATE STRATEGY - POSTAGE","POSTAGE - REPLY PAID","G710","POSTAGE - REPLY PAID","CORPORATE STRATEGY","MAIL SERVICES"
"http://statistics.data.gov.uk/id/local-authority/43UM","WOKING BOROUGH COUNCIL","21/07/2022","10/08/2022","0000480266/001","NPOWER","40619800","35.61","BUILDING SERVICES - L.M.C. - HOE VALLEY SCHOOL","CLIMATE CHANGE LEVY","D430","CLIMATE CHANGE LEVY","BUILDING SERVICES","UTILITIES"
"http://statistics.data.gov.uk/id/local-authority/43UM","WOKING BOROUGH COUNCIL","21/07/2022","10/08/2022","0000480266/002","NPOWER","40619800","947.23","BUILDING SERVICES - L.M.C. - HOE VALLEY SCHOOL","GAS","D420","GAS","BUILDING SERVICES","UTILITIES"
"http://statistics.data.gov.uk/id/local-authority/43UM","WOKING BOROUGH COUNCIL","21/07/2022","10/08/2022","0000480267/001","NPOWER","40619800","460.68","BUILDING SERVICES - L.M.C. - HOE VALLEY SCHOOL","GAS","D420","GAS","BUILDING SERVICES","UTILITIES"
"http://statistics.data.gov.uk/id/local-authority/43UM","WOKING BOROUGH COUNCIL","21/07/2022","10/08/2022","0000480268/001","NPOWER","40619800","279.30","BUILDING SERVICES - L.M.C. - HOE VALLEY SCHOOL","GAS","D420","GAS","BUILDING SERVICES","UTILITIES"
"http://statistics.data.gov.uk/id/local-authority/43UM","WOKING BOROUGH COUNCIL","10/07/2022","10/08/2022","0000480285/001","UNITY RECRUITMENT LTD","40160500","1732.51","NEIGHBOURHOOD SERVICES - PARKING SERVICES","TEMPORARY STAFF","A110","TEMPORARY STAFF","NEIGHBOURHOOD SERVICES","HUMAN RESOURCES"
"http://statistics.data.gov.uk/id/local-authority/43UM","WOKING BOROUGH COUNCIL","17/07/2022","10/08/2022","0000480286/001","UNITY RECRUITMENT LTD","40160500","1694.01","NEIGHBOURHOOD SERVICES - PARKING SERVICES","TEMPORARY STAFF","A110","TEMPORARY STAFF","NEIGHBOURHOOD SERVICES","HUMAN RESOURCES"
"http://statistics.data.gov.uk/id/local-authority/43UM","WOKING BOROUGH COUNCIL","23/06/2022","10/08/2022","0000480292/001","WPS UNITED KINGDOM LTD","40942300","-5400.00","ASSET MANAGEMENT - CAR PARK MANAGEMENT SYSTEM","MAIN CONTRACTOR","Q200","MAIN CONTRACTOR","ASSET MANAGEMENT","STREET & TRAFFIC MANAGEMENT"
"http://statistics.data.gov.uk/id/local-authority/43UM","WOKING BOROUGH COUNCIL","12/04/2022","10/08/2022","0000480296/001","BOONIES PET THERAPY","41023400","120.00","INDEPENDENT LIVING SERVICES - COMMUNITY CARE-ADMIN","INTERNAL PRINTING - PUBLICITY","G615","INTERNAL PRINTING - PUBLICITY","INDEPENDENT LIVING SERVICES","HEALTHCARE"
"http://statistics.data.gov.uk/id/local-authority/43UM","WOKING BOROUGH COUNCIL","23/06/2022","10/08/2022","0000480299/001","WPS UNITED KINGDOM LTD","40942300","-139.80","ASSET MANAGEMENT - CAR PARK MANAGEMENT SYSTEM","MAIN CONTRACTOR","Q200","MAIN CONTRACTOR","ASSET MANAGEMENT","STREET & TRAFFIC MANAGEMENT"
"http://statistics.data.gov.uk/id/local-authority/43UM","WOKING BOROUGH COUNCIL","27/07/2022","10/08/2022","0000480311/001","VIVID RESOURCING","40463200","2310.50","PLANNING SERVICES - DEVELOPMENT CONTROL","TEMPORARY STAFF","A110","TEMPORARY STAFF","PLANNING SERVICES","HUMAN RESOURCES"
"http://statistics.data.gov.uk/id/local-authority/43UM","WOKING BOROUGH COUNCIL","27/07/2022","10/08/2022","0000480312/001","VIVID RESOURCING","40463200","1258.00","HOUSING SERVICES - HOUSING NEEDS & ALLOCATIONS","TEMPORARY STAFF","A110","TEMPORARY STAFF","HOUSING SERVICES","HUMAN RESOURCES"
"http://statistics.data.gov.uk/id/local-authority/43UM","WOKING BOROUGH COUNCIL","27/07/2022","10/08/2022","0000480313/001","SHENA GRIGOR","40056300","60.00","INDEPENDENT LIVING SERVICES - SHEERWATER SOCIAL SUPPORT","OTHER CONSULTANTS","Q430","OTHER CONSULTANTS","INDEPENDENT LIVING SERVICES","ARTS & LEISURE SERVICES"
"http://statistics.data.gov.uk/id/local-authority/43UM","WOKING BOROUGH COUNCIL","27/07/2022","10/08/2022","0000480314/001","SHENA GRIGOR","40056300","60.00","NEIGHBOURHOOD SERVICES - SPORTS DEVELOPMENT","COACH EDUCATION","H657","COACH EDUCATION","NEIGHBOURHOOD SERVICES","ARTS & LEISURE SERVICES"
"http://statistics.data.gov.uk/id/local-authority/43UM","WOKING BOROUGH COUNCIL","27/07/2022","10/08/2022","0000480315/001","OYSTER PARTNERSHIP","40443300","1609.50","PLANNING SERVICES - DEVELOPMENT CONTROL","TEMPORARY STAFF","A110","TEMPORARY STAFF","PLANNING SERVICES","HUMAN RESOURCES"
"http://statistics.data.gov.uk/id/local-authority/43UM","WOKING BOROUGH COUNCIL","27/07/2022","10/08/2022","0000480317/001","OYSTER PARTNERSHIP","40443300","1905.27","PLANNING SERVICES - DEVELOPMENT CONTROL","TEMPORARY STAFF","A110","TEMPORARY STAFF","PLANNING SERVICES","HUMAN RESOURCES"
"http://statistics.data.gov.uk/id/local-authority/43UM","WOKING BOROUGH COUNCIL","30/06/2022","10/08/2022","0000480327/001","WPS UNITED KINGDOM LTD","40942300","8765.00","ASSET MANAGEMENT - CAR PARK MANAGEMENT SYSTEM","MAIN CONTRACTOR","Q200","MAIN CONTRACTOR","ASSET MANAGEMENT","STREET & TRAFFIC MANAGEMENT"
"http://statistics.data.gov.uk/id/local-authority/43UM","WOKING BOROUGH COUNCIL","25/07/2022","10/08/2022","0000480331/001","CASTLE WATER LIMITED","40650200","85.03","NEIGHBOURHOOD SERVICES - TOYS R US CAR PARK","WATER","D700","WATER","NEIGHBOURHOOD SERVICES","UTILITIES"
"http://statistics.data.gov.uk/id/local-authority/43UM","WOKING BOROUGH COUNCIL","22/07/2022","10/08/2022","0000480341/001","FAITH RECRUITMENT","01709500","517.40","PLANNING SERVICES - DEVELOPMENT CONTROL","TEMPORARY STAFF","A110","TEMPORARY STAFF","PLANNING SERVICES","HUMAN RESOURCES"
"http://statistics.data.gov.uk/id/local-authority/43UM","WOKING BOROUGH COUNCIL","22/07/2022","10/08/2022","0000480342/001","FAITH RECRUITMENT","01709500","41.37","PLANNING SERVICES - DEVELOPMENT CONTROL","TEMPORARY STAFF","A110","TEMPORARY STAFF","PLANNING SERVICES","HUMAN RESOURCES"
"http://statistics.data.gov.uk/id/local-authority/43UM","WOKING BOROUGH COUNCIL","22/07/2022","10/08/2022","0000480343/001","FAITH RECRUITMENT","01709500","530.70","NEIGHBOURHOOD SERVICES - PARKING SERVICES","TEMPORARY STAFF","A110","TEMPORARY STAFF","NEIGHBOURHOOD SERVICES","HUMAN RESOURCES"
"http://statistics.data.gov.uk/id/local-authority/43UM","WOKING BOROUGH COUNCIL","22/07/2022","10/08/2022","0000480344/001","FAITH RECRUITMENT","01709500","41.37","NEIGHBOURHOOD SERVICES - PARKING SERVICES","TEMPORARY STAFF","A110","TEMPORARY STAFF","NEIGHBOURHOOD SERVICES","HUMAN RESOURCES"
"http://statistics.data.gov.uk/id/local-authority/43UM","WOKING BOROUGH COUNCIL","27/07/2022","10/08/2022","0000480347/001","GULSAY DURMUS","40961500","150.00","NEIGHBOURHOOD SERVICES - SPORTS DEVELOPMENT","COACH EDUCATION","H657","COACH EDUCATION","NEIGHBOURHOOD SERVICES","ARTS & LEISURE SERVICES"
"http://statistics.data.gov.uk/id/local-authority/43UM","WOKING BOROUGH COUNCIL","28/07/2022","10/08/2022","0000480361/001","THAMESWEY ENERGY LIMITED","01142300","1195.23","INDEPENDENT LIVING SERVICES - ST MARY'S DAY CENTRE","TEL GAS/HEATING","D481","TEL GAS/HEATING","INDEPENDENT LIVING SERVICES","UTILITIES"
"http://statistics.data.gov.uk/id/local-authority/43UM","WOKING BOROUGH COUNCIL","28/07/2022","10/08/2022","0000480361/002","THAMESWEY ENERGY LIMITED","01142300","1195.23","HOUSING SERVICES - ENERGY","TEL GAS/HEATING","D481","TEL GAS/HEATING","HOUSING SERVICES","UTILITIES"
"http://statistics.data.gov.uk/id/local-authority/43UM","WOKING BOROUGH COUNCIL","28/07/2022","10/08/2022","0000480362/001","THAMESWEY ENERGY LIMITED","01142300","1127.07","INDEPENDENT LIVING SERVICES - ST MARY'S DAY CENTRE","TEL GAS/HEATING","D481","TEL GAS/HEATING","INDEPENDENT LIVING SERVICES","UTILITIES"
"http://statistics.data.gov.uk/id/local-authority/43UM","WOKING BOROUGH COUNCIL","28/07/2022","10/08/2022","0000480362/002","THAMESWEY ENERGY LIMITED","01142300","1127.08","HOUSING SERVICES - ENERGY","TEL GAS/HEATING","D481","TEL GAS/HEATING","HOUSING SERVICES","UTILITIES"
"http://statistics.data.gov.uk/id/local-authority/43UM","WOKING BOROUGH COUNCIL","28/07/2022","10/08/2022","0000480363/001","THAMESWEY ENERGY LIMITED","01142300","10259.08","HOUSING SERVICES - ENERGY","TEL GAS/HEATING","D481","TEL GAS/HEATING","HOUSING SERVICES","UTILITIES"
"http://statistics.data.gov.uk/id/local-authority/43UM","WOKING BOROUGH COUNCIL","28/07/2022","10/08/2022","0000480363/002","THAMESWEY ENERGY LIMITED","01142300","887.33","HOUSING SERVICES - PETWORTH COURT","TEL GAS/HEATING","D481","TEL GAS/HEATING","HOUSING SERVICES","UTILITIES"
"http://statistics.data.gov.uk/id/local-authority/43UM","WOKING BOROUGH COUNCIL","28/07/2022","10/08/2022","0000480363/003","THAMESWEY ENERGY LIMITED","01142300","334.39","HOUSING SERVICES - ENERGY","TEL GAS/HEATING","D481","TEL GAS/HEATING","HOUSING SERVICES","UTILITIES"
"http://statistics.data.gov.uk/id/local-authority/43UM","WOKING BOROUGH COUNCIL","28/07/2022","10/08/2022","0000480364/001","THAMESWEY ENERGY LIMITED","01142300","9181.61","HOUSING SERVICES - ENERGY","TEL GAS/HEATING","D481","TEL GAS/HEATING","HOUSING SERVICES","UTILITIES"
"http://statistics.data.gov.uk/id/local-authority/43UM","WOKING BOROUGH COUNCIL","28/07/2022","10/08/2022","0000480364/002","THAMESWEY ENERGY LIMITED","01142300","865.54","HOUSING SERVICES - PETWORTH COURT","TEL GAS/HEATING","D481","TEL GAS/HEATING","HOUSING SERVICES","UTILITIES"
"http://statistics.data.gov.uk/id/local-authority/43UM","WOKING BOROUGH COUNCIL","28/07/2022","10/08/2022","0000480364/003","THAMESWEY ENERGY LIMITED","01142300","301.41","HOUSING SERVICES - ENERGY","TEL GAS/HEATING","D481","TEL GAS/HEATING","HOUSING SERVICES","UTILITIES"
"http://statistics.data.gov.uk/id/local-authority/43UM","WOKING BOROUGH COUNCIL","25/07/2022","10/08/2022","0000480370/001","WATERLOGIC GB LIMITED","40579600","375.54","INDEPENDENT LIVING SERVICES - ST MARY'S DAY CENTRE","FACILITIES MANAGEMENT CONTRACT","D909","FACILITIES MANAGEMENT CONTRACT","INDEPENDENT LIVING SERVICES","CATERING"
"http://statistics.data.gov.uk/id/local-authority/43UM","WOKING BOROUGH COUNCIL","24/07/2022","10/08/2022","0000480383/001","MORGAN HUNT UK LIMITED","01768500","1047.75","REVENUES AND BENEFITS - COUNCIL TAX","TEMPORARY STAFF","A110","TEMPORARY STAFF","REVENUES AND BENEFITS","HUMAN RESOURCES"
"http://statistics.data.gov.uk/id/local-authority/43UM","WOKING BOROUGH COUNCIL","27/07/2022","10/08/2022","0000480384/001","CASTLE WATER LIMITED","40650200","50.69","INDEPENDENT LIVING SERVICES - MOORCROFT","WATER","D700","WATER","INDEPENDENT LIVING SERVICES","UTILITIES"
"http://statistics.data.gov.uk/id/local-authority/43UM","WOKING BOROUGH COUNCIL","27/07/2022","10/08/2022","0000480385/001","CASTLE WATER LIMITED","40650200","29.92","ASSET MANAGEMENT - PUBLIC CONVENIENCES","DRAIN/WATER SERVICES","D715","DRAIN/WATER SERVICES","ASSET MANAGEMENT","UTILITIES"
"http://statistics.data.gov.uk/id/local-authority/43UM","WOKING BOROUGH COUNCIL","26/07/2022","10/08/2022","0000480390/001","BIDVEST NOONAN UK LTD","40977700","1016.82","INDEPENDENT LIVING SERVICES - SHEERWATER SECURITY PATROL","MAIN CONTRACTOR","Q200","MAIN CONTRACTOR","INDEPENDENT LIVING SERVICES","CONSULTANCY"
"http://statistics.data.gov.uk/id/local-authority/43UM","WOKING BOROUGH COUNCIL","27/07/2022","10/08/2022","0000480397/001","ARBORICULTURAL ASSOCIATION","00228200","600.00","CORPORATE MANAGEMENT GROUP - STAFF TRAINING/GENERAL COSTS","TRAINING - CORPORATE","A910","TRAINING - CORPORATE","CORPORATE MANAGEMENT GROUP","HORTICULTURAL (INCLUDES AGRICULTURE)"
"http://statistics.data.gov.uk/id/local-authority/43UM","WOKING BOROUGH COUNCIL","28/07/2022","10/08/2022","0000480398/001","VAIL WILLIAMS LLP","01844600","5696.43","ASSET MANAGEMENT - PROPERTY SERVICES","CONSULTANTS","H670","CONSULTANTS","ASSET MANAGEMENT","CONSULTANCY"
"http://statistics.data.gov.uk/id/local-authority/43UM","WOKING BOROUGH COUNCIL","25/07/2022","10/08/2022","0000480403/001","LEGACY LODGINGS LTD","40969700","420.00","HOUSING SERVICES - HOUSING OPTIONS","BED & BREAKFAST EXPENDITURE","H786","BED & BREAKFAST EXPENDITURE","HOUSING SERVICES","HOUSING MANAGEMENT"
"http://statistics.data.gov.uk/id/local-authority/43UM","WOKING BOROUGH COUNCIL","25/07/2022","10/08/2022","0000480404/001","LEGACY LODGINGS LTD","40969700","420.00","HOUSING SERVICES - HOUSING OPTIONS","BED & BREAKFAST EXPENDITURE","H786","BED & BREAKFAST EXPENDITURE","HOUSING SERVICES","HOUSING MANAGEMENT"
"http://statistics.data.gov.uk/id/local-authority/43UM","WOKING BOROUGH COUNCIL","25/07/2022","10/08/2022","0000480405/001","LEGACY LODGINGS LTD","40969700","910.00","HOUSING SERVICES - HOUSING OPTIONS","BED & BREAKFAST EXPENDITURE","H786","BED & BREAKFAST EXPENDITURE","HOUSING SERVICES","HOUSING MANAGEMENT"
"http://statistics.data.gov.uk/id/local-authority/43UM","WOKING BOROUGH COUNCIL","25/07/2022","10/08/2022","0000480406/001","LEGACY LODGINGS LTD","40969700","420.00","HOUSING SERVICES - HOUSING OPTIONS","BED & BREAKFAST EXPENDITURE","H786","BED & BREAKFAST EXPENDITURE","HOUSING SERVICES","HOUSING MANAGEMENT"
"http://statistics.data.gov.uk/id/local-authority/43UM","WOKING BOROUGH COUNCIL","29/07/2022","10/08/2022","0000480407/001","WIGHTMAN & PARRISH LTD","40474600","42.70","INDEPENDENT LIVING SERVICES - THE VYNE","CLEANING MATERIALS","D920","CLEANING MATERIALS","INDEPENDENT LIVING SERVICES","CLEANING & JANITORIAL"
"http://statistics.data.gov.uk/id/local-authority/43UM","WOKING BOROUGH COUNCIL","29/07/2022","10/08/2022","0000480407/002","WIGHTMAN & PARRISH LTD","40474600","92.32","INDEPENDENT LIVING SERVICES - THE VYNE","CLEANING MATERIALS","D920","CLEANING MATERIALS","INDEPENDENT LIVING SERVICES","CLEANING & JANITORIAL"
"http://statistics.data.gov.uk/id/local-authority/43UM","WOKING BOROUGH COUNCIL","29/07/2022","10/08/2022","0000480407/003","WIGHTMAN & PARRISH LTD","40474600","76.64","INDEPENDENT LIVING SERVICES - THE VYNE","CLEANING MATERIALS","D920","CLEANING MATERIALS","INDEPENDENT LIVING SERVICES","CLEANING & JANITORIAL"
"http://statistics.data.gov.uk/id/local-authority/43UM","WOKING BOROUGH COUNCIL","29/07/2022","10/08/2022","0000480407/004","WIGHTMAN & PARRISH LTD","40474600","10.26","INDEPENDENT LIVING SERVICES - THE VYNE","CLEANING MATERIALS","D920","CLEANING MATERIALS","INDEPENDENT LIVING SERVICES","CLEANING & JANITORIAL"
"http://statistics.data.gov.uk/id/local-authority/43UM","WOKING BOROUGH COUNCIL","29/07/2022","10/08/2022","0000480407/005","WIGHTMAN & PARRISH LTD","40474600","29.16","INDEPENDENT LIVING SERVICES - THE VYNE","CLEANING MATERIALS","D920","CLEANING MATERIALS","INDEPENDENT LIVING SERVICES","CLEANING & JANITORIAL"
"http://statistics.data.gov.uk/id/local-authority/43UM","WOKING BOROUGH COUNCIL","29/07/2022","10/08/2022","0000480412/001","EMCOR GROUP (UK) PLC","00004600","4835.47","ASSET MANAGEMENT - UNIT 15A MON WAY EAST","R&M BUILDINGS - CONTRACTORS","D100","R&M BUILDINGS - CONTRACTORS","ASSET MANAGEMENT","WORKS (CONSTRUCTION REPAIR MAINTENANCE)"
"http://statistics.data.gov.uk/id/local-authority/43UM","WOKING BOROUGH COUNCIL","28/07/2022","10/08/2022","0000480426/001","GTT-EMEA LIMITED","40956000","356.40","ASSET MANAGEMENT - FACILITIES MANAGEMENT","FACILITIES MANAGEMENT REPAIRS","D908","FACILITIES MANAGEMENT REPAIRS","ASSET MANAGEMENT","FINANCIAL SERVICES"
"http://statistics.data.gov.uk/id/local-authority/43UM","WOKING BOROUGH COUNCIL","15/07/2022","10/08/2022","0000480427/001","FRANCESCA CAST","40988000","138.90","CORPORATE STRATEGY - WOMENS SUPPORT CENTRE SURREY","VOLUNTEER EXPENSES","H313","VOLUNTEER EXPENSES","CORPORATE STRATEGY","FINANCIAL SERVICES"
"http://statistics.data.gov.uk/id/local-authority/43UM","WOKING BOROUGH COUNCIL","22/07/2022","10/08/2022","0000480429/001","VAIL WILLIAMS LLP GENERAL CLIENT ACCOUNT","40901400","15559.63","ASSET MANAGEMENT - CLEARY COURT","SERVICE CHARGE","D510","SERVICE CHARGE","ASSET MANAGEMENT","LEGAL SERVICES"
"http://statistics.data.gov.uk/id/local-authority/43UM","WOKING BOROUGH COUNCIL","22/07/2022","10/08/2022","0000480430/001","VAIL WILLIAMS LLP GENERAL CLIENT ACCOUNT","40901400","313.05","ASSET MANAGEMENT - PEARLASSHSE 28 HIGH ST GND SHP","SERVICE CHARGE","D510","SERVICE CHARGE","ASSET MANAGEMENT","LEGAL SERVICES"
"http://statistics.data.gov.uk/id/local-authority/43UM","WOKING BOROUGH COUNCIL","22/07/2022","10/08/2022","0000480431/001","VAIL WILLIAMS LLP GENERAL CLIENT ACCOUNT","40901400","63529.23","ASSET MANAGEMENT - MIDAS HSE OFFICES GRORTH RD","SERVICE CHARGE","D510","SERVICE CHARGE","ASSET MANAGEMENT","LEGAL SERVICES"
"http://statistics.data.gov.uk/id/local-authority/43UM","WOKING BOROUGH COUNCIL","22/07/2022","10/08/2022","0000480432/001","VAIL WILLIAMS LLP GENERAL CLIENT ACCOUNT","40901400","1247.73","ASSET MANAGEMENT - STEWARD HSE OFFICES FLR 1 TO 3","SERVICE CHARGE","D510","SERVICE CHARGE","ASSET MANAGEMENT","LEGAL SERVICES"
"http://statistics.data.gov.uk/id/local-authority/43UM","WOKING BOROUGH COUNCIL","22/07/2022","10/08/2022","0000480433/001","VAIL WILLIAMS LLP GENERAL CLIENT ACCOUNT","40901400","11967.81","ASSET MANAGEMENT - RED HOUSE (WAS CLOCK TOWER)","SERVICE CHARGE","D510","SERVICE CHARGE","ASSET MANAGEMENT","LEGAL SERVICES"
"http://statistics.data.gov.uk/id/local-authority/43UM","WOKING BOROUGH COUNCIL","20/07/2022","10/08/2022","0000480435/001","HAYMARKET SUBSCRIPTIONS","00345100","440.00","PLANNING SERVICES - PLANNING SERVICES GENERAL EXPE","SUBSCRIPTIONS","H110","SUBSCRIPTIONS","PLANNING SERVICES","CONSULTANCY"
"http://statistics.data.gov.uk/id/local-authority/43UM","WOKING BOROUGH COUNCIL","26/04/2022","10/08/2022","0000480436/001","ETHICAL LETTINGS CIC","40564500","1048.20","HOUSING SERVICES - LETS RENT SCHEME","CONNECT BOND CLAIMS","H713","CONNECT BOND CLAIMS","HOUSING SERVICES","HOUSING MANAGEMENT"
"http://statistics.data.gov.uk/id/local-authority/43UM","WOKING BOROUGH COUNCIL","29/07/2022","10/08/2022","0000480440/001","KAYLEIGH CLARK","41032600","29.10","CORPORATE STRATEGY - WOMENS SUPPORT CENTRE SURREY","VOLUNTEER EXPENSES","H313","VOLUNTEER EXPENSES","CORPORATE STRATEGY","SOCIAL COMMUNITY CARE SUP & SERV (ADULT)"
"http://statistics.data.gov.uk/id/local-authority/43UM","WOKING BOROUGH COUNCIL","28/07/2022","10/08/2022","0000480441/001","AKW MEDI-CARE LIMITED","01281500","251.80","HOUSING SERVICES - HOME IMPS & BEN AGENCY","HANDYPERSON MATERIALS","G201","HANDYPERSON MATERIALS","HOUSING SERVICES","HEALTHCARE"
"http://statistics.data.gov.uk/id/local-authority/43UM","WOKING BOROUGH COUNCIL","26/07/2022","10/08/2022","0000480443/001","THE CREATIVE COLONY","40487500","2200.50","PLANNING SERVICES - WOKING TOWN CENTRE MASTERPLAN","OTHER CONSULTANTS","Q430","OTHER CONSULTANTS","PLANNING SERVICES","FACILITIES & MANAGEMENT SERVICES"
"http://statistics.data.gov.uk/id/local-authority/43UM","WOKING BOROUGH COUNCIL","31/07/2022","10/08/2022","0000480446/001","WOKING COMMUNITY TRANSPORT LTD","00046100","491.40","INDEPENDENT LIVING SERVICES - THE VYNE","USE OF TRANSPORT","F500","USE OF TRANSPORT","INDEPENDENT LIVING SERVICES","PUBLIC TRANSPORT"
"http://statistics.data.gov.uk/id/local-authority/43UM","WOKING BOROUGH COUNCIL","31/07/2022","10/08/2022","0000480446/002","WOKING COMMUNITY TRANSPORT LTD","00046100","928.80","INDEPENDENT LIVING SERVICES - ST MARY'S DAY CENTRE","PARKING COSTS","F510","PARKING COSTS","INDEPENDENT LIVING SERVICES","PUBLIC TRANSPORT"
"http://statistics.data.gov.uk/id/local-authority/43UM","WOKING BOROUGH COUNCIL","01/08/2022","10/08/2022","0000480449/001","ABC UMBRELLA LTD","41031700","1000.00","REVENUES AND BENEFITS - COUNCIL TAX","TEMPORARY STAFF","A110","TEMPORARY STAFF","REVENUES AND BENEFITS","HUMAN RESOURCES"
"http://statistics.data.gov.uk/id/local-authority/43UM","WOKING BOROUGH COUNCIL","22/07/2022","10/08/2022","0000480450/001","VAIL WILLIAMS LLP GENERAL CLIENT ACCOUNT","40901400","11967.81","ASSET MANAGEMENT - RED HOUSE (WAS CLOCK TOWER)","SERVICE CHARGE","D510","SERVICE CHARGE","ASSET MANAGEMENT","LEGAL SERVICES"
"http://statistics.data.gov.uk/id/local-authority/43UM","WOKING BOROUGH COUNCIL","22/07/2022","10/08/2022","0000480451/001","VAIL WILLIAMS LLP GENERAL CLIENT ACCOUNT","40901400","63529.23","ASSET MANAGEMENT - MIDAS HSE OFFICES GRORTH RD","SERVICE CHARGE","D510","SERVICE CHARGE","ASSET MANAGEMENT","LEGAL SERVICES"
"http://statistics.data.gov.uk/id/local-authority/43UM","WOKING BOROUGH COUNCIL","22/07/2022","10/08/2022","0000480452/001","VAIL WILLIAMS LLP GENERAL CLIENT ACCOUNT","40901400","1247.73","ASSET MANAGEMENT - STEWARD HSE OFFICES FLR 1 TO 3","SERVICE CHARGE","D510","SERVICE CHARGE","ASSET MANAGEMENT","LEGAL SERVICES"
"http://statistics.data.gov.uk/id/local-authority/43UM","WOKING BOROUGH COUNCIL","22/07/2022","10/08/2022","0000480453/001","VAIL WILLIAMS LLP GENERAL CLIENT ACCOUNT","40901400","313.05","ASSET MANAGEMENT - PEARLASSHSE 28 HIGH ST GND SHP","SERVICE CHARGE","D510","SERVICE CHARGE","ASSET MANAGEMENT","LEGAL SERVICES"
"http://statistics.data.gov.uk/id/local-authority/43UM","WOKING BOROUGH COUNCIL","22/07/2022","10/08/2022","0000480454/001","VAIL WILLIAMS LLP GENERAL CLIENT ACCOUNT","40901400","13917.27","ASSET MANAGEMENT - CLEARY COURT","SERVICE CHARGE","D510","SERVICE CHARGE","ASSET MANAGEMENT","LEGAL SERVICES"
"http://statistics.data.gov.uk/id/local-authority/43UM","WOKING BOROUGH COUNCIL","27/07/2022","10/08/2022","0000480456/001","SSE","40861400","655.51","ASSET MANAGEMENT - HIF WTC 11 GUILDFORD RD OPP PU","OTHER CONSULTANTS","Q430","OTHER CONSULTANTS","ASSET MANAGEMENT","UTILITIES"
"http://statistics.data.gov.uk/id/local-authority/43UM","WOKING BOROUGH COUNCIL","27/07/2022","10/08/2022","0000480457/001","SSE","40861400","89.57","ASSET MANAGEMENT - JUBILEE HOUSE","ELECTRICITY","D400","ELECTRICITY","ASSET MANAGEMENT","UTILITIES"
"http://statistics.data.gov.uk/id/local-authority/43UM","WOKING BOROUGH COUNCIL","31/07/2022","10/08/2022","0000480465/001","ALPHABET (GB) LIMITED","00015200","3325.42","CORPORATE MANAGEMENT GROUP - LEASED CAR PAYMENTS","PAYMENT TO LESSORS","T170","PAYMENT TO LESSORS","CORPORATE MANAGEMENT GROUP","VEHICLE MANAGEMENT"
"http://statistics.data.gov.uk/id/local-authority/43UM","WOKING BOROUGH COUNCIL","31/07/2022","10/08/2022","0000480465/002","ALPHABET (GB) LIMITED","00015200","-26.00","CORPORATE MANAGEMENT GROUP - LEASED CAR RELIEF","REVENUE CONTRIBUTIONS","T775","REVENUE CONTRIBUTIONS","CORPORATE MANAGEMENT GROUP","VEHICLE MANAGEMENT"
"http://statistics.data.gov.uk/id/local-authority/43UM","WOKING BOROUGH COUNCIL","31/07/2022","10/08/2022","0000480465/003","ALPHABET (GB) LIMITED","00015200","26.00","CORPORATE MANAGEMENT GROUP - LEASED CAR PAYMENTS","PAYMENT TO LESSORS","T170","PAYMENT TO LESSORS","CORPORATE MANAGEMENT GROUP","VEHICLE MANAGEMENT"
"http://statistics.data.gov.uk/id/local-authority/43UM","WOKING BOROUGH COUNCIL","31/07/2022","10/08/2022","0000480465/005","ALPHABET (GB) LIMITED","00015200","324.02","CORPORATE MANAGEMENT GROUP - LEASED CAR PAYMENTS","PAYMENT TO LESSORS","T170","PAYMENT TO LESSORS","CORPORATE MANAGEMENT GROUP","VEHICLE MANAGEMENT"
"http://statistics.data.gov.uk/id/local-authority/43UM","WOKING BOROUGH COUNCIL","31/07/2022","10/08/2022","0000480465/006","ALPHABET (GB) LIMITED","00015200","237.77","ASSET MANAGEMENT - BROOKWOOD CEMETERY TEMP COSTS","MAIN CONTRACTOR","Q200","MAIN CONTRACTOR","ASSET MANAGEMENT","VEHICLE MANAGEMENT"
"http://statistics.data.gov.uk/id/local-authority/43UM","WOKING BOROUGH COUNCIL","31/07/2022","10/08/2022","0000480465/007","ALPHABET (GB) LIMITED","00015200","304.11","CORPORATE STRATEGY - MAYORS CAR AND DRIVER","VEHICLE LEASING COSTS","F400","VEHICLE LEASING COSTS","CORPORATE STRATEGY","VEHICLE MANAGEMENT"
"http://statistics.data.gov.uk/id/local-authority/43UM","WOKING BOROUGH COUNCIL","31/07/2022","10/08/2022","0000480465/008","ALPHABET (GB) LIMITED","00015200","160.58","INDEPENDENT LIVING SERVICES - MEALS ON WHEELS","VEHICLE LEASING COSTS","F400","VEHICLE LEASING COSTS","INDEPENDENT LIVING SERVICES","VEHICLE MANAGEMENT"
"http://statistics.data.gov.uk/id/local-authority/43UM","WOKING BOROUGH COUNCIL","31/07/2022","10/08/2022","0000480465/009","ALPHABET (GB) LIMITED","00015200","315.27","ASSET MANAGEMENT - BUILDING SERVICES","VEHICLE LEASING COSTS","F400","VEHICLE LEASING COSTS","ASSET MANAGEMENT","VEHICLE MANAGEMENT"
"http://statistics.data.gov.uk/id/local-authority/43UM","WOKING BOROUGH COUNCIL","31/07/2022","10/08/2022","0000480465/010","ALPHABET (GB) LIMITED","00015200","408.27","NEIGHBOURHOOD SERVICES - PARKING SERVICES","VEHICLE LEASING COSTS","F400","VEHICLE LEASING COSTS","NEIGHBOURHOOD SERVICES","VEHICLE MANAGEMENT"
"http://statistics.data.gov.uk/id/local-authority/43UM","WOKING BOROUGH COUNCIL","27/07/2022","10/08/2022","0000480472/001","GREEN LEAVES COUNTRYSIDE CONTRACTORS LTD","01751000","1260.00","NEIGHBOURHOOD SERVICES - COUNTRYSIDE SERVICES - GENERAL","CONSERVATION MANAGEMENT","H643","CONSERVATION MANAGEMENT","NEIGHBOURHOOD SERVICES","WORKS (CONSTRUCTION REPAIR MAINTENANCE)"
"http://statistics.data.gov.uk/id/local-authority/43UM","WOKING BOROUGH COUNCIL","01/08/2022","10/08/2022","0000480475/001","WOKING HOUSP'SHIP T/A NEW VISION HOMES","40315000","2163.02","HOUSING SERVICES - WOKING BOROUGH HOMES","CAPITAL WORKS","S654","CAPITAL WORKS","HOUSING SERVICES","HOUSING MANAGEMENT"
"http://statistics.data.gov.uk/id/local-authority/43UM","WOKING BOROUGH COUNCIL","01/08/2022","10/08/2022","0000480475/002","WOKING HOUSP'SHIP T/A NEW VISION HOMES","40315000","5118.71","HOUSING SERVICES - WOKING BOROUGH HOMES","DAY TO DAY REPAIRS WRS","S655","DAY TO DAY REPAIRS WRS","HOUSING SERVICES","HOUSING MANAGEMENT"
"http://statistics.data.gov.uk/id/local-authority/43UM","WOKING BOROUGH COUNCIL","01/08/2022","10/08/2022","0000480475/003","WOKING HOUSP'SHIP T/A NEW VISION HOMES","40315000","821.03","HOUSING SERVICES - WOKING BOROUGH HOMES","HEATING & MISC SERVICES","S662","HEATING & MISC SERVICES","HOUSING SERVICES","HOUSING MANAGEMENT"
"http://statistics.data.gov.uk/id/local-authority/43UM","WOKING BOROUGH COUNCIL","01/08/2022","10/08/2022","0000480475/004","WOKING HOUSP'SHIP T/A NEW VISION HOMES","40315000","756.37","ASSET MANAGEMENT - GARAGES (XHRA)","SCHED 1A RESPONSIVE REPAIRS","D165","SCHED 1A RESPONSIVE REPAIRS","ASSET MANAGEMENT","HOUSING MANAGEMENT"
"http://statistics.data.gov.uk/id/local-authority/43UM","WOKING BOROUGH COUNCIL","01/08/2022","10/08/2022","0000480475/005","WOKING HOUSP'SHIP T/A NEW VISION HOMES","40315000","197471.20","HOUSING SERVICES - PINNACLE DAY TO DAY REPAIRS","SCHED 1A RESPONSIVE REPAIRS","D165","SCHED 1A RESPONSIVE REPAIRS","HOUSING SERVICES","HOUSING MANAGEMENT"
"http://statistics.data.gov.uk/id/local-authority/43UM","WOKING BOROUGH COUNCIL","01/08/2022","10/08/2022","0000480475/006","WOKING HOUSP'SHIP T/A NEW VISION HOMES","40315000","19379.68","HOUSING SERVICES - PINNACLE DAY TO DAY REPAIRS","SCHED 3 GAS","D168","SCHED 3 GAS","HOUSING SERVICES","HOUSING MANAGEMENT"
"http://statistics.data.gov.uk/id/local-authority/43UM","WOKING BOROUGH COUNCIL","01/08/2022","10/08/2022","0000480475/007","WOKING HOUSP'SHIP T/A NEW VISION HOMES","40315000","599.51","HOUSING SERVICES - PINNACLE PLANNED MAINTENANCE","SCHED 4 STATUTORY","D169","SCHED 4 STATUTORY","HOUSING SERVICES","HOUSING MANAGEMENT"
"http://statistics.data.gov.uk/id/local-authority/43UM","WOKING BOROUGH COUNCIL","01/08/2022","10/08/2022","0000480475/008","WOKING HOUSP'SHIP T/A NEW VISION HOMES","40315000","15330.40","HOUSING SERVICES - NVH VOIDS (REVENUE)","SCHED 1B VOIDS","D166","SCHED 1B VOIDS","HOUSING SERVICES","HOUSING MANAGEMENT"
"http://statistics.data.gov.uk/id/local-authority/43UM","WOKING BOROUGH COUNCIL","01/08/2022","10/08/2022","0000480475/009","WOKING HOUSP'SHIP T/A NEW VISION HOMES","40315000","1320.27","HOUSING SERVICES - PRIVATE SECTOR LEASING SCHEME","SCHED 1A RESPONSIVE REPAIRS","D165","SCHED 1A RESPONSIVE REPAIRS","HOUSING SERVICES","HOUSING MANAGEMENT"
"http://statistics.data.gov.uk/id/local-authority/43UM","WOKING BOROUGH COUNCIL","01/08/2022","10/08/2022","0000480475/010","WOKING HOUSP'SHIP T/A NEW VISION HOMES","40315000","401.32","HOUSING SERVICES - PRIVATE SECTOR LEASING SCHEME","SCHED 3 GAS","D168","SCHED 3 GAS","HOUSING SERVICES","HOUSING MANAGEMENT"
"http://statistics.data.gov.uk/id/local-authority/43UM","WOKING BOROUGH COUNCIL","01/08/2022","10/08/2022","0000480475/011","WOKING HOUSP'SHIP T/A NEW VISION HOMES","40315000","1767.76","HOUSING SERVICES - TEMPORARY ACCOMMODATION","SCHED 1A RESPONSIVE REPAIRS","D165","SCHED 1A RESPONSIVE REPAIRS","HOUSING SERVICES","HOUSING MANAGEMENT"
"http://statistics.data.gov.uk/id/local-authority/43UM","WOKING BOROUGH COUNCIL","01/08/2022","10/08/2022","0000480475/012","WOKING HOUSP'SHIP T/A NEW VISION HOMES","40315000","1050.23","HOUSING SERVICES - TEMPORARY ACCOMMODATION","SCHED 1B VOIDS","D166","SCHED 1B VOIDS","HOUSING SERVICES","HOUSING MANAGEMENT"
"http://statistics.data.gov.uk/id/local-authority/43UM","WOKING BOROUGH COUNCIL","01/08/2022","10/08/2022","0000480475/013","WOKING HOUSP'SHIP T/A NEW VISION HOMES","40315000","34.26","HOUSING SERVICES - TEMPORARY ACCOMMODATION","SCHED 3 GAS","D168","SCHED 3 GAS","HOUSING SERVICES","HOUSING MANAGEMENT"
"http://statistics.data.gov.uk/id/local-authority/43UM","WOKING BOROUGH COUNCIL","01/08/2022","10/08/2022","0000480475/014","WOKING HOUSP'SHIP T/A NEW VISION HOMES","40315000","11400.50","HOUSING SERVICES - NVH WINDOWS","SCHED 2 PLANNED","Q812","SCHED 2 PLANNED","HOUSING SERVICES","HOUSING MANAGEMENT"
"http://statistics.data.gov.uk/id/local-authority/43UM","WOKING BOROUGH COUNCIL","01/08/2022","10/08/2022","0000480475/015","WOKING HOUSP'SHIP T/A NEW VISION HOMES","40315000","9843.24","HOUSING SERVICES - NVH INDIVIDUAL GAS BOILERS","SCHED 2 PLANNED","Q812","SCHED 2 PLANNED","HOUSING SERVICES","HOUSING MANAGEMENT"
"http://statistics.data.gov.uk/id/local-authority/43UM","WOKING BOROUGH COUNCIL","01/08/2022","10/08/2022","0000480475/016","WOKING HOUSP'SHIP T/A NEW VISION HOMES","40315000","-4808.61","HOUSING SERVICES - NVH DOORS","SCHED 2 PLANNED","Q812","SCHED 2 PLANNED","HOUSING SERVICES","HOUSING MANAGEMENT"
"http://statistics.data.gov.uk/id/local-authority/43UM","WOKING BOROUGH COUNCIL","01/08/2022","10/08/2022","0000480475/017","WOKING HOUSP'SHIP T/A NEW VISION HOMES","40315000","76504.43","HOUSING SERVICES - NVH DISABLED ADAPTATIONS","SCHED 2 PLANNED","Q812","SCHED 2 PLANNED","HOUSING SERVICES","HOUSING MANAGEMENT"
"http://statistics.data.gov.uk/id/local-authority/43UM","WOKING BOROUGH COUNCIL","01/08/2022","10/08/2022","0000480475/018","WOKING HOUSP'SHIP T/A NEW VISION HOMES","40315000","19826.16","HOUSING SERVICES - NVH CAPITALISED REPAIR WORKS","SCHED 2 PLANNED","Q812","SCHED 2 PLANNED","HOUSING SERVICES","HOUSING MANAGEMENT"
"http://statistics.data.gov.uk/id/local-authority/43UM","WOKING BOROUGH COUNCIL","01/08/2022","10/08/2022","0000480475/019","WOKING HOUSP'SHIP T/A NEW VISION HOMES","40315000","-9510.80","HOUSING SERVICES - NVH CAPITALISED REPAIR WORKS","SCHED 2 PLANNED","Q812","SCHED 2 PLANNED","HOUSING SERVICES","HOUSING MANAGEMENT"
"http://statistics.data.gov.uk/id/local-authority/43UM","WOKING BOROUGH COUNCIL","01/08/2022","10/08/2022","0000480475/020","WOKING HOUSP'SHIP T/A NEW VISION HOMES","40315000","4.06","ASSET MANAGEMENT - 1&2 TRACIOUS CLOSE (XHRA)","R&M BUILDINGS - CONTRACTORS","D100","R&M BUILDINGS - CONTRACTORS","ASSET MANAGEMENT","HOUSING MANAGEMENT"
"http://statistics.data.gov.uk/id/local-authority/43UM","WOKING BOROUGH COUNCIL","01/08/2022","10/08/2022","0000480475/021","WOKING HOUSP'SHIP T/A NEW VISION HOMES","40315000","4.06","ASSET MANAGEMENT - 19 DARTMOUTH AVE (XHRA)","R&M BUILDINGS - CONTRACTORS","D100","R&M BUILDINGS - CONTRACTORS","ASSET MANAGEMENT","HOUSING MANAGEMENT"
"http://statistics.data.gov.uk/id/local-authority/43UM","WOKING BOROUGH COUNCIL","01/08/2022","10/08/2022","0000480475/022","WOKING HOUSP'SHIP T/A NEW VISION HOMES","40315000","4.06","ASSET MANAGEMENT - 39 DARTMOUTH AVE (XHRA)","R&M BUILDINGS - CONTRACTORS","D100","R&M BUILDINGS - CONTRACTORS","ASSET MANAGEMENT","HOUSING MANAGEMENT"
"http://statistics.data.gov.uk/id/local-authority/43UM","WOKING BOROUGH COUNCIL","01/08/2022","10/08/2022","0000480475/023","WOKING HOUSP'SHIP T/A NEW VISION HOMES","40315000","4.06","ASSET MANAGEMENT - 63 DARTMOUTH AVE (XHRA)","R&M BUILDINGS - CONTRACTORS","D100","R&M BUILDINGS - CONTRACTORS","ASSET MANAGEMENT","HOUSING MANAGEMENT"
"http://statistics.data.gov.uk/id/local-authority/43UM","WOKING BOROUGH COUNCIL","01/08/2022","10/08/2022","0000480475/024","WOKING HOUSP'SHIP T/A NEW VISION HOMES","40315000","4.06","ASSET MANAGEMENT - 127 PRINCESS RD (XHRA)","R&M BUILDINGS - CONTRACTORS","D100","R&M BUILDINGS - CONTRACTORS","ASSET MANAGEMENT","HOUSING MANAGEMENT"
"http://statistics.data.gov.uk/id/local-authority/43UM","WOKING BOROUGH COUNCIL","01/08/2022","10/08/2022","0000480475/025","WOKING HOUSP'SHIP T/A NEW VISION HOMES","40315000","4.06","ASSET MANAGEMENT - 129 PRINCESS RD (XHRA)","R&M BUILDINGS - CONTRACTORS","D100","R&M BUILDINGS - CONTRACTORS","ASSET MANAGEMENT","HOUSING MANAGEMENT"
"http://statistics.data.gov.uk/id/local-authority/43UM","WOKING BOROUGH COUNCIL","01/08/2022","10/08/2022","0000480475/026","WOKING HOUSP'SHIP T/A NEW VISION HOMES","40315000","4.06","ASSET MANAGEMENT - 131 PRINCESS RD (XHRA)","R&M BUILDINGS - CONTRACTORS","D100","R&M BUILDINGS - CONTRACTORS","ASSET MANAGEMENT","HOUSING MANAGEMENT"
"http://statistics.data.gov.uk/id/local-authority/43UM","WOKING BOROUGH COUNCIL","01/08/2022","10/08/2022","0000480475/027","WOKING HOUSP'SHIP T/A NEW VISION HOMES","40315000","4.06","ASSET MANAGEMENT - 133 PRINCESS RD (XHRA)","R&M BUILDINGS - CONTRACTORS","D100","R&M BUILDINGS - CONTRACTORS","ASSET MANAGEMENT","HOUSING MANAGEMENT"
"http://statistics.data.gov.uk/id/local-authority/43UM","WOKING BOROUGH COUNCIL","01/08/2022","10/08/2022","0000480475/028","WOKING HOUSP'SHIP T/A NEW VISION HOMES","40315000","4.06","ASSET MANAGEMENT - 135 PRINCESS RD (XHRA)","R&M BUILDINGS - CONTRACTORS","D100","R&M BUILDINGS - CONTRACTORS","ASSET MANAGEMENT","HOUSING MANAGEMENT"
"http://statistics.data.gov.uk/id/local-authority/43UM","WOKING BOROUGH COUNCIL","01/08/2022","10/08/2022","0000480475/029","WOKING HOUSP'SHIP T/A NEW VISION HOMES","40315000","57.33","ASSET MANAGEMENT - 137 PRINCESS RD (XHRA)","R&M BUILDINGS - CONTRACTORS","D100","R&M BUILDINGS - CONTRACTORS","ASSET MANAGEMENT","HOUSING MANAGEMENT"
"http://statistics.data.gov.uk/id/local-authority/43UM","WOKING BOROUGH COUNCIL","01/08/2022","10/08/2022","0000480475/030","WOKING HOUSP'SHIP T/A NEW VISION HOMES","40315000","4.06","ASSET MANAGEMENT - 8/9 WAYSIDE CRT (XHRA)","R&M BUILDINGS - CONTRACTORS","D100","R&M BUILDINGS - CONTRACTORS","ASSET MANAGEMENT","HOUSING MANAGEMENT"
"http://statistics.data.gov.uk/id/local-authority/43UM","WOKING BOROUGH COUNCIL","01/08/2022","10/08/2022","0000480475/031","WOKING HOUSP'SHIP T/A NEW VISION HOMES","40315000","4.06","ASSET MANAGEMENT - 8/9 WAYSIDE CRT (XHRA)","R&M BUILDINGS - CONTRACTORS","D100","R&M BUILDINGS - CONTRACTORS","ASSET MANAGEMENT","HOUSING MANAGEMENT"
"http://statistics.data.gov.uk/id/local-authority/43UM","WOKING BOROUGH COUNCIL","01/08/2022","10/08/2022","0000480475/032","WOKING HOUSP'SHIP T/A NEW VISION HOMES","40315000","4.06","ASSET MANAGEMENT - 7 HILL VIEW ROAD","R&M BUILDINGS - CONTRACTORS","D100","R&M BUILDINGS - CONTRACTORS","ASSET MANAGEMENT","HOUSING MANAGEMENT"
"http://statistics.data.gov.uk/id/local-authority/43UM","WOKING BOROUGH COUNCIL","24/07/2022","10/08/2022","0000480476/001","UNITY RECRUITMENT LTD","40160500","1876.88","NEIGHBOURHOOD SERVICES - PARKING SERVICES","TEMPORARY STAFF","A110","TEMPORARY STAFF","NEIGHBOURHOOD SERVICES","HUMAN RESOURCES"
"http://statistics.data.gov.uk/id/local-authority/43UM","WOKING BOROUGH COUNCIL","20/07/2022","10/08/2022","0000480478/001","VENN GROUP LIMITED","40383900","484.20","REVENUES AND BENEFITS - BENEFIT SERVICES","TEMPORARY STAFF","A110","TEMPORARY STAFF","REVENUES AND BENEFITS","HUMAN RESOURCES"
"http://statistics.data.gov.uk/id/local-authority/43UM","WOKING BOROUGH COUNCIL","10/06/2022","10/08/2022","0000480480/001","DOUBLETREE BY HILTON WOKING","01176800","2394.91","CORPORATE STRATEGY - CIVIC RECEPTION","CONTRACT CATERING","G400","CONTRACT CATERING","CORPORATE STRATEGY","CATERING"
"http://statistics.data.gov.uk/id/local-authority/43UM","WOKING BOROUGH COUNCIL","25/07/2022","10/08/2022","0000480481/001","SSE PLC","40619300","213.93","HOUSING SERVICES - LANDLORDS EXPENSES","ELECTRICITY","D400","ELECTRICITY","HOUSING SERVICES","UTILITIES"
"http://statistics.data.gov.uk/id/local-authority/43UM","WOKING BOROUGH COUNCIL","29/07/2022","10/08/2022","0000480483/001","BOLLSCAR BUILDERS LTD","41003800","965.14","HOUSING SERVICES - RESPONSIVE REPARS HRA","HRA REPAIRS CONTRACTOR","D112","HRA REPAIRS CONTRACTOR","HOUSING SERVICES","CLEANING & JANITORIAL"
"http://statistics.data.gov.uk/id/local-authority/43UM","WOKING BOROUGH COUNCIL","29/07/2022","10/08/2022","0000480484/001","BOLLSCAR BUILDERS LTD","41003800","4978.57","HOUSING SERVICES - RESPONSIVE REPARS HRA","HRA REPAIRS CONTRACTOR","D112","HRA REPAIRS CONTRACTOR","HOUSING SERVICES","CLEANING & JANITORIAL"
"http://statistics.data.gov.uk/id/local-authority/43UM","WOKING BOROUGH COUNCIL","29/07/2022","10/08/2022","0000480485/001","BOLLSCAR BUILDERS LTD","41003800","5950.00","HOUSING SERVICES - RESPONSIVE REPARS HRA","HRA REPAIRS CONTRACTOR","D112","HRA REPAIRS CONTRACTOR","HOUSING SERVICES","CLEANING & JANITORIAL"
"http://statistics.data.gov.uk/id/local-authority/43UM","WOKING BOROUGH COUNCIL","29/07/2022","10/08/2022","0000480486/001","BOLLSCAR BUILDERS LTD","41003800","420.57","HOUSING SERVICES - RESPONSIVE REPARS HRA","HRA REPAIRS CONTRACTOR","D112","HRA REPAIRS CONTRACTOR","HOUSING SERVICES","CLEANING & JANITORIAL"
"http://statistics.data.gov.uk/id/local-authority/43UM","WOKING BOROUGH COUNCIL","27/07/2022","10/08/2022","0000480487/001","HAMMOND CLARKE LTD","41017700","2352.95","INFORMATION TECHNOLOGY - MICROSOFT 365 IMPLEMENTATION","SERVICES","Q053","SERVICES","INFORMATION TECHNOLOGY","HUMAN RESOURCES"
"http://statistics.data.gov.uk/id/local-authority/43UM","WOKING BOROUGH COUNCIL","27/07/2022","10/08/2022","0000480488/001","HAMMOND CLARKE LTD","41017700","2352.95","INFORMATION TECHNOLOGY - MICROSOFT 365 IMPLEMENTATION","SERVICES","Q053","SERVICES","INFORMATION TECHNOLOGY","HUMAN RESOURCES"
"http://statistics.data.gov.uk/id/local-authority/43UM","WOKING BOROUGH COUNCIL","27/07/2022","10/08/2022","0000480489/001","HAMMOND CLARKE LTD","41017700","2352.95","INFORMATION TECHNOLOGY - MICROSOFT 365 IMPLEMENTATION","SERVICES","Q053","SERVICES","INFORMATION TECHNOLOGY","HUMAN RESOURCES"
"http://statistics.data.gov.uk/id/local-authority/43UM","WOKING BOROUGH COUNCIL","25/07/2022","10/08/2022","0000480490/001","REDACTED PERSONAL DATA�","41042600","2650.00","INDEPENDENT LIVING SERVICES - SW REGEN DISTURBANCE PAYMENTS","MAIN CONTRACTOR","Q200","MAIN CONTRACTOR","INDEPENDENT LIVING SERVICES","HOUSING MANAGEMENT"
"http://statistics.data.gov.uk/id/local-authority/43UM","WOKING BOROUGH COUNCIL","13/06/2022","10/08/2022","0000480495/001","AQUANEED LIMITED","01623100","7823.80","HOUSING SERVICES - DISABLED FACILITIES GRANTS","MANDATORY GRANTS","Q712","MANDATORY GRANTS","HOUSING SERVICES","BUILDING CONSTRUCTION MATERIALS"
"http://statistics.data.gov.uk/id/local-authority/43UM","WOKING BOROUGH COUNCIL","29/07/2022","10/08/2022","0000480499/001","MS ZOE FLINT","41024600","48.75","CORPORATE STRATEGY - WOMENS SUPPORT CENTRE SURREY","VOLUNTEER EXPENSES","H313","VOLUNTEER EXPENSES","CORPORATE STRATEGY","SOCIAL COMMUNITY CARE SUP & SERV (ADULT)"
"http://statistics.data.gov.uk/id/local-authority/43UM","WOKING BOROUGH COUNCIL","29/07/2022","10/08/2022","0000480500/001","GIBBS & DANDY","40335300","8.48","HOUSING SERVICES - HOME IMPS & BEN AGENCY","HANDYPERSON MATERIALS","G201","HANDYPERSON MATERIALS","HOUSING SERVICES","BUILDING CONSTRUCTION MATERIALS"
"http://statistics.data.gov.uk/id/local-authority/43UM","WOKING BOROUGH COUNCIL","01/08/2022","10/08/2022","0000480501/001","GIBBS & DANDY","40335300","2861.90","HOUSING SERVICES - HOME IMPS & BEN AGENCY","HANDYPERSON MATERIALS","G201","HANDYPERSON MATERIALS","HOUSING SERVICES","BUILDING CONSTRUCTION MATERIALS"
"http://statistics.data.gov.uk/id/local-authority/43UM","WOKING BOROUGH COUNCIL","29/07/2022","10/08/2022","0000480502/001","TUNSTALL HEALTHCARE (UK) LTD","00019000","162.00","INDEPENDENT LIVING SERVICES - COMMUNITY ALARMS-GF","EQUIPMENT","G100","EQUIPMENT","INDEPENDENT LIVING SERVICES","HEALTHCARE"
"http://statistics.data.gov.uk/id/local-authority/43UM","WOKING BOROUGH COUNCIL","21/07/2022","10/08/2022","0000480503/001","VIVIEN SKUODAS","41042800","32.46","CORPORATE STRATEGY - WOMENS SUPPORT CENTRE SURREY","VOLUNTEER EXPENSES","H313","VOLUNTEER EXPENSES","CORPORATE STRATEGY","SOCIAL COMMUNITY CARE SUP & SERV (ADULT)"
"http://statistics.data.gov.uk/id/local-authority/43UM","WOKING BOROUGH COUNCIL","31/07/2022","10/08/2022","0000480504/001","GURNEY CONSULTING ENGINEERS","00017000","900.00","NEIGHBOURHOOD SERVICES - PARKS-GENERAL","R&M BUILDINGS - CONTRACTORS","D100","R&M BUILDINGS - CONTRACTORS","NEIGHBOURHOOD SERVICES","WORKS (CONSTRUCTION REPAIR MAINTENANCE)"
"http://statistics.data.gov.uk/id/local-authority/43UM","WOKING BOROUGH COUNCIL","31/07/2022","10/08/2022","0000480505/001","GURNEY CONSULTING ENGINEERS","00017000","850.00","NEIGHBOURHOOD SERVICES - PARKS-GENERAL","R&M BUILDINGS - CONTRACTORS","D100","R&M BUILDINGS - CONTRACTORS","NEIGHBOURHOOD SERVICES","WORKS (CONSTRUCTION REPAIR MAINTENANCE)"
"http://statistics.data.gov.uk/id/local-authority/43UM","WOKING BOROUGH COUNCIL","03/08/2022","10/08/2022","0000480506/001","OYSTER PARTNERSHIP","40443300","1609.50","PLANNING SERVICES - DEVELOPMENT CONTROL","TEMPORARY STAFF","A110","TEMPORARY STAFF","PLANNING SERVICES","HUMAN RESOURCES"
"http://statistics.data.gov.uk/id/local-authority/43UM","WOKING BOROUGH COUNCIL","31/07/2022","10/08/2022","0000480507/001","SYNERGY CPC LLP","40545400","4000.00","ASSET MANAGEMENT - OLD WOKING COMMUNITY CNTR OWCC","OTHER CONSULTANTS","Q430","OTHER CONSULTANTS","ASSET MANAGEMENT","WORKS (CONSTRUCTION REPAIR MAINTENANCE)"
"http://statistics.data.gov.uk/id/local-authority/43UM","WOKING BOROUGH COUNCIL","01/08/2022","10/08/2022","0000480508/001","HEADLINE DESIGN & PRINT","00016900","182.00","PLANNING SERVICES - WOKING TOWN CENTRE MASTERPLAN","OTHER CONSULTANTS","Q430","OTHER CONSULTANTS","PLANNING SERVICES","FINANCIAL SERVICES"
"http://statistics.data.gov.uk/id/local-authority/43UM","WOKING BOROUGH COUNCIL","01/08/2022","10/08/2022","0000480509/001","HEADLINE DESIGN & PRINT","00016900","138.15","PLANNING SERVICES - WOKING TOWN CENTRE MASTERPLAN","OTHER CONSULTANTS","Q430","OTHER CONSULTANTS","PLANNING SERVICES","FINANCIAL SERVICES"
"http://statistics.data.gov.uk/id/local-authority/43UM","WOKING BOROUGH COUNCIL","28/07/2022","10/08/2022","0000480511/001","LIFTEC LIFTS LTD","40711800","1742.50","HOUSING SERVICES - STATUTORU HRA","HRA STATUTORY","D116","HRA STATUTORY","HOUSING SERVICES","WORKS (CONSTRUCTION REPAIR MAINTENANCE)"
"http://statistics.data.gov.uk/id/local-authority/43UM","WOKING BOROUGH COUNCIL","28/07/2022","10/08/2022","0000480512/001","LIFTEC LIFTS LTD","40711800","192.16","LEISURE SERVICES - SHEERWATER LEISURE CENTRE","R&M BUILDINGS - CONTRACTORS","D100","R&M BUILDINGS - CONTRACTORS","LEISURE SERVICES","WORKS (CONSTRUCTION REPAIR MAINTENANCE)"
"http://statistics.data.gov.uk/id/local-authority/43UM","WOKING BOROUGH COUNCIL","20/07/2022","10/08/2022","0000480513/001","DAVITT JONES BOULD LTD - SOLICITORS","01490800","1064.70","CORPORATE STRATEGY - LEGAL","AD HOC WORK","H781","AD HOC WORK","CORPORATE STRATEGY","LEGAL SERVICES"
"http://statistics.data.gov.uk/id/local-authority/43UM","WOKING BOROUGH COUNCIL","20/07/2022","10/08/2022","0000480515/001","DAVITT JONES BOULD LTD - SOLICITORS","01490800","94.20","CORPORATE STRATEGY - LEGAL","AD HOC WORK","H781","AD HOC WORK","CORPORATE STRATEGY","LEGAL SERVICES"
"http://statistics.data.gov.uk/id/local-authority/43UM","WOKING BOROUGH COUNCIL","20/07/2022","10/08/2022","0000480516/001","DAVITT JONES BOULD LTD - SOLICITORS","01490800","50.70","CORPORATE STRATEGY - LEGAL","AD HOC WORK","H781","AD HOC WORK","CORPORATE STRATEGY","LEGAL SERVICES"
"http://statistics.data.gov.uk/id/local-authority/43UM","WOKING BOROUGH COUNCIL","20/07/2022","10/08/2022","0000480517/001","DAVITT JONES BOULD LTD - SOLICITORS","01490800","270.40","CORPORATE STRATEGY - LEGAL","AD HOC WORK","H781","AD HOC WORK","CORPORATE STRATEGY","LEGAL SERVICES"
"http://statistics.data.gov.uk/id/local-authority/43UM","WOKING BOROUGH COUNCIL","20/07/2022","10/08/2022","0000480519/001","DAVITT JONES BOULD LTD - SOLICITORS","01490800","388.70","CORPORATE STRATEGY - LEGAL","AD HOC WORK","H781","AD HOC WORK","CORPORATE STRATEGY","LEGAL SERVICES"
"http://statistics.data.gov.uk/id/local-authority/43UM","WOKING BOROUGH COUNCIL","20/07/2022","10/08/2022","0000480520/001","DAVITT JONES BOULD LTD - SOLICITORS","01490800","11339.90","CORPORATE STRATEGY - LEGAL","AD HOC WORK","H781","AD HOC WORK","CORPORATE STRATEGY","LEGAL SERVICES"
"http://statistics.data.gov.uk/id/local-authority/43UM","WOKING BOROUGH COUNCIL","30/06/2022","10/08/2022","0000480526/001","GARY LEA","40308200","250.00","HOUSING SERVICES - ESTATE CLEANING HRA","HRA CLEANING","D119","HRA CLEANING","HOUSING SERVICES","FINANCIAL SERVICES"
"http://statistics.data.gov.uk/id/local-authority/43UM","WOKING BOROUGH COUNCIL","01/08/2022","10/08/2022","0000480528/001","SPRINGFIELD SUPPLIES & PROJECTS LIMITED","40890800","124.50","CORPORATE STRATEGY - COVID -19 PANDEMIC","MAIN CONTRACTOR","Q200","MAIN CONTRACTOR","CORPORATE STRATEGY","ENVIRONMENTAL SERVICES"
"http://statistics.data.gov.uk/id/local-authority/43UM","WOKING BOROUGH COUNCIL","12/05/2022","10/08/2022","0000480530/001","DEEPDENE ECOLOGY LTD","40983700","979.05","ASSET MANAGEMENT - HIF WTC ISLAND SITE PROJECT","OTHER CONSULTANTS","Q430","OTHER CONSULTANTS","ASSET MANAGEMENT","CONSULTANCY"
"http://statistics.data.gov.uk/id/local-authority/43UM","WOKING BOROUGH COUNCIL","04/07/2022","10/08/2022","0000480531/001","DEEPDENE ECOLOGY LTD","40983700","461.40","ASSET MANAGEMENT - HIF WTC ISLAND SITE PROJECT","OTHER CONSULTANTS","Q430","OTHER CONSULTANTS","ASSET MANAGEMENT","CONSULTANCY"
"http://statistics.data.gov.uk/id/local-authority/43UM","WOKING BOROUGH COUNCIL","30/07/2022","10/08/2022","0000480532/001","GARY LEA","40308200","480.00","HOUSING SERVICES - ESTATE CLEANING HRA","HRA CLEANING","D119","HRA CLEANING","HOUSING SERVICES","FINANCIAL SERVICES"
"http://statistics.data.gov.uk/id/local-authority/43UM","WOKING BOROUGH COUNCIL","29/07/2022","10/08/2022","0000480533/001","EMCOR GROUP (UK) PLC","00004600","1517.15","INFORMATION TECHNOLOGY - CYBER SECURITY 2021/22","ADDITIONAL EQUIPMENT","Q020","ADDITIONAL EQUIPMENT","INFORMATION TECHNOLOGY","WORKS (CONSTRUCTION REPAIR MAINTENANCE)"
"http://statistics.data.gov.uk/id/local-authority/43UM","WOKING BOROUGH COUNCIL","29/07/2022","10/08/2022","0000480533/002","EMCOR GROUP (UK) PLC","00004600","75.86","INFORMATION TECHNOLOGY - CYBER SECURITY 2021/22","ADDITIONAL EQUIPMENT","Q020","ADDITIONAL EQUIPMENT","INFORMATION TECHNOLOGY","WORKS (CONSTRUCTION REPAIR MAINTENANCE)"
"http://statistics.data.gov.uk/id/local-authority/43UM","WOKING BOROUGH COUNCIL","29/07/2022","10/08/2022","0000480534/001","EMCOR GROUP (UK) PLC","00004600","1716.00","CORPORATE STRATEGY - TOWN CENTRE FORUM","VIS.ECON.PROD.DEVELOPMT &PROMO","H412","VIS.ECON.PROD.DEVELOPMT &PROMO","CORPORATE STRATEGY","WORKS (CONSTRUCTION REPAIR MAINTENANCE)"
"http://statistics.data.gov.uk/id/local-authority/43UM","WOKING BOROUGH COUNCIL","29/07/2022","10/08/2022","0000480534/002","EMCOR GROUP (UK) PLC","00004600","171.60","CORPORATE STRATEGY - TOWN CENTRE FORUM","VIS.ECON.PROD.DEVELOPMT &PROMO","H412","VIS.ECON.PROD.DEVELOPMT &PROMO","CORPORATE STRATEGY","WORKS (CONSTRUCTION REPAIR MAINTENANCE)"
"http://statistics.data.gov.uk/id/local-authority/43UM","WOKING BOROUGH COUNCIL","29/07/2022","10/08/2022","0000480535/001","EMCOR GROUP (UK) PLC","00004600","286.20","INFORMATION TECHNOLOGY - I.T.S. ICT","EXPORT HOUSE CHARGES","G131","EXPORT HOUSE CHARGES","INFORMATION TECHNOLOGY","WORKS (CONSTRUCTION REPAIR MAINTENANCE)"
"http://statistics.data.gov.uk/id/local-authority/43UM","WOKING BOROUGH COUNCIL","29/07/2022","10/08/2022","0000480535/002","EMCOR GROUP (UK) PLC","00004600","28.62","INFORMATION TECHNOLOGY - I.T.S. ICT","EXPORT HOUSE CHARGES","G131","EXPORT HOUSE CHARGES","INFORMATION TECHNOLOGY","WORKS (CONSTRUCTION REPAIR MAINTENANCE)"
"http://statistics.data.gov.uk/id/local-authority/43UM","WOKING BOROUGH COUNCIL","29/07/2022","10/08/2022","0000480536/001","EMCOR GROUP (UK) PLC","00004600","302.94","INFORMATION TECHNOLOGY - I.T.S. ICT","EXPORT HOUSE CHARGES","G131","EXPORT HOUSE CHARGES","INFORMATION TECHNOLOGY","WORKS (CONSTRUCTION REPAIR MAINTENANCE)"
"http://statistics.data.gov.uk/id/local-authority/43UM","WOKING BOROUGH COUNCIL","29/07/2022","10/08/2022","0000480536/002","EMCOR GROUP (UK) PLC","00004600","30.29","INFORMATION TECHNOLOGY - I.T.S. ICT","EXPORT HOUSE CHARGES","G131","EXPORT HOUSE CHARGES","INFORMATION TECHNOLOGY","WORKS (CONSTRUCTION REPAIR MAINTENANCE)"
"http://statistics.data.gov.uk/id/local-authority/43UM","WOKING BOROUGH COUNCIL","04/08/2022","10/08/2022","0000480543/001","WOKING COLLEGE","00326900","60.00","HOUSING SERVICES - AFGHAN REFUGEE","ENGLISH LESSONS","Q636","ENGLISH LESSONS","HOUSING SERVICES","EDUCATION"
"http://statistics.data.gov.uk/id/local-authority/43UM","WOKING BOROUGH COUNCIL","25/07/2022","10/08/2022","0000480544/001","CASTLE WATER LIMITED","40650200","22.17","NEIGHBOURHOOD SERVICES - TOYS R US CAR PARK","WATER","D700","WATER","NEIGHBOURHOOD SERVICES","UTILITIES"
"http://statistics.data.gov.uk/id/local-authority/43UM","WOKING BOROUGH COUNCIL","02/08/2022","10/08/2022","0000480546/001","HEADLINE DESIGN & PRINT","00016900","18.60","CORPORATE STRATEGY - TOWN CENTRE FORUM","MARKETING","H406","MARKETING","CORPORATE STRATEGY","FINANCIAL SERVICES"
"http://statistics.data.gov.uk/id/local-authority/43UM","WOKING BOROUGH COUNCIL","04/08/2022","10/08/2022","0000480547/001","HALL & KAY FIRE SERVICES LTD","41041300","600.00","HOUSING SERVICES - FM CONTRACT REC HENRY PLAZA","PAYMENT TO CONTRACTOR","T700","PAYMENT TO CONTRACTOR","HOUSING SERVICES","HEALTH & SAFETY"
"http://statistics.data.gov.uk/id/local-authority/43UM","WOKING BOROUGH COUNCIL","14/06/2022","10/08/2022","0000480548/001","APARBORICULTURE","40305100","420.00","NEIGHBOURHOOD SERVICES - STREET FURNITURE","GROUNDS MAINT-CONTRACTORS","D200","GROUNDS MAINT-CONTRACTORS","NEIGHBOURHOOD SERVICES","HORTICULTURAL (INCLUDES AGRICULTURE)"
"http://statistics.data.gov.uk/id/local-authority/43UM","WOKING BOROUGH COUNCIL","03/08/2022","10/08/2022","0000480549/001","MARKS CONSULTING PARTNERS LIMITED","40708400","2625.00","ASSET MANAGEMENT - BUILDING SERVICES","TEMPORARY STAFF","A110","TEMPORARY STAFF","ASSET MANAGEMENT","CONSULTANCY"
"http://statistics.data.gov.uk/id/local-authority/43UM","WOKING BOROUGH COUNCIL","29/07/2022","10/08/2022","0000480550/001","SSE PLC","40619300","177.44","HOUSING SERVICES - ENERGY","GAS","D420","GAS","HOUSING SERVICES","UTILITIES"
"http://statistics.data.gov.uk/id/local-authority/43UM","WOKING BOROUGH COUNCIL","29/07/2022","10/08/2022","0000480551/001","SSE PLC","40619300","38.26","HOUSING SERVICES - ENERGY","GAS","D420","GAS","HOUSING SERVICES","UTILITIES"
"http://statistics.data.gov.uk/id/local-authority/43UM","WOKING BOROUGH COUNCIL","29/07/2022","10/08/2022","0000480552/001","SSE PLC","40619300","1410.11","HOUSING SERVICES - LANDLORDS EXPENSES","ELECTRICITY","D400","ELECTRICITY","HOUSING SERVICES","UTILITIES"
"http://statistics.data.gov.uk/id/local-authority/43UM","WOKING BOROUGH COUNCIL","29/07/2022","10/08/2022","0000480553/001","SSE PLC","40619300","270.39","HOUSING SERVICES - LANDLORDS EXPENSES","ELECTRICITY","D400","ELECTRICITY","HOUSING SERVICES","UTILITIES"
"http://statistics.data.gov.uk/id/local-authority/43UM","WOKING BOROUGH COUNCIL","03/08/2022","10/08/2022","0000480554/001","MARKS CONSULTING PARTNERS LIMITED","40708400","1868.75","HOUSING SERVICES - HOUSING MAINTENANCE PEOCUREMENT","OTHER CONSULTANTS","Q430","OTHER CONSULTANTS","HOUSING SERVICES","CONSULTANCY"
"http://statistics.data.gov.uk/id/local-authority/43UM","WOKING BOROUGH COUNCIL","01/07/2022","10/08/2022","0000480555/001","STEADFAST AUTOMATION LTD","40458600","93.03","HOUSING SERVICES - RESPONSIVE REPARS HRA","HRA REPAIRS CONTRACTOR","D112","HRA REPAIRS CONTRACTOR","HOUSING SERVICES","FINANCIAL SERVICES"
